 Batch Number,Vendor Name,Invoice Number, Line,Line Amount,Account Description,Issue Date ,Total Amount Paid,Department,Proclass
271015H,HEALTH MANAGEMENT LIMITED=====,138441,1,"1,200.00",THIRD PARTY REPORTS,02/11/2015,"1,200.00",HR Management,Healthcare
281015H,MOOLANDS LTD,2296,1,"2,279.00",STRATEGIC (NON CYCLICAL),02/11/2015,"2,669.00",Technical and Service Support,"Works - Construction, R&M"
281015H,MOOLANDS LTD,2296,2,390,STRATEGIC (NON CYCLICAL),02/11/2015,,Technical and Service Support,"Works - Construction, R&M"
231015H,MOOLANDS LTD,3174,1,950,TACTICAL DAY TO DAY,02/11/2015,950,Technical And Service Support,"Works - Construction, R&M"
231015H,MOOLANDS LTD,3175,1,950,TACTICAL DAY TO DAY,02/11/2015,950,Technical And Service Support,"Works - Construction, R&M"
271015H,OGILVIE FLEET LTD=============,357248,1,367.63,MILEAGE CHARGES,02/11/2015,367.63,Procurement,Vehicle Management
151015M,MORRISEY ELECTRICAL & BUILDING,1030,1,"28,500.00",DEVELOPMENT  EXPENSES-CONTRACT,02/11/2015,"28,500.00",Technical and Service Support,"Works - Construction, R&M"
800066136,*JAMES HUNTER (OUTFITTERS) LTD,108299,1,230.9,CLOTHING,02/11/2015,369.72,Operations Fire Stations,Clothing
800066136,*JAMES HUNTER (OUTFITTERS) LTD,108299,2,138.82,CLOTHING,02/11/2015,,Operations Fire Stations,Clothing
800066150,*JAMES HUNTER (OUTFITTERS) LTD,108313,1,293.13,CLOTHING,02/11/2015,293.13,Operations Fire Stations,Clothing
800066151,*JAMES HUNTER (OUTFITTERS) LTD,108314,1,61.79,CLOTHING,02/11/2015,299.16,Operations Fire Stations,Clothing
800066151,*JAMES HUNTER (OUTFITTERS) LTD,108314,2,49.2,CLOTHING,02/11/2015,,Operations Fire Stations,Clothing
800066151,*JAMES HUNTER (OUTFITTERS) LTD,108314,3,188.17,CLOTHING,02/11/2015,,Operations Fire Stations,Clothing
800068912,*JAMES HUNTER (OUTFITTERS) LTD,108361,1,74.45,CLOTHING,02/11/2015,325.54,Operations Fire Stations,Clothing
800068912,*JAMES HUNTER (OUTFITTERS) LTD,108361,2,251.09,CLOTHING,02/11/2015,,Operations Fire Stations,Clothing
800068930,*JAMES HUNTER (OUTFITTERS) LTD,108379,1,293.13,CLOTHING,02/11/2015,293.13,Operations Fire Stations,Clothing
271015H,CO-STAR ELECTRONIC COMPONENTS=,158628/180878,1,75,RADIO,02/11/2015,337.76,Information and Communication Technology,ICT
271015H,CO-STAR ELECTRONIC COMPONENTS=,158628/180878,2,36.72,RADIO,02/11/2015,,Information and Communication Technology,ICT
271015H,CO-STAR ELECTRONIC COMPONENTS=,158628/180878,3,69.7,RADIO,02/11/2015,,Information and Communication Technology,ICT
271015H,CO-STAR ELECTRONIC COMPONENTS=,158628/180878,4,41.24,RADIO,02/11/2015,,Information and Communication Technology,ICT
271015H,CO-STAR ELECTRONIC COMPONENTS=,158628/180878,5,57.84,RADIO,02/11/2015,,Information and Communication Technology,ICT
271015H,CO-STAR ELECTRONIC COMPONENTS=,158628/180878,6,26.18,RADIO,02/11/2015,,Information and Communication Technology,ICT
271015H,CO-STAR ELECTRONIC COMPONENTS=,158628/180878,7,19.74,RADIO,02/11/2015,,Information and Communication Technology,ICT
271015H,CO-STAR ELECTRONIC COMPONENTS=,158628/180878,8,11.34,RADIO,02/11/2015,,Information and Communication Technology,ICT
271015H,BRIGHT INTERACTIVE LTD========,200/0141/1,1,450,CONSULTANTS,02/11/2015,922.5,Information Management,ICT
271015H,BRIGHT INTERACTIVE LTD========,200/0141/1,2,472.5,CONSULTANTS,02/11/2015,,Information Management,ICT
281015H,PELI PRODUCTS (UK) LTD========,250374,1,124.08,OPERATIONAL EQUIP-PURCHASE,02/11/2015,"3,860.28",Operational Resilience,Fire & Rescue
281015H,PELI PRODUCTS (UK) LTD========,250374,2,"3,736.20",OPERATIONAL EQUIP-PURCHASE,02/11/2015,,Operational Resilience,Fire & Rescue
800068260,ADECCO UK LIMITED=============,27289045,1,"1,563.10",FRS STAFF AGENCY,02/11/2015,"1,563.10",Legal & Democratic Services,Human Resources
800068301,ADECCO UK LIMITED=============,27292394,1,"1,212.00",FRS STAFF AGENCY,02/11/2015,"1,212.00",Technical And Service Support,Human Resources
281015H,ARKAS LIMITED=================,27371,1,316.85,STRATEGIC (CYCLICAL),02/11/2015,"1,008.35",Technical And Service Support,"Works - Construction, R&M"
281015H,ARKAS LIMITED=================,27371,2,214,TACTICAL DAY TO DAY,02/11/2015,,Technical And Service Support,"Works - Construction, R&M"
281015H,ARKAS LIMITED=================,27371,3,214,STRATEGIC (CYCLICAL),02/11/2015,,Technical And Service Support,"Works - Construction, R&M"
281015H,ARKAS LIMITED=================,27371,4,263.5,STRATEGIC (CYCLICAL),02/11/2015,,Technical And Service Support,"Works - Construction, R&M"
281015H,ARKAS LIMITED=================,27372,1,379.42,STRATEGIC (CYCLICAL),02/11/2015,576.92,Technical And Service Support,"Works - Construction, R&M"
281015H,ARKAS LIMITED=================,27372,2,197.5,STRATEGIC (CYCLICAL),02/11/2015,,Technical And Service Support,"Works - Construction, R&M"
281015H,ARKAS LIMITED=================,27453,1,"1,504.03",STRATEGIC (CYCLICAL),02/11/2015,"2,152.50",Technical And Service Support,"Works - Construction, R&M"
281015H,ARKAS LIMITED=================,27453,2,249.63,STRATEGIC (CYCLICAL),02/11/2015,,Technical And Service Support,"Works - Construction, R&M"
281015H,ARKAS LIMITED=================,27453,3,217.84,STRATEGIC (CYCLICAL),02/11/2015,,Technical And Service Support,"Works - Construction, R&M"
281015H,ARKAS LIMITED=================,27453,4,181,STRATEGIC (CYCLICAL),02/11/2015,,Technical And Service Support,"Works - Construction, R&M"
281015H,ARKAS LIMITED=================,27548,1,692.95,STRATEGIC (CYCLICAL),02/11/2015,"3,226.84",Technical And Service Support,"Works - Construction, R&M"
281015H,ARKAS LIMITED=================,27548,2,"1,458.58",STRATEGIC (CYCLICAL),02/11/2015,,Technical And Service Support,"Works - Construction, R&M"
281015H,ARKAS LIMITED=================,27548,3,577,STRATEGIC (CYCLICAL),02/11/2015,,Technical And Service Support,"Works - Construction, R&M"
281015H,ARKAS LIMITED=================,27548,4,498.31,STRATEGIC (CYCLICAL),02/11/2015,,Technical And Service Support,"Works - Construction, R&M"
261015H,DRAEGER SAFETY UK LIMITED=====,2910031917,1,283.2,PROTECTIVE EQUIPT - PARTS,02/11/2015,938.6,Technical and Service Support,Fire & Rescue
261015H,DRAEGER SAFETY UK LIMITED=====,2910031917,2,655.4,PROTECTIVE EQUIPT - PARTS,02/11/2015,,Technical and Service Support,Fire & Rescue
261015H,DRAEGER SAFETY UK LIMITED=====,2910031918,1,141.45,PROTECTIVE EQUIPT - PARTS,02/11/2015,460.46,Technical and Service Support,Fire & Rescue
261015H,DRAEGER SAFETY UK LIMITED=====,2910031918,2,319.01,PROTECTIVE EQUIPT - PARTS,02/11/2015,,Technical and Service Support,Fire & Rescue
261015H,DRAEGER SAFETY UK LIMITED=====,2910031998,1,778.8,PROTECTIVE EQUIPT - PARTS,02/11/2015,778.8,Technical and Service Support,Fire & Rescue
261015H,DRAEGER SAFETY UK LIMITED=====,2910032030,1,"1,130.00",PROTECTIVE EQUIPT - PARTS,02/11/2015,"1,130.00",Technical and Service Support,Fire & Rescue
281015H,MBL SEMINARS=================,354451,1,500,PROFESSIONAL DEVELOPMENT,02/11/2015,500,Legal & Democratic Services,Human Resources
281015H,LONGTON PROTECTIVE CLOTHING,36436,1,25.5,CLOTHING,02/11/2015,283,Cadets,Clothing
281015H,LONGTON PROTECTIVE CLOTHING,36436,2,34,CLOTHING,02/11/2015,,Cadets,Clothing
281015H,LONGTON PROTECTIVE CLOTHING,36436,3,34,CLOTHING,02/11/2015,,Cadets,Clothing
281015H,LONGTON PROTECTIVE CLOTHING,36436,4,17,CLOTHING,02/11/2015,,Cadets,Clothing
281015H,LONGTON PROTECTIVE CLOTHING,36436,5,8.5,CLOTHING,02/11/2015,,Cadets,Clothing
281015H,LONGTON PROTECTIVE CLOTHING,36436,6,22,CLOTHING,02/11/2015,,Cadets,Clothing
281015H,LONGTON PROTECTIVE CLOTHING,36436,7,22,CLOTHING,02/11/2015,,Cadets,Clothing
281015H,LONGTON PROTECTIVE CLOTHING,36436,8,11,CLOTHING,02/11/2015,,Cadets,Clothing
281015H,LONGTON PROTECTIVE CLOTHING,36436,9,11,CLOTHING,02/11/2015,,Cadets,Clothing
281015H,LONGTON PROTECTIVE CLOTHING,36436,10,22,CLOTHING,02/11/2015,,Cadets,Clothing
281015H,LONGTON PROTECTIVE CLOTHING,36436,11,33,CLOTHING,02/11/2015,,Cadets,Clothing
281015H,LONGTON PROTECTIVE CLOTHING,36436,12,43,CLOTHING,02/11/2015,,Cadets,Clothing
271015H,DEALERSHIP SERVICES LTD,3699,1,16.95,CLOTHING,02/11/2015,"1,003.50",Cadets,Clothing
271015H,DEALERSHIP SERVICES LTD,3699,2,113.7,CLOTHING,02/11/2015,,Cadets,Clothing
271015H,DEALERSHIP SERVICES LTD,3699,3,151.6,CLOTHING,02/11/2015,,Cadets,Clothing
271015H,DEALERSHIP SERVICES LTD,3699,4,18.95,CLOTHING,02/11/2015,,Cadets,Clothing
271015H,DEALERSHIP SERVICES LTD,3699,5,3.45,CLOTHING,02/11/2015,,Cadets,Clothing
271015H,DEALERSHIP SERVICES LTD,3699,6,20.7,CLOTHING,02/11/2015,,Cadets,Clothing
271015H,DEALERSHIP SERVICES LTD,3699,7,27.6,CLOTHING,02/11/2015,,Cadets,Clothing
271015H,DEALERSHIP SERVICES LTD,3699,8,3.45,CLOTHING,02/11/2015,,Cadets,Clothing
271015H,DEALERSHIP SERVICES LTD,3699,9,29,CLOTHING,02/11/2015,,Cadets,Clothing
271015H,DEALERSHIP SERVICES LTD,3699,10,29,CLOTHING,02/11/2015,,Cadets,Clothing
271015H,DEALERSHIP SERVICES LTD,3699,11,58,CLOTHING,02/11/2015,,Cadets,Clothing
271015H,DEALERSHIP SERVICES LTD,3699,12,43.5,CLOTHING,02/11/2015,,Cadets,Clothing
271015H,DEALERSHIP SERVICES LTD,3699,13,43.5,CLOTHING,02/11/2015,,Cadets,Clothing
271015H,DEALERSHIP SERVICES LTD,3699,14,14.5,CLOTHING,02/11/2015,,Cadets,Clothing
271015H,DEALERSHIP SERVICES LTD,3699,15,187.95,CLOTHING,02/11/2015,,Cadets,Clothing
271015H,DEALERSHIP SERVICES LTD,3699,16,241.65,CLOTHING,02/11/2015,,Cadets,Clothing
271015H,CARPETS & FLOOR COVERS DIRECT=,4130,1,"1,780.00",FIXTURES & FITTINGS,02/11/2015,"5,582.00",Technical And Service Support,Building Constr Materials
271015H,CARPETS & FLOOR COVERS DIRECT=,4130,2,"3,802.00",FIXTURES & FITTINGS,02/11/2015,,Technical And Service Support,Building Constr Materials
281015H,*HOMEPACK LTD=================,42739,1,154,OPERATIONAL EQUIP-PURCHASE,02/11/2015,251.2,Operations Fire Stations,Building Constr Materials
281015H,*HOMEPACK LTD=================,42739,2,97.2,OPERATIONAL EQUIP-PURCHASE,02/11/2015,,Operations Fire Stations,Building Constr Materials
271015H,SAFEGUARD PEST CON. & ENV.LTD,43782,1,"1,393.28",STRATEGIC (NON CYCLICAL),02/11/2015,"1,393.28",Technical and Service Support,Environmental Services
271015H,FAHEY BUILDERS LTD============,5296,1,"4,795.00",STRATEGIC (NON CYCLICAL),02/11/2015,"4,795.00",Technical and Service Support,"Works - Construction, R&M"
271015H,TRY & LILLY LTD===============,67519,1,290.43,UNIFORMS - POMS,02/11/2015,290.43,Procurement,Clothing
211015H,TSI INSTRUMENTS LTD===========,90753109,1,445,REPAIR & MAINTENANCE,02/11/2015,899.66,Technical And Service Support,Fire & Rescue
211015H,TSI INSTRUMENTS LTD===========,90753109,2,445,REPAIR & MAINTENANCE,02/11/2015,,Technical And Service Support,Fire & Rescue
211015H,TSI INSTRUMENTS LTD===========,90753109,3,9.66,REPAIR & MAINTENANCE,02/11/2015,,Technical And Service Support,Fire & Rescue
281015H,BRADY CORPORATION LD T/A WELCO,9302294140,1,263.06,PROTECTIVE EQUIPT - PARTS,02/11/2015,273.06,Technical and Service Support,Building Constr Materials
281015H,BRADY CORPORATION LD T/A WELCO,9302294140,2,10,STATIONERY CONSUMABLES,02/11/2015,,Technical And Service Support,Building Constr Materials
141242,BRITISH GAS BUSINESS==========,9922007151,1,344.38,ELECTRICITY,02/11/2015,"14,305.36",Technical And Service Support,Utilities
141242,BRITISH GAS BUSINESS==========,9922007151,2,330.57,ELECTRICITY,02/11/2015,,Technical And Service Support,Utilities
141242,BRITISH GAS BUSINESS==========,9922007151,3,487.73,ELECTRICITY,02/11/2015,,Technical And Service Support,Utilities
141242,BRITISH GAS BUSINESS==========,9922007151,4,429.06,ELECTRICITY,02/11/2015,,Technical And Service Support,Utilities
141242,BRITISH GAS BUSINESS==========,9922007151,5,442.31,ELECTRICITY,02/11/2015,,Technical And Service Support,Utilities
141242,BRITISH GAS BUSINESS==========,9922007151,6,397.18,ELECTRICITY,02/11/2015,,Technical And Service Support,Utilities
141242,BRITISH GAS BUSINESS==========,9922007151,7,516.25,ELECTRICITY,02/11/2015,,Technical And Service Support,Utilities
141242,BRITISH GAS BUSINESS==========,9922007151,8,117.11,ELECTRICITY,02/11/2015,,Technical And Service Support,Utilities
141242,BRITISH GAS BUSINESS==========,9922007151,9,468.44,ELECTRICITY,02/11/2015,,Technical And Service Support,Utilities
141242,BRITISH GAS BUSINESS==========,9922007151,10,538.47,ELECTRICITY,02/11/2015,,Technical And Service Support,Utilities
141242,BRITISH GAS BUSINESS==========,9922007151,11,224.79,ELECTRICITY,02/11/2015,,Technical And Service Support,Utilities
141242,BRITISH GAS BUSINESS==========,9922007151,12,378.45,ELECTRICITY,02/11/2015,,Technical And Service Support,Utilities
141242,BRITISH GAS BUSINESS==========,9922007151,13,526.47,ELECTRICITY,02/11/2015,,Technical And Service Support,Utilities
141242,BRITISH GAS BUSINESS==========,9922007151,14,401.24,ELECTRICITY,02/11/2015,,Technical And Service Support,Utilities
141242,BRITISH GAS BUSINESS==========,9922007151,15,317.28,ELECTRICITY,02/11/2015,,Technical And Service Support,Utilities
141242,BRITISH GAS BUSINESS==========,9922007151,16,187.09,ELECTRICITY,02/11/2015,,Technical And Service Support,Utilities
141242,BRITISH GAS BUSINESS==========,9922007151,17,326.06,ELECTRICITY,02/11/2015,,Technical And Service Support,Utilities
141242,BRITISH GAS BUSINESS==========,9922007151,18,123.62,ELECTRICITY,02/11/2015,,Technical And Service Support,Utilities
141242,BRITISH GAS BUSINESS==========,9922007151,19,942.81,ELECTRICITY,02/11/2015,,Technical And Service Support,Utilities
141242,BRITISH GAS BUSINESS==========,9922007151,20,583.08,ELECTRICITY,02/11/2015,,Technical And Service Support,Utilities
141242,BRITISH GAS BUSINESS==========,9922007151,21,329.97,ELECTRICITY,02/11/2015,,Technical And Service Support,Utilities
141242,BRITISH GAS BUSINESS==========,9922007151,22,344.21,ELECTRICITY,02/11/2015,,Technical And Service Support,Utilities
141242,BRITISH GAS BUSINESS==========,9922007151,23,329.77,ELECTRICITY,02/11/2015,,Technical And Service Support,Utilities
141242,BRITISH GAS BUSINESS==========,9922007151,24,573.79,ELECTRICITY,02/11/2015,,Technical And Service Support,Utilities
141242,BRITISH GAS BUSINESS==========,9922007151,25,480.61,ELECTRICITY,02/11/2015,,Technical And Service Support,Utilities
141242,BRITISH GAS BUSINESS==========,9922007151,26,321.23,ELECTRICITY,02/11/2015,,Technical And Service Support,Utilities
141242,BRITISH GAS BUSINESS==========,9922007151,27,361.59,ELECTRICITY,02/11/2015,,Technical And Service Support,Utilities
141242,BRITISH GAS BUSINESS==========,9922007151,28,368.78,ELECTRICITY,02/11/2015,,Technical And Service Support,Utilities
141242,BRITISH GAS BUSINESS==========,9922007151,29,606.01,ELECTRICITY,02/11/2015,,Technical And Service Support,Utilities
141242,BRITISH GAS BUSINESS==========,9922007151,30,176.96,ELECTRICITY,02/11/2015,,Technical And Service Support,Utilities
141242,BRITISH GAS BUSINESS==========,9922007151,31,676.69,ELECTRICITY,02/11/2015,,Technical And Service Support,Utilities
141242,BRITISH GAS BUSINESS==========,9922007151,32,343.9,ELECTRICITY,02/11/2015,,Technical And Service Support,Utilities
141242,BRITISH GAS BUSINESS==========,9922007151,33,489.89,ELECTRICITY,02/11/2015,,Technical And Service Support,Utilities
141242,BRITISH GAS BUSINESS==========,9922007151,34,459.22,ELECTRICITY,02/11/2015,,Technical And Service Support,Utilities
141242,BRITISH GAS BUSINESS==========,9922007151,35,134.11,ELECTRICITY,02/11/2015,,Technical And Service Support,Utilities
141242,BRITISH GAS BUSINESS==========,9922007151,36,226.24,ELECTRICITY,02/11/2015,,Technical And Service Support,Utilities
141243,BRITISH GAS BUSINESS==========,9922007152,1,"1,815.45",ELECTRICITY,02/11/2015,"16,600.32",Technical And Service Support,Utilities
141243,BRITISH GAS BUSINESS==========,9922007152,2,478.87,ELECTRICITY,02/11/2015,,Technical And Service Support,Utilities
141243,BRITISH GAS BUSINESS==========,9922007152,3,343,ELECTRICITY,02/11/2015,,Technical And Service Support,Utilities
141243,BRITISH GAS BUSINESS==========,9922007152,4,580.21,ELECTRICITY,02/11/2015,,Technical And Service Support,Utilities
141243,BRITISH GAS BUSINESS==========,9922007152,5,117.26,ELECTRICITY,02/11/2015,,Technical And Service Support,Utilities
141243,BRITISH GAS BUSINESS==========,9922007152,6,417.9,ELECTRICITY,02/11/2015,,Technical And Service Support,Utilities
141243,BRITISH GAS BUSINESS==========,9922007152,7,560.21,ELECTRICITY,02/11/2015,,Technical And Service Support,Utilities
141243,BRITISH GAS BUSINESS==========,9922007152,8,308.19,ELECTRICITY,02/11/2015,,Technical And Service Support,Utilities
141243,BRITISH GAS BUSINESS==========,9922007152,9,133.24,ELECTRICITY,02/11/2015,,Technical And Service Support,Utilities
141243,BRITISH GAS BUSINESS==========,9922007152,10,354.36,ELECTRICITY,02/11/2015,,Technical And Service Support,Utilities
141243,BRITISH GAS BUSINESS==========,9922007152,11,310.68,ELECTRICITY,02/11/2015,,Technical And Service Support,Utilities
141243,BRITISH GAS BUSINESS==========,9922007152,12,456.89,ELECTRICITY,02/11/2015,,Technical And Service Support,Utilities
141243,BRITISH GAS BUSINESS==========,9922007152,13,276.26,ELECTRICITY,02/11/2015,,Technical And Service Support,Utilities
141243,BRITISH GAS BUSINESS==========,9922007152,14,502.86,ELECTRICITY,02/11/2015,,Technical And Service Support,Utilities
141243,BRITISH GAS BUSINESS==========,9922007152,15,633.75,ELECTRICITY,02/11/2015,,Technical And Service Support,Utilities
141243,BRITISH GAS BUSINESS==========,9922007152,16,537.3,ELECTRICITY,02/11/2015,,Technical And Service Support,Utilities
141243,BRITISH GAS BUSINESS==========,9922007152,17,337.31,ELECTRICITY,02/11/2015,,Technical And Service Support,Utilities
141243,BRITISH GAS BUSINESS==========,9922007152,18,123.22,ELECTRICITY,02/11/2015,,Technical And Service Support,Utilities
141243,BRITISH GAS BUSINESS==========,9922007152,19,308.68,ELECTRICITY,02/11/2015,,Technical And Service Support,Utilities
141243,BRITISH GAS BUSINESS==========,9922007152,20,223.41,ELECTRICITY,02/11/2015,,Technical And Service Support,Utilities
141243,BRITISH GAS BUSINESS==========,9922007152,21,335.25,ELECTRICITY,02/11/2015,,Technical And Service Support,Utilities
141243,BRITISH GAS BUSINESS==========,9922007152,22,967.9,ELECTRICITY,02/11/2015,,Technical And Service Support,Utilities
141243,BRITISH GAS BUSINESS==========,9922007152,23,591.45,ELECTRICITY,02/11/2015,,Technical And Service Support,Utilities
141243,BRITISH GAS BUSINESS==========,9922007152,24,202.39,ELECTRICITY,02/11/2015,,Technical And Service Support,Utilities
141243,BRITISH GAS BUSINESS==========,9922007152,25,"1,276.24",ELECTRICITY,02/11/2015,,Technical And Service Support,Utilities
141243,BRITISH GAS BUSINESS==========,9922007152,26,152.92,ELECTRICITY,02/11/2015,,Technical And Service Support,Utilities
141243,BRITISH GAS BUSINESS==========,9922007152,27,557.74,ELECTRICITY,02/11/2015,,Technical And Service Support,Utilities
141243,BRITISH GAS BUSINESS==========,9922007152,28,276.15,ELECTRICITY,02/11/2015,,Technical And Service Support,Utilities
141243,BRITISH GAS BUSINESS==========,9922007152,29,205.4,ELECTRICITY,02/11/2015,,Technical And Service Support,Utilities
141243,BRITISH GAS BUSINESS==========,9922007152,30,264.44,ELECTRICITY,02/11/2015,,Technical And Service Support,Utilities
141243,BRITISH GAS BUSINESS==========,9922007152,31,539.05,ELECTRICITY,02/11/2015,,Technical And Service Support,Utilities
141243,BRITISH GAS BUSINESS==========,9922007152,32,284.58,ELECTRICITY,02/11/2015,,Technical And Service Support,Utilities
141243,BRITISH GAS BUSINESS==========,9922007152,33,"1,033.95",ELECTRICITY,02/11/2015,,Technical And Service Support,Utilities
141243,BRITISH GAS BUSINESS==========,9922007152,34,312.76,ELECTRICITY,02/11/2015,,Technical And Service Support,Utilities
141243,BRITISH GAS BUSINESS==========,9922007152,35,460.3,ELECTRICITY,02/11/2015,,Technical And Service Support,Utilities
141243,BRITISH GAS BUSINESS==========,9922007152,36,320.75,ELECTRICITY,02/11/2015,,Technical And Service Support,Utilities
141244,BRITISH GAS BUSINESS==========,9922007153,1,708.45,ELECTRICITY,02/11/2015,"16,373.98",Technical And Service Support,Utilities
141244,BRITISH GAS BUSINESS==========,9922007153,2,329.11,ELECTRICITY,02/11/2015,,Technical And Service Support,Utilities
141244,BRITISH GAS BUSINESS==========,9922007153,3,293.77,ELECTRICITY,02/11/2015,,Technical And Service Support,Utilities
141244,BRITISH GAS BUSINESS==========,9922007153,4,682.42,ELECTRICITY,02/11/2015,,Technical And Service Support,Utilities
141244,BRITISH GAS BUSINESS==========,9922007153,5,584.39,ELECTRICITY,02/11/2015,,Technical And Service Support,Utilities
141244,BRITISH GAS BUSINESS==========,9922007153,6,689.53,ELECTRICITY,02/11/2015,,Technical And Service Support,Utilities
141244,BRITISH GAS BUSINESS==========,9922007153,7,546.39,ELECTRICITY,02/11/2015,,Technical And Service Support,Utilities
141244,BRITISH GAS BUSINESS==========,9922007153,8,251.13,ELECTRICITY,02/11/2015,,Technical And Service Support,Utilities
141244,BRITISH GAS BUSINESS==========,9922007153,9,276.55,ELECTRICITY,02/11/2015,,Technical And Service Support,Utilities
141244,BRITISH GAS BUSINESS==========,9922007153,10,207.36,ELECTRICITY,02/11/2015,,Technical And Service Support,Utilities
141244,BRITISH GAS BUSINESS==========,9922007153,11,459.29,ELECTRICITY,02/11/2015,,Technical And Service Support,Utilities
141244,BRITISH GAS BUSINESS==========,9922007153,12,"3,224.17",ELECTRICITY,02/11/2015,,Technical And Service Support,Utilities
141244,BRITISH GAS BUSINESS==========,9922007153,13,654.95,ELECTRICITY,02/11/2015,,Technical And Service Support,Utilities
141244,BRITISH GAS BUSINESS==========,9922007153,14,167.02,ELECTRICITY,02/11/2015,,Technical And Service Support,Utilities
141244,BRITISH GAS BUSINESS==========,9922007153,15,248.64,ELECTRICITY,02/11/2015,,Technical And Service Support,Utilities
141244,BRITISH GAS BUSINESS==========,9922007153,16,527.89,ELECTRICITY,02/11/2015,,Technical And Service Support,Utilities
141244,BRITISH GAS BUSINESS==========,9922007153,17,499.35,ELECTRICITY,02/11/2015,,Technical And Service Support,Utilities
141244,BRITISH GAS BUSINESS==========,9922007153,18,343.96,ELECTRICITY,02/11/2015,,Technical And Service Support,Utilities
141244,BRITISH GAS BUSINESS==========,9922007153,19,385.51,ELECTRICITY,02/11/2015,,Technical And Service Support,Utilities
141244,BRITISH GAS BUSINESS==========,9922007153,20,814.02,ELECTRICITY,02/11/2015,,Technical And Service Support,Utilities
141244,BRITISH GAS BUSINESS==========,9922007153,21,374.74,ELECTRICITY,02/11/2015,,Technical And Service Support,Utilities
141244,BRITISH GAS BUSINESS==========,9922007153,22,"1,293.85",ELECTRICITY,02/11/2015,,Technical And Service Support,Utilities
141244,BRITISH GAS BUSINESS==========,9922007153,23,311.04,ELECTRICITY,02/11/2015,,Technical And Service Support,Utilities
141244,BRITISH GAS BUSINESS==========,9922007153,24,331.94,ELECTRICITY,02/11/2015,,Technical And Service Support,Utilities
141244,BRITISH GAS BUSINESS==========,9922007153,25,297.39,ELECTRICITY,02/11/2015,,Technical And Service Support,Utilities
141244,BRITISH GAS BUSINESS==========,9922007153,26,410.62,ELECTRICITY,02/11/2015,,Technical And Service Support,Utilities
141244,BRITISH GAS BUSINESS==========,9922007153,27,242.31,ELECTRICITY,02/11/2015,,Technical And Service Support,Utilities
141244,BRITISH GAS BUSINESS==========,9922007153,28,418.65,ELECTRICITY,02/11/2015,,Technical And Service Support,Utilities
141244,BRITISH GAS BUSINESS==========,9922007153,29,417.4,ELECTRICITY,02/11/2015,,Technical And Service Support,Utilities
141244,BRITISH GAS BUSINESS==========,9922007153,30,382.14,ELECTRICITY,02/11/2015,,Technical And Service Support,Utilities
161015M,THE GEOINFORMATION GROUP======,D151005,1,"9,250.00",CONSULTANTS,02/11/2015,"9,250.00",Information Management,Consultancy
800068989,ALLSTAR BUSINESS SOLUTIONS LTD,E2005554905,1,657.01,FUEL,02/11/2015,"15,893.01",Central Operations,Vehicle Management
800068989,ALLSTAR BUSINESS SOLUTIONS LTD,E2005554905,2,567.06,FUEL,02/11/2015,,Operations Fire Stations,Vehicle Management
800068989,ALLSTAR BUSINESS SOLUTIONS LTD,E2005554905,3,543.71,FUEL,02/11/2015,,Operations Fire Stations,Vehicle Management
800068989,ALLSTAR BUSINESS SOLUTIONS LTD,E2005554905,4,417.75,FUEL,02/11/2015,,Procurement,Vehicle Management
800068989,ALLSTAR BUSINESS SOLUTIONS LTD,E2005554905,5,388.52,FUEL,02/11/2015,,Operations Fire Stations,Vehicle Management
800068989,ALLSTAR BUSINESS SOLUTIONS LTD,E2005554905,6,375.95,FUEL,02/11/2015,,Operations Fire Stations,Vehicle Management
800068989,ALLSTAR BUSINESS SOLUTIONS LTD,E2005554905,7,374.58,FUEL,02/11/2015,,Operations Fire Stations,Vehicle Management
800068989,ALLSTAR BUSINESS SOLUTIONS LTD,E2005554905,8,361.85,FUEL,02/11/2015,,Operations Fire Stations,Vehicle Management
800068989,ALLSTAR BUSINESS SOLUTIONS LTD,E2005554905,9,345.14,FUEL,02/11/2015,,Operations Fire Stations,Vehicle Management
800068989,ALLSTAR BUSINESS SOLUTIONS LTD,E2005554905,10,302.53,FUEL,02/11/2015,,Operations Fire Stations,Vehicle Management
800068989,ALLSTAR BUSINESS SOLUTIONS LTD,E2005554905,11,284.44,FUEL,02/11/2015,,Operations Fire Stations,Vehicle Management
800068989,ALLSTAR BUSINESS SOLUTIONS LTD,E2005554905,12,277.23,FUEL,02/11/2015,,Operations Fire Stations,Vehicle Management
800068989,ALLSTAR BUSINESS SOLUTIONS LTD,E2005554905,13,270.64,FUEL,02/11/2015,,Operations Fire Stations,Vehicle Management
800068989,ALLSTAR BUSINESS SOLUTIONS LTD,E2005554905,14,263.47,FUEL,02/11/2015,,Operations Fire Stations,Vehicle Management
800068989,ALLSTAR BUSINESS SOLUTIONS LTD,E2005554905,15,259.26,FUEL,02/11/2015,,Operations Fire Stations,Vehicle Management
800068989,ALLSTAR BUSINESS SOLUTIONS LTD,E2005554905,16,255.08,FUEL,02/11/2015,,Operations Fire Stations,Vehicle Management
800068989,ALLSTAR BUSINESS SOLUTIONS LTD,E2005554905,17,251.42,FUEL,02/11/2015,,Operations Fire Stations,Vehicle Management
800068989,ALLSTAR BUSINESS SOLUTIONS LTD,E2005554905,18,247.59,FUEL,02/11/2015,,Operations Fire Stations,Vehicle Management
800068989,ALLSTAR BUSINESS SOLUTIONS LTD,E2005554905,19,245.05,FUEL,02/11/2015,,Operations Fire Stations,Vehicle Management
800068989,ALLSTAR BUSINESS SOLUTIONS LTD,E2005554905,20,236.77,FUEL,02/11/2015,,Operations Fire Stations,Vehicle Management
800068989,ALLSTAR BUSINESS SOLUTIONS LTD,E2005554905,21,229.93,FUEL,02/11/2015,,Operations Fire Stations,Vehicle Management
800068989,ALLSTAR BUSINESS SOLUTIONS LTD,E2005554905,22,226.37,FUEL,02/11/2015,,Operations Fire Stations,Vehicle Management
800068989,ALLSTAR BUSINESS SOLUTIONS LTD,E2005554905,23,199.52,FUEL,02/11/2015,,Operations Fire Stations,Vehicle Management
800068989,ALLSTAR BUSINESS SOLUTIONS LTD,E2005554905,24,197.43,FUEL,02/11/2015,,Operations Fire Stations,Vehicle Management
800068989,ALLSTAR BUSINESS SOLUTIONS LTD,E2005554905,25,196.28,FUEL,02/11/2015,,Operations Fire Stations,Vehicle Management
800068989,ALLSTAR BUSINESS SOLUTIONS LTD,E2005554905,26,193.86,FUEL,02/11/2015,,Fire Safety Regulation,Vehicle Management
800068989,ALLSTAR BUSINESS SOLUTIONS LTD,E2005554905,27,188.27,FUEL,02/11/2015,,Operations Fire Stations,Vehicle Management
800068989,ALLSTAR BUSINESS SOLUTIONS LTD,E2005554905,28,187.44,FUEL,02/11/2015,,Operations Fire Stations,Vehicle Management
800068989,ALLSTAR BUSINESS SOLUTIONS LTD,E2005554905,29,186.72,FUEL,02/11/2015,,Operations Fire Stations,Vehicle Management
800068989,ALLSTAR BUSINESS SOLUTIONS LTD,E2005554905,30,178.47,FUEL,02/11/2015,,Operations Fire Stations,Vehicle Management
800068989,ALLSTAR BUSINESS SOLUTIONS LTD,E2005554905,31,175.32,FUEL,02/11/2015,,Operations Fire Stations,Vehicle Management
800068989,ALLSTAR BUSINESS SOLUTIONS LTD,E2005554905,32,171.51,FUEL,02/11/2015,,Operations Fire Stations,Vehicle Management
800068989,ALLSTAR BUSINESS SOLUTIONS LTD,E2005554905,33,167.98,FUEL,02/11/2015,,Operations Fire Stations,Vehicle Management
800068989,ALLSTAR BUSINESS SOLUTIONS LTD,E2005554905,34,167.09,FUEL,02/11/2015,,Operations Fire Stations,Vehicle Management
800068989,ALLSTAR BUSINESS SOLUTIONS LTD,E2005554905,35,164.03,FUEL,02/11/2015,,Operations Fire Stations,Vehicle Management
800068989,ALLSTAR BUSINESS SOLUTIONS LTD,E2005554905,36,162.98,FUEL,02/11/2015,,Operations Fire Stations,Vehicle Management
800068989,ALLSTAR BUSINESS SOLUTIONS LTD,E2005554905,37,162.97,FUEL,02/11/2015,,Operations Fire Stations,Vehicle Management
800068989,ALLSTAR BUSINESS SOLUTIONS LTD,E2005554905,38,161.89,FUEL,02/11/2015,,Operations Fire Stations,Vehicle Management
800068989,ALLSTAR BUSINESS SOLUTIONS LTD,E2005554905,39,159.9,FUEL,02/11/2015,,Operations Fire Stations,Vehicle Management
800068989,ALLSTAR BUSINESS SOLUTIONS LTD,E2005554905,40,153.92,FUEL,02/11/2015,,Operations Fire Stations,Vehicle Management
800068989,ALLSTAR BUSINESS SOLUTIONS LTD,E2005554905,41,151.42,FUEL,02/11/2015,,Operations Fire Stations,Vehicle Management
800068989,ALLSTAR BUSINESS SOLUTIONS LTD,E2005554905,42,145.73,FUEL,02/11/2015,,Operations Fire Stations,Vehicle Management
800068989,ALLSTAR BUSINESS SOLUTIONS LTD,E2005554905,43,145.57,FUEL,02/11/2015,,Operations Fire Stations,Vehicle Management
800068989,ALLSTAR BUSINESS SOLUTIONS LTD,E2005554905,44,144.87,FUEL,02/11/2015,,Operations Fire Stations,Vehicle Management
800068989,ALLSTAR BUSINESS SOLUTIONS LTD,E2005554905,45,144.36,FUEL,02/11/2015,,Operations Fire Stations,Vehicle Management
800068989,ALLSTAR BUSINESS SOLUTIONS LTD,E2005554905,46,143.17,FUEL,02/11/2015,,Command Units,Vehicle Management
800068989,ALLSTAR BUSINESS SOLUTIONS LTD,E2005554905,47,141.78,FUEL,02/11/2015,,Operations Fire Stations,Vehicle Management
800068989,ALLSTAR BUSINESS SOLUTIONS LTD,E2005554905,48,139.3,FUEL,02/11/2015,,Command Units,Vehicle Management
800068989,ALLSTAR BUSINESS SOLUTIONS LTD,E2005554905,49,137.94,FUEL,02/11/2015,,Operations Fire Stations,Vehicle Management
800068989,ALLSTAR BUSINESS SOLUTIONS LTD,E2005554905,50,137.46,FUEL,02/11/2015,,Operations Fire Stations,Vehicle Management
800068989,ALLSTAR BUSINESS SOLUTIONS LTD,E2005554905,51,134.84,FUEL,02/11/2015,,Operations Fire Stations,Vehicle Management
800068989,ALLSTAR BUSINESS SOLUTIONS LTD,E2005554905,52,132.21,FUEL,02/11/2015,,Command Units,Vehicle Management
800068989,ALLSTAR BUSINESS SOLUTIONS LTD,E2005554905,53,126.63,FUEL,02/11/2015,,Operations Fire Stations,Vehicle Management
800068989,ALLSTAR BUSINESS SOLUTIONS LTD,E2005554905,54,112.23,FUEL,02/11/2015,,Operations Fire Stations,Vehicle Management
800068989,ALLSTAR BUSINESS SOLUTIONS LTD,E2005554905,55,110.97,FUEL,02/11/2015,,Operations Fire Stations,Vehicle Management
800068989,ALLSTAR BUSINESS SOLUTIONS LTD,E2005554905,56,108.8,FUEL,02/11/2015,,Command Units,Vehicle Management
800068989,ALLSTAR BUSINESS SOLUTIONS LTD,E2005554905,57,107.44,FUEL,02/11/2015,,Operations Fire Stations,Vehicle Management
800068989,ALLSTAR BUSINESS SOLUTIONS LTD,E2005554905,58,106.81,FUEL,02/11/2015,,Operations Fire Stations,Vehicle Management
800068989,ALLSTAR BUSINESS SOLUTIONS LTD,E2005554905,59,105.02,FUEL,02/11/2015,,Operational Resilience,Vehicle Management
800068989,ALLSTAR BUSINESS SOLUTIONS LTD,E2005554905,60,104.25,FUEL,02/11/2015,,Operations Fire Stations,Vehicle Management
800068989,ALLSTAR BUSINESS SOLUTIONS LTD,E2005554905,61,103.65,FUEL,02/11/2015,,Operations Fire Stations,Vehicle Management
800068989,ALLSTAR BUSINESS SOLUTIONS LTD,E2005554905,62,102.82,FUEL,02/11/2015,,Operations Fire Stations,Vehicle Management
800068989,ALLSTAR BUSINESS SOLUTIONS LTD,E2005554905,63,100.37,FUEL,02/11/2015,,Operations Fire Stations,Vehicle Management
800068989,ALLSTAR BUSINESS SOLUTIONS LTD,E2005554905,64,99.64,FUEL,02/11/2015,,Operations Fire Stations,Vehicle Management
800068989,ALLSTAR BUSINESS SOLUTIONS LTD,E2005554905,65,99.47,FUEL,02/11/2015,,Operations Fire Stations,Vehicle Management
800068989,ALLSTAR BUSINESS SOLUTIONS LTD,E2005554905,66,92.91,FUEL,02/11/2015,,Operations Fire Stations,Vehicle Management
800068989,ALLSTAR BUSINESS SOLUTIONS LTD,E2005554905,67,91.25,FUEL,02/11/2015,,Operations Fire Stations,Vehicle Management
800068989,ALLSTAR BUSINESS SOLUTIONS LTD,E2005554905,68,89.89,FUEL,02/11/2015,,Operations Fire Stations,Vehicle Management
800068989,ALLSTAR BUSINESS SOLUTIONS LTD,E2005554905,69,88.62,FUEL,02/11/2015,,Information and Communication Technology,Vehicle Management
800068989,ALLSTAR BUSINESS SOLUTIONS LTD,E2005554905,70,87.98,FUEL,02/11/2015,,Operations Fire Stations,Vehicle Management
800068989,ALLSTAR BUSINESS SOLUTIONS LTD,E2005554905,71,87.96,FUEL,02/11/2015,,Operations Fire Stations,Vehicle Management
800068989,ALLSTAR BUSINESS SOLUTIONS LTD,E2005554905,72,84.86,FUEL,02/11/2015,,Operations Fire Stations,Vehicle Management
800068989,ALLSTAR BUSINESS SOLUTIONS LTD,E2005554905,73,84.59,FUEL,02/11/2015,,Operations Fire Stations,Vehicle Management
800068989,ALLSTAR BUSINESS SOLUTIONS LTD,E2005554905,74,82.43,FUEL,02/11/2015,,Operations Fire Stations,Vehicle Management
800068989,ALLSTAR BUSINESS SOLUTIONS LTD,E2005554905,75,82.3,FUEL,02/11/2015,,Operations Fire Stations,Vehicle Management
800068989,ALLSTAR BUSINESS SOLUTIONS LTD,E2005554905,76,81.45,FUEL,02/11/2015,,Operations Fire Stations,Vehicle Management
800068989,ALLSTAR BUSINESS SOLUTIONS LTD,E2005554905,77,80.34,FUEL,02/11/2015,,Operations Fire Stations,Vehicle Management
800068989,ALLSTAR BUSINESS SOLUTIONS LTD,E2005554905,78,77.18,FUEL,02/11/2015,,Operations Fire Stations,Vehicle Management
800068989,ALLSTAR BUSINESS SOLUTIONS LTD,E2005554905,79,76.53,FUEL,02/11/2015,,Operations Fire Stations,Vehicle Management
800068989,ALLSTAR BUSINESS SOLUTIONS LTD,E2005554905,80,76.35,FUEL,02/11/2015,,Operations Fire Stations,Vehicle Management
800068989,ALLSTAR BUSINESS SOLUTIONS LTD,E2005554905,81,74.47,FUEL,02/11/2015,,Operations Non Fire Stations,Vehicle Management
800068989,ALLSTAR BUSINESS SOLUTIONS LTD,E2005554905,82,67.41,FUEL,02/11/2015,,CBRN RRT,Vehicle Management
800068989,ALLSTAR BUSINESS SOLUTIONS LTD,E2005554905,83,62.34,FUEL,02/11/2015,,Operations Fire Stations,Vehicle Management
800068989,ALLSTAR BUSINESS SOLUTIONS LTD,E2005554905,84,59.25,FUEL,02/11/2015,,Command Units,Vehicle Management
800068989,ALLSTAR BUSINESS SOLUTIONS LTD,E2005554905,85,58.48,FUEL,02/11/2015,,Command Units,Vehicle Management
800068989,ALLSTAR BUSINESS SOLUTIONS LTD,E2005554905,86,57.1,FUEL,02/11/2015,,Operations Fire Stations,Vehicle Management
800068989,ALLSTAR BUSINESS SOLUTIONS LTD,E2005554905,87,56.2,FUEL,02/11/2015,,Operational Resilience,Vehicle Management
800068989,ALLSTAR BUSINESS SOLUTIONS LTD,E2005554905,88,53.17,FUEL,02/11/2015,,Operational Policy,Vehicle Management
800068989,ALLSTAR BUSINESS SOLUTIONS LTD,E2005554905,89,52.15,FUEL,02/11/2015,,Technical And Service Support,Vehicle Management
800068989,ALLSTAR BUSINESS SOLUTIONS LTD,E2005554905,90,50.83,FUEL,02/11/2015,,Command Units,Vehicle Management
800068989,ALLSTAR BUSINESS SOLUTIONS LTD,E2005554905,91,48.92,FUEL,02/11/2015,,Operations Fire Stations,Vehicle Management
800068989,ALLSTAR BUSINESS SOLUTIONS LTD,E2005554905,92,45.59,FUEL,02/11/2015,,Operations Fire Stations,Vehicle Management
800068989,ALLSTAR BUSINESS SOLUTIONS LTD,E2005554905,93,43.83,FUEL,02/11/2015,,Operations Non Fire Stations,Vehicle Management
800068989,ALLSTAR BUSINESS SOLUTIONS LTD,E2005554905,94,41.1,FUEL,02/11/2015,,Operations Fire Stations,Vehicle Management
800068989,ALLSTAR BUSINESS SOLUTIONS LTD,E2005554905,95,38.98,FUEL,02/11/2015,,Operations Fire Stations,Vehicle Management
800068989,ALLSTAR BUSINESS SOLUTIONS LTD,E2005554905,96,37.34,FUEL,02/11/2015,,LIFE - LFB Funded,Vehicle Management
800068989,ALLSTAR BUSINESS SOLUTIONS LTD,E2005554905,97,31.47,FUEL,02/11/2015,,Operations Fire Stations,Vehicle Management
800068989,ALLSTAR BUSINESS SOLUTIONS LTD,E2005554905,98,25.29,FUEL,02/11/2015,,Operations Fire Stations,Vehicle Management
800068989,ALLSTAR BUSINESS SOLUTIONS LTD,E2005554905,99,23.14,FUEL,02/11/2015,,Operations Fire Stations,Vehicle Management
800068989,ALLSTAR BUSINESS SOLUTIONS LTD,E2005554905,100,19.41,FUEL,02/11/2015,,Operations Fire Stations,Vehicle Management
800068989,ALLSTAR BUSINESS SOLUTIONS LTD,E2005554905,101,17.5,FUEL,02/11/2015,,Control and Mobilising,Vehicle Management
800068989,ALLSTAR BUSINESS SOLUTIONS LTD,E2005554905,102,15.02,FUEL,02/11/2015,,Community Safety Delivery,Vehicle Management
800068989,ALLSTAR BUSINESS SOLUTIONS LTD,E2005554905,103,5.7,FUEL,02/11/2015,,Operations Fire Stations,Vehicle Management
281015H,MOTT MACDONALD============,IN00325701,1,"15,313.00",GENERAL,02/11/2015,"15,313.00",Control and Mobilising,Consultancy
281015H,MOTT MACDONALD============,IN00325704,1,260.95,GENERAL,02/11/2015,260.95,Control and Mobilising,Consultancy
191015H,OPP LTD=======================,INV0579714,1,"1,261.00",ASSESSMENTS,02/11/2015,"1,261.00",HR Management,Human Resources
141246,LEX AUTOLEASE,IRIN420864,1,"2,294.30",LEASE CAR CHARGES,02/11/2015,"4,539.00",Procurement,Vehicle Management
141246,LEX AUTOLEASE,IRIN420864,2,"2,244.70",P/PAYMTS-CAR LEASG-RENTAL,02/11/2015,,Finance Services,Vehicle Management
141246,LEX AUTOLEASE,IRIN420864,3,-396.24,VAT CAR LEASING,02/11/2015,,Finance Services,Vehicle Management
141246,LEX AUTOLEASE,IRIN420864,4,396.24,LEASE CAR CHARGES,02/11/2015,,Procurement,Vehicle Management
141246,LEX AUTOLEASE,IRIN422024,1,"1,870.34",LEASE CAR CHARGES,02/11/2015,"3,824.28",Procurement,Vehicle Management
141246,LEX AUTOLEASE,IRIN422024,2,"1,953.94",P/PAYMTS-CAR LEASG-RENTAL,02/11/2015,,Finance Services,Vehicle Management
141246,LEX AUTOLEASE,IRIN422024,3,-360.48,VAT CAR LEASING,02/11/2015,,Finance Services,Vehicle Management
141246,LEX AUTOLEASE,IRIN422024,4,360.48,LEASE CAR CHARGES,02/11/2015,,Procurement,Vehicle Management
271015H,QA LIMITED,ISL130329,1,"10,000.00",PROFESSIONAL DEVELOPMENT,02/11/2015,"10,000.00",Information and Communication Technology,Human Resources
281015H,JACKSON LIFT GROUP============,JS438625R,1,"4,733.00",STRATEGIC (CYCLICAL),02/11/2015,"9,404.00",Technical and Service Support,Facilities & Management S
281015H,JACKSON LIFT GROUP============,JS438625R,2,"2,105.00",STRATEGIC (CYCLICAL),02/11/2015,,Technical and Service Support,Facilities & Management S
281015H,JACKSON LIFT GROUP============,JS438625R,3,"1,435.00",STRATEGIC (CYCLICAL),02/11/2015,,Technical and Service Support,Facilities & Management S
281015H,JACKSON LIFT GROUP============,JS438625R,4,138,STRATEGIC (CYCLICAL),02/11/2015,,Technical and Service Support,Facilities & Management S
281015H,JACKSON LIFT GROUP============,JS438625R,5,77,STRATEGIC (CYCLICAL),02/11/2015,,Technical and Service Support,Facilities & Management S
281015H,JACKSON LIFT GROUP============,JS438625R,6,554,STRATEGIC (CYCLICAL),02/11/2015,,Technical And Service Support,Facilities & Management S
281015H,JACKSON LIFT GROUP============,JS438625R,7,138,STRATEGIC (CYCLICAL),02/11/2015,,Technical and Service Support,Facilities & Management S
281015H,JACKSON LIFT GROUP============,JS438625R,8,224,STRATEGIC (CYCLICAL),02/11/2015,,Technical And Service Support,Facilities & Management S
141246,THE KITTLE PARTNERSHIP LTD====,K605,1,"2,125.00",OTHER EXPERTS FEES,02/11/2015,"2,125.00",Compensation Budgets,Legal Services
141246,THE KITTLE PARTNERSHIP LTD====,K609,1,437.5,OTHER EXPERTS FEES,02/11/2015,437.5,Compensation Budgets,Legal Services
261015H,COFELY WORKPLACE LIMITED,M138533,1,"1,623.22",STRATEGIC (NON CYCLICAL),02/11/2015,"1,623.22",Technical and Service Support,"Works - Construction, R&M"
800067450,*THOMAS KNEALE & CO LTD,TK111848,1,124.9,COMMUNITY RELATIONS,02/11/2015,"1,008.16",Community Safety Delivery,Furniture
800067450,*THOMAS KNEALE & CO LTD,TK111848,2,6.94,CLOTHING,02/11/2015,,Operations Fire Stations,Furniture
800067450,*THOMAS KNEALE & CO LTD,TK111848,3,2.96,CLOTHING,02/11/2015,,Operations Fire Stations,Furniture
800067450,*THOMAS KNEALE & CO LTD,TK111848,4,10.89,CLOTHING,02/11/2015,,Operations Fire Stations,Furniture
800067450,*THOMAS KNEALE & CO LTD,TK111848,5,1.48,CLOTHING,02/11/2015,,Operations Fire Stations,Furniture
800067450,*THOMAS KNEALE & CO LTD,TK111848,6,3.47,CLOTHING,02/11/2015,,Operations Fire Stations,Furniture
800067450,*THOMAS KNEALE & CO LTD,TK111848,7,107.96,OFFICE FURNITURE,02/11/2015,,Operations Fire Stations,Furniture
800067450,*THOMAS KNEALE & CO LTD,TK111848,8,0.99,CLOTHING,02/11/2015,,Operations Fire Stations,Furniture
800067450,*THOMAS KNEALE & CO LTD,TK111848,9,10.89,CLOTHING,02/11/2015,,Operations Fire Stations,Furniture
800067450,*THOMAS KNEALE & CO LTD,TK111848,10,2.96,CLOTHING,02/11/2015,,Operations Fire Stations,Furniture
800067450,*THOMAS KNEALE & CO LTD,TK111848,11,3.47,CLOTHING,02/11/2015,,Operations Fire Stations,Furniture
800067450,*THOMAS KNEALE & CO LTD,TK111848,12,2.84,OFFICE FURNITURE,02/11/2015,,Operations Fire Stations,Furniture
800067450,*THOMAS KNEALE & CO LTD,TK111848,13,10.89,CLOTHING,02/11/2015,,Operations Fire Stations,Furniture
800067450,*THOMAS KNEALE & CO LTD,TK111848,14,10.89,CLOTHING,02/11/2015,,Operations Fire Stations,Furniture
800067450,*THOMAS KNEALE & CO LTD,TK111848,15,0.99,CLOTHING,02/11/2015,,Operations Fire Stations,Furniture
800067450,*THOMAS KNEALE & CO LTD,TK111848,16,3.47,CLOTHING,02/11/2015,,Operations Fire Stations,Furniture
800067450,*THOMAS KNEALE & CO LTD,TK111848,17,1.48,CLOTHING,02/11/2015,,Operations Fire Stations,Furniture
800067450,*THOMAS KNEALE & CO LTD,TK111848,18,2.84,OFFICE FURNITURE,02/11/2015,,Operations Fire Stations,Furniture
800067450,*THOMAS KNEALE & CO LTD,TK111848,19,10.89,CLOTHING,02/11/2015,,Operations Fire Stations,Furniture
800067450,*THOMAS KNEALE & CO LTD,TK111848,20,3.47,CLOTHING,02/11/2015,,Operations Fire Stations,Furniture
800067450,*THOMAS KNEALE & CO LTD,TK111848,21,1.48,CLOTHING,02/11/2015,,Operations Fire Stations,Furniture
800067450,*THOMAS KNEALE & CO LTD,TK111848,22,6.94,CLOTHING,02/11/2015,,Operations Fire Stations,Furniture
800067450,*THOMAS KNEALE & CO LTD,TK111848,23,4.98,OFFICE FURNITURE,02/11/2015,,Operations Fire Stations,Furniture
800067450,*THOMAS KNEALE & CO LTD,TK111848,24,10.89,CLOTHING,02/11/2015,,Operations Fire Stations,Furniture
800067450,*THOMAS KNEALE & CO LTD,TK111848,25,2.84,OFFICE FURNITURE,02/11/2015,,Operations Fire Stations,Furniture
800067450,*THOMAS KNEALE & CO LTD,TK111848,26,3.47,CLOTHING,02/11/2015,,Operations Fire Stations,Furniture
800067450,*THOMAS KNEALE & CO LTD,TK111848,27,1.48,CLOTHING,02/11/2015,,Operations Fire Stations,Furniture
800067450,*THOMAS KNEALE & CO LTD,TK111848,28,10.89,CLOTHING,02/11/2015,,Operations Fire Stations,Furniture
800067450,*THOMAS KNEALE & CO LTD,TK111848,29,0.99,CLOTHING,02/11/2015,,Operations Fire Stations,Furniture
800067450,*THOMAS KNEALE & CO LTD,TK111848,30,10.89,CLOTHING,02/11/2015,,Operations Fire Stations,Furniture
800067450,*THOMAS KNEALE & CO LTD,TK111848,31,0.99,CLOTHING,02/11/2015,,Operations Fire Stations,Furniture
800067450,*THOMAS KNEALE & CO LTD,TK111848,32,10.89,CLOTHING,02/11/2015,,Operations Fire Stations,Furniture
800067450,*THOMAS KNEALE & CO LTD,TK111848,33,5.35,CLOTHING,02/11/2015,,Operations Fire Stations,Furniture
800067450,*THOMAS KNEALE & CO LTD,TK111848,34,2.96,CLOTHING,02/11/2015,,Operations Fire Stations,Furniture
800067450,*THOMAS KNEALE & CO LTD,TK111848,35,10.89,CLOTHING,02/11/2015,,Operations Fire Stations,Furniture
800067450,*THOMAS KNEALE & CO LTD,TK111848,36,3.47,CLOTHING,02/11/2015,,Operations Fire Stations,Furniture
800067450,*THOMAS KNEALE & CO LTD,TK111848,37,1.48,CLOTHING,02/11/2015,,Operations Fire Stations,Furniture
800067450,*THOMAS KNEALE & CO LTD,TK111848,38,10.89,CLOTHING,02/11/2015,,Operations Fire Stations,Furniture
800067450,*THOMAS KNEALE & CO LTD,TK111848,39,6.94,CLOTHING,02/11/2015,,Operations Fire Stations,Furniture
800067450,*THOMAS KNEALE & CO LTD,TK111848,40,2.96,CLOTHING,02/11/2015,,Operations Fire Stations,Furniture
800067450,*THOMAS KNEALE & CO LTD,TK111848,41,2.96,CLOTHING,02/11/2015,,Operations Fire Stations,Furniture
800067450,*THOMAS KNEALE & CO LTD,TK111848,42,6.94,CLOTHING,02/11/2015,,Operations Fire Stations,Furniture
800067450,*THOMAS KNEALE & CO LTD,TK111848,43,10.89,CLOTHING,02/11/2015,,Operations Fire Stations,Furniture
800067450,*THOMAS KNEALE & CO LTD,TK111848,44,1.98,CLOTHING,02/11/2015,,Operations Fire Stations,Furniture
800067450,*THOMAS KNEALE & CO LTD,TK111848,45,3.47,CLOTHING,02/11/2015,,Operations Fire Stations,Furniture
800067450,*THOMAS KNEALE & CO LTD,TK111848,46,2.96,CLOTHING,02/11/2015,,Operations Fire Stations,Furniture
800067450,*THOMAS KNEALE & CO LTD,TK111848,47,10.89,CLOTHING,02/11/2015,,Operations Fire Stations,Furniture
800067450,*THOMAS KNEALE & CO LTD,TK111848,48,3.47,CLOTHING,02/11/2015,,Operations Fire Stations,Furniture
800067450,*THOMAS KNEALE & CO LTD,TK111848,49,1.48,CLOTHING,02/11/2015,,Operations Fire Stations,Furniture
800067450,*THOMAS KNEALE & CO LTD,TK111848,50,2.96,CLOTHING,02/11/2015,,Operations Fire Stations,Furniture
800067450,*THOMAS KNEALE & CO LTD,TK111848,51,10.89,CLOTHING,02/11/2015,,Operations Fire Stations,Furniture
800067450,*THOMAS KNEALE & CO LTD,TK111848,52,10.89,CLOTHING,02/11/2015,,Operations Fire Stations,Furniture
800067450,*THOMAS KNEALE & CO LTD,TK111848,53,10.89,CLOTHING,02/11/2015,,Operations Fire Stations,Furniture
800067450,*THOMAS KNEALE & CO LTD,TK111848,54,2.84,OFFICE FURNITURE,02/11/2015,,Operations Fire Stations,Furniture
800067450,*THOMAS KNEALE & CO LTD,TK111848,55,10.89,CLOTHING,02/11/2015,,Operations Fire Stations,Furniture
800067450,*THOMAS KNEALE & CO LTD,TK111848,56,2.59,OFFICE FURNITURE,02/11/2015,,Operations Fire Stations,Furniture
800067450,*THOMAS KNEALE & CO LTD,TK111848,57,3.47,CLOTHING,02/11/2015,,Operations Fire Stations,Furniture
800067450,*THOMAS KNEALE & CO LTD,TK111848,58,1.48,CLOTHING,02/11/2015,,Operations Fire Stations,Furniture
800067450,*THOMAS KNEALE & CO LTD,TK111848,59,10.89,CLOTHING,02/11/2015,,Operations Fire Stations,Furniture
800067450,*THOMAS KNEALE & CO LTD,TK111848,60,10.89,CLOTHING,02/11/2015,,Operations Fire Stations,Furniture
800067450,*THOMAS KNEALE & CO LTD,TK111848,61,10.89,CLOTHING,02/11/2015,,Operations Fire Stations,Furniture
800067450,*THOMAS KNEALE & CO LTD,TK111848,62,0.99,CLOTHING,02/11/2015,,Operations Fire Stations,Furniture
800067450,*THOMAS KNEALE & CO LTD,TK111848,63,10.89,CLOTHING,02/11/2015,,Operations Fire Stations,Furniture
800067450,*THOMAS KNEALE & CO LTD,TK111848,64,3.47,CLOTHING,02/11/2015,,Operations Fire Stations,Furniture
800067450,*THOMAS KNEALE & CO LTD,TK111848,65,1.48,CLOTHING,02/11/2015,,Operations Fire Stations,Furniture
800067450,*THOMAS KNEALE & CO LTD,TK111848,66,0.99,CLOTHING,02/11/2015,,Operations Fire Stations,Furniture
800067450,*THOMAS KNEALE & CO LTD,TK111848,67,10.89,CLOTHING,02/11/2015,,Operations Fire Stations,Furniture
800067450,*THOMAS KNEALE & CO LTD,TK111848,68,3.47,CLOTHING,02/11/2015,,Operations Fire Stations,Furniture
800067450,*THOMAS KNEALE & CO LTD,TK111848,69,1.48,CLOTHING,02/11/2015,,Operations Fire Stations,Furniture
800067450,*THOMAS KNEALE & CO LTD,TK111848,70,10.89,CLOTHING,02/11/2015,,Operations Fire Stations,Furniture
800067450,*THOMAS KNEALE & CO LTD,TK111848,71,3.47,CLOTHING,02/11/2015,,Operations Fire Stations,Furniture
800067450,*THOMAS KNEALE & CO LTD,TK111848,72,2.84,OFFICE FURNITURE,02/11/2015,,Operations Fire Stations,Furniture
800067450,*THOMAS KNEALE & CO LTD,TK111848,73,10.89,CLOTHING,02/11/2015,,Operations Fire Stations,Furniture
800067450,*THOMAS KNEALE & CO LTD,TK111848,74,3.47,CLOTHING,02/11/2015,,Operations Fire Stations,Furniture
800067450,*THOMAS KNEALE & CO LTD,TK111848,75,1.48,CLOTHING,02/11/2015,,Operations Fire Stations,Furniture
800067450,*THOMAS KNEALE & CO LTD,TK111848,76,6.94,CLOTHING,02/11/2015,,Operations Fire Stations,Furniture
800067450,*THOMAS KNEALE & CO LTD,TK111848,77,10.89,CLOTHING,02/11/2015,,Operations Fire Stations,Furniture
800067450,*THOMAS KNEALE & CO LTD,TK111848,78,10.89,CLOTHING,02/11/2015,,Operations Fire Stations,Furniture
800067450,*THOMAS KNEALE & CO LTD,TK111848,79,10.89,CLOTHING,02/11/2015,,Operations Fire Stations,Furniture
800067450,*THOMAS KNEALE & CO LTD,TK111848,80,10.89,CLOTHING,02/11/2015,,Operations Fire Stations,Furniture
800067450,*THOMAS KNEALE & CO LTD,TK111848,81,0.99,CLOTHING,02/11/2015,,Operations Fire Stations,Furniture
800067450,*THOMAS KNEALE & CO LTD,TK111848,82,2.84,OFFICE FURNITURE,02/11/2015,,Operations Fire Stations,Furniture
800067450,*THOMAS KNEALE & CO LTD,TK111848,83,10.89,CLOTHING,02/11/2015,,Operations Fire Stations,Furniture
800067450,*THOMAS KNEALE & CO LTD,TK111848,84,10.89,CLOTHING,02/11/2015,,Operations Fire Stations,Furniture
800067450,*THOMAS KNEALE & CO LTD,TK111848,85,0.99,CLOTHING,02/11/2015,,Operations Fire Stations,Furniture
800067450,*THOMAS KNEALE & CO LTD,TK111848,86,10.89,CLOTHING,02/11/2015,,Operations Fire Stations,Furniture
800067450,*THOMAS KNEALE & CO LTD,TK111848,87,10.89,CLOTHING,02/11/2015,,Operations Fire Stations,Furniture
800067450,*THOMAS KNEALE & CO LTD,TK111848,88,1.48,CLOTHING,02/11/2015,,Operations Fire Stations,Furniture
800067450,*THOMAS KNEALE & CO LTD,TK111848,89,2.84,OFFICE FURNITURE,02/11/2015,,Operations Fire Stations,Furniture
800067450,*THOMAS KNEALE & CO LTD,TK111848,90,6.94,CLOTHING,02/11/2015,,Operations Fire Stations,Furniture
800067450,*THOMAS KNEALE & CO LTD,TK111848,91,10.89,CLOTHING,02/11/2015,,Operations Fire Stations,Furniture
800067450,*THOMAS KNEALE & CO LTD,TK111848,92,10.89,CLOTHING,02/11/2015,,Operations Fire Stations,Furniture
800067450,*THOMAS KNEALE & CO LTD,TK111848,93,3.47,CLOTHING,02/11/2015,,Operations Fire Stations,Furniture
800067450,*THOMAS KNEALE & CO LTD,TK111848,94,1.48,CLOTHING,02/11/2015,,Operations Fire Stations,Furniture
800067450,*THOMAS KNEALE & CO LTD,TK111848,95,3.47,CLOTHING,02/11/2015,,Operations Fire Stations,Furniture
800067450,*THOMAS KNEALE & CO LTD,TK111848,96,1.48,CLOTHING,02/11/2015,,Operations Fire Stations,Furniture
800067450,*THOMAS KNEALE & CO LTD,TK111848,97,10.89,CLOTHING,02/11/2015,,Operations Fire Stations,Furniture
800067450,*THOMAS KNEALE & CO LTD,TK111848,98,10.89,CLOTHING,02/11/2015,,Operations Fire Stations,Furniture
800067450,*THOMAS KNEALE & CO LTD,TK111848,99,0.99,CLOTHING,02/11/2015,,Operations Fire Stations,Furniture
800067450,*THOMAS KNEALE & CO LTD,TK111848,100,2.84,OFFICE FURNITURE,02/11/2015,,Operations Fire Stations,Furniture
800067450,*THOMAS KNEALE & CO LTD,TK111848,101,10.89,CLOTHING,02/11/2015,,Operations Fire Stations,Furniture
800067450,*THOMAS KNEALE & CO LTD,TK111848,102,3.47,CLOTHING,02/11/2015,,Operations Fire Stations,Furniture
800067450,*THOMAS KNEALE & CO LTD,TK111848,103,10.89,CLOTHING,02/11/2015,,Operations Fire Stations,Furniture
800067450,*THOMAS KNEALE & CO LTD,TK111848,104,10.89,CLOTHING,02/11/2015,,Operations Fire Stations,Furniture
800067450,*THOMAS KNEALE & CO LTD,TK111848,105,0.99,CLOTHING,02/11/2015,,Operations Fire Stations,Furniture
800067450,*THOMAS KNEALE & CO LTD,TK111848,106,10.89,CLOTHING,02/11/2015,,Operations Fire Stations,Furniture
800067450,*THOMAS KNEALE & CO LTD,TK111848,107,10.89,CLOTHING,02/11/2015,,Operations Fire Stations,Furniture
800067450,*THOMAS KNEALE & CO LTD,TK111848,108,6.94,CLOTHING,02/11/2015,,Operations Fire Stations,Furniture
800067450,*THOMAS KNEALE & CO LTD,TK111848,109,2.96,CLOTHING,02/11/2015,,Operations Fire Stations,Furniture
800067450,*THOMAS KNEALE & CO LTD,TK111848,110,10.89,CLOTHING,02/11/2015,,Operations Fire Stations,Furniture
800067450,*THOMAS KNEALE & CO LTD,TK111848,111,6.94,CLOTHING,02/11/2015,,Operations Fire Stations,Furniture
800067450,*THOMAS KNEALE & CO LTD,TK111848,112,53.98,OFFICE FURNITURE,02/11/2015,,Operations Fire Stations,Furniture
800067450,*THOMAS KNEALE & CO LTD,TK111848,113,2.84,OFFICE FURNITURE,02/11/2015,,Operations Fire Stations,Furniture
800067450,*THOMAS KNEALE & CO LTD,TK111848,114,10.89,CLOTHING,02/11/2015,,Operations Fire Stations,Furniture
800067450,*THOMAS KNEALE & CO LTD,TK111848,115,0.99,CLOTHING,02/11/2015,,Operations Fire Stations,Furniture
800067450,*THOMAS KNEALE & CO LTD,TK111848,116,3.47,CLOTHING,02/11/2015,,Operations Fire Stations,Furniture
800067450,*THOMAS KNEALE & CO LTD,TK111848,117,1.48,CLOTHING,02/11/2015,,Operations Fire Stations,Furniture
800067450,*THOMAS KNEALE & CO LTD,TK111848,118,2.84,OFFICE FURNITURE,02/11/2015,,Operations Fire Stations,Furniture
800067450,*THOMAS KNEALE & CO LTD,TK111848,119,10.89,CLOTHING,02/11/2015,,Operations Fire Stations,Furniture
800067450,*THOMAS KNEALE & CO LTD,TK111848,120,10.89,CLOTHING,02/11/2015,,Operations Fire Stations,Furniture
800067450,*THOMAS KNEALE & CO LTD,TK111848,121,2.96,CLOTHING,02/11/2015,,Operations Fire Stations,Furniture
800067450,*THOMAS KNEALE & CO LTD,TK111848,122,10.89,CLOTHING,02/11/2015,,Operations Fire Stations,Furniture
800067450,*THOMAS KNEALE & CO LTD,TK111848,123,1.48,CLOTHING,02/11/2015,,Operations Fire Stations,Furniture
800067450,*THOMAS KNEALE & CO LTD,TK111848,124,2.84,OFFICE FURNITURE,02/11/2015,,Operations Fire Stations,Furniture
281015H,VODAFONE PAGING LTD===========,VR1433603,1,"1,885.05",CELLULAR TELEPHONES,02/11/2015,"1,885.05",Information and Communication Technology,ICT
191015H,HEALTH MANAGEMENT LIMITED=====,138350,1,250,THIRD PARTY REPORTS,05/11/2015,"2,212.83",HR Management,Healthcare
191015H,HEALTH MANAGEMENT LIMITED=====,138350,2,250,THIRD PARTY REPORTS,05/11/2015,,HR Management,Healthcare
191015H,HEALTH MANAGEMENT LIMITED=====,138350,3,"1,712.83",THIRD PARTY REPORTS,05/11/2015,,HR Management,Healthcare
291015G,MOOLANDS LTD,3278,1,127.14,STRATEGIC (NON CYCLICAL),05/11/2015,890,Technical and Service Support,"Works - Construction, R&M"
291015G,MOOLANDS LTD,3278,2,127.14,STRATEGIC (NON CYCLICAL),05/11/2015,,Technical and Service Support,"Works - Construction, R&M"
291015G,MOOLANDS LTD,3278,3,127.14,STRATEGIC (NON CYCLICAL),05/11/2015,,Technical and Service Support,"Works - Construction, R&M"
291015G,MOOLANDS LTD,3278,4,127.14,STRATEGIC (NON CYCLICAL),05/11/2015,,Technical and Service Support,"Works - Construction, R&M"
291015G,MOOLANDS LTD,3278,5,127.14,STRATEGIC (NON CYCLICAL),05/11/2015,,Technical and Service Support,"Works - Construction, R&M"
291015G,MOOLANDS LTD,3278,6,127.14,STRATEGIC (NON CYCLICAL),05/11/2015,,Technical and Service Support,"Works - Construction, R&M"
291015G,MOOLANDS LTD,3278,7,127.16,STRATEGIC (NON CYCLICAL),05/11/2015,,Technical and Service Support,"Works - Construction, R&M"
021115H,*HUNTER APPAREL SOLUTIONS LTD,66568,1,25.44,CLOTHING,05/11/2015,614.94,Firefighter Trainees,Clothing
021115H,*HUNTER APPAREL SOLUTIONS LTD,66568,2,22.92,CLOTHING,05/11/2015,,Firefighter Trainees,Clothing
021115H,*HUNTER APPAREL SOLUTIONS LTD,66568,3,25.44,CLOTHING,05/11/2015,,Firefighter Trainees,Clothing
021115H,*HUNTER APPAREL SOLUTIONS LTD,66568,4,22.92,CLOTHING,05/11/2015,,Firefighter Trainees,Clothing
021115H,*HUNTER APPAREL SOLUTIONS LTD,66568,5,25.44,CLOTHING,05/11/2015,,Firefighter Trainees,Clothing
021115H,*HUNTER APPAREL SOLUTIONS LTD,66568,6,22.92,CLOTHING,05/11/2015,,Firefighter Trainees,Clothing
021115H,*HUNTER APPAREL SOLUTIONS LTD,66568,7,25.44,CLOTHING,05/11/2015,,Firefighter Trainees,Clothing
021115H,*HUNTER APPAREL SOLUTIONS LTD,66568,8,22.92,CLOTHING,05/11/2015,,Firefighter Trainees,Clothing
021115H,*HUNTER APPAREL SOLUTIONS LTD,66568,9,25.44,CLOTHING,05/11/2015,,Firefighter Trainees,Clothing
021115H,*HUNTER APPAREL SOLUTIONS LTD,66568,10,22.92,CLOTHING,05/11/2015,,Firefighter Trainees,Clothing
021115H,*HUNTER APPAREL SOLUTIONS LTD,66568,11,25.44,CLOTHING,05/11/2015,,Firefighter Trainees,Clothing
021115H,*HUNTER APPAREL SOLUTIONS LTD,66568,12,22.92,CLOTHING,05/11/2015,,Firefighter Trainees,Clothing
021115H,*HUNTER APPAREL SOLUTIONS LTD,66568,13,25.44,CLOTHING,05/11/2015,,Firefighter Trainees,Clothing
021115H,*HUNTER APPAREL SOLUTIONS LTD,66568,14,22.92,CLOTHING,05/11/2015,,Firefighter Trainees,Clothing
021115H,*HUNTER APPAREL SOLUTIONS LTD,66568,15,25.44,CLOTHING,05/11/2015,,Firefighter Trainees,Clothing
021115H,*HUNTER APPAREL SOLUTIONS LTD,66568,16,22.92,CLOTHING,05/11/2015,,Firefighter Trainees,Clothing
021115H,*HUNTER APPAREL SOLUTIONS LTD,66568,17,25.44,CLOTHING,05/11/2015,,Firefighter Trainees,Clothing
021115H,*HUNTER APPAREL SOLUTIONS LTD,66568,18,22.92,CLOTHING,05/11/2015,,Firefighter Trainees,Clothing
021115H,*HUNTER APPAREL SOLUTIONS LTD,66568,19,25.44,CLOTHING,05/11/2015,,Firefighter Trainees,Clothing
021115H,*HUNTER APPAREL SOLUTIONS LTD,66568,20,22.92,CLOTHING,05/11/2015,,Firefighter Trainees,Clothing
021115H,*HUNTER APPAREL SOLUTIONS LTD,66568,21,25.44,CLOTHING,05/11/2015,,Firefighter Trainees,Clothing
021115H,*HUNTER APPAREL SOLUTIONS LTD,66568,22,22.92,CLOTHING,05/11/2015,,Firefighter Trainees,Clothing
021115H,*HUNTER APPAREL SOLUTIONS LTD,66568,23,25.44,CLOTHING,05/11/2015,,Firefighter Trainees,Clothing
021115H,*HUNTER APPAREL SOLUTIONS LTD,66568,24,22.92,CLOTHING,05/11/2015,,Firefighter Trainees,Clothing
021115H,*HUNTER APPAREL SOLUTIONS LTD,66568,25,5.85,CLOTHING,05/11/2015,,Firefighter Trainees,Clothing
021115H,*HUNTER APPAREL SOLUTIONS LTD,66568,26,5.85,CLOTHING,05/11/2015,,Firefighter Trainees,Clothing
021115H,*HUNTER APPAREL SOLUTIONS LTD,66568,27,7.64,CLOTHING,05/11/2015,,Firefighter Trainees,Clothing
021115H,*HUNTER APPAREL SOLUTIONS LTD,66568,28,7.64,CLOTHING,05/11/2015,,Firefighter Trainees,Clothing
021115H,*HUNTER APPAREL SOLUTIONS LTD,66568,29,7.64,CLOTHING,05/11/2015,,Firefighter Trainees,Clothing
261015H,MULTITONE ELECTRONICS PLC=====,103794,1,"4,400.00",PURCHASES-COMPUTER/EQUIPMENT,05/11/2015,"4,400.00",Information and Communication Technology,ICT
800068943,*JAMES HUNTER (OUTFITTERS) LTD,108392,1,145.74,CLOTHING,05/11/2015,385.18,Operations Fire Stations,Clothing
800068943,*JAMES HUNTER (OUTFITTERS) LTD,108392,2,239.44,CLOTHING,05/11/2015,,Operations Fire Stations,Clothing
301015H,VISTA LANDSCAPE MANAGEMENT LTD,121282,1,"2,712.50",GROUNDS MAINTENANCE,05/11/2015,"2,712.50",Technical And Service Support,"Works - Construction, R&M"
291015G,PARTNERS BY DESIGN LTD,1221026504,1,"1,997.50",GENERAL,05/11/2015,"1,997.50",Central Finance,Facilities & Management S
141250,MR ROBERT DICKASON,122609,1,625,COUNSELS FEES,05/11/2015,625,Compensation Budgets,Legal Services
021115H,GRANGEWOOD PLASTIC PACKAGING,129616,1,336,STATIONERY CONSUMABLES,05/11/2015,336,Central Operations,Stationery
211015H,BUREAU VERITAS HS&E LTD=======,15016212,1,"97,510.95",SCIENTIFIC SERVICES,05/11/2015,"97,510.95",Procurement,Environmental Services
301015H,RESPIREX======================,152946,1,30.67,REPAIR & MAINTENANCE,05/11/2015,306.06,Technical And Service Support,Clothing
301015H,RESPIREX======================,152946,2,57.67,REPAIR & MAINTENANCE,05/11/2015,,Technical And Service Support,Clothing
301015H,RESPIREX======================,152946,3,75.67,REPAIR & MAINTENANCE,05/11/2015,,Technical And Service Support,Clothing
301015H,RESPIREX======================,152946,4,142.05,REPAIR & MAINTENANCE,05/11/2015,,Technical And Service Support,Clothing
021115H,UK TAPES LTD==================,156204,1,967.2,GENERAL CONSUMABLES,05/11/2015,967.2,Procurement,Health & Safety
141248,THAMES WATER UTILITIES LTD====,1587371098J,1,410.81,WATER & SEWERAGE RATES,05/11/2015,410.81,Technical And Service Support,Utilities
141250,AFFINITY WATER,19038249J,1,262.79,WATER & SEWERAGE RATES,05/11/2015,262.79,Technical And Service Support,Utilities
231015H,ENERGY AUDITING AGENCY LTD====,20152118,1,330,PROFESSIONAL SERVICES,05/11/2015,330,Technical And Service Support,Statutory Bodies
141248,THAMES WATER UTILITIES LTD====,2406058171J,1,728.33,WATER & SEWERAGE RATES,05/11/2015,728.33,Technical And Service Support,Utilities
021115H,GRADIENT CONSULTANTS LLP======,2449,1,350,STRATEGIC (CYCLICAL),05/11/2015,"1,750.00",Technical and Service Support,"Works - Construction, R&M"
021115H,GRADIENT CONSULTANTS LLP======,2449,2,350,STRATEGIC (CYCLICAL),05/11/2015,,Technical and Service Support,"Works - Construction, R&M"
021115H,GRADIENT CONSULTANTS LLP======,2449,3,350,STRATEGIC (CYCLICAL),05/11/2015,,Technical and Service Support,"Works - Construction, R&M"
021115H,GRADIENT CONSULTANTS LLP======,2449,4,350,ASBESTOS,05/11/2015,,Technical and Service Support,"Works - Construction, R&M"
021115H,GRADIENT CONSULTANTS LLP======,2449,5,350,ASBESTOS,05/11/2015,,Technical and Service Support,"Works - Construction, R&M"
211015H,*LOCKHART CATERING EQUIPMENT,2543143,1,1.62,CATERING EQUIPMENT,05/11/2015,310.98,Operations Fire Stations,Catering
211015H,*LOCKHART CATERING EQUIPMENT,2543143,2,2.86,CATERING EQUIPMENT,05/11/2015,,Operations Fire Stations,Catering
211015H,*LOCKHART CATERING EQUIPMENT,2543143,3,2.69,CATERING EQUIPMENT,05/11/2015,,Operations Fire Stations,Catering
211015H,*LOCKHART CATERING EQUIPMENT,2543143,4,8.08,CATERING EQUIPMENT,05/11/2015,,Operations Fire Stations,Catering
211015H,*LOCKHART CATERING EQUIPMENT,2543143,5,14.38,CATERING EQUIPMENT,05/11/2015,,Operations Fire Stations,Catering
211015H,*LOCKHART CATERING EQUIPMENT,2543143,6,62.98,CATERING EQUIPMENT,05/11/2015,,Operations Fire Stations,Catering
211015H,*LOCKHART CATERING EQUIPMENT,2543143,7,34.18,CATERING EQUIPMENT,05/11/2015,,Operations Fire Stations,Catering
211015H,*LOCKHART CATERING EQUIPMENT,2543143,8,68.9,CATERING EQUIPMENT,05/11/2015,,Operations Fire Stations,Catering
211015H,*LOCKHART CATERING EQUIPMENT,2543143,9,80.14,CATERING EQUIPMENT,05/11/2015,,Operations Fire Stations,Catering
211015H,*LOCKHART CATERING EQUIPMENT,2543143,10,6.74,CATERING EQUIPMENT,05/11/2015,,Operations Fire Stations,Catering
211015H,*LOCKHART CATERING EQUIPMENT,2543143,11,3.59,CATERING EQUIPMENT,05/11/2015,,Operations Fire Stations,Catering
211015H,*LOCKHART CATERING EQUIPMENT,2543143,12,3.88,CATERING EQUIPMENT,05/11/2015,,Operations Fire Stations,Catering
211015H,*LOCKHART CATERING EQUIPMENT,2543143,13,6.92,CATERING EQUIPMENT,05/11/2015,,Operations Fire Stations,Catering
211015H,*LOCKHART CATERING EQUIPMENT,2543143,14,3.24,CATERING EQUIPMENT,05/11/2015,,Operations Fire Stations,Catering
211015H,*LOCKHART CATERING EQUIPMENT,2543143,15,10.78,CATERING EQUIPMENT,05/11/2015,,Operations Fire Stations,Catering
800068994,ADECCO UK LIMITED=============,27295132,1,439.6,FRS STAFF AGENCY,05/11/2015,439.6,Operations Non Fire Stations,Human Resources
800068995,ADECCO UK LIMITED=============,27295133,1,757.05,FRS STAFF AGENCY,05/11/2015,757.05,Communications,Human Resources
800068998,ADECCO UK LIMITED=============,27295134,1,392.5,FRS STAFF AGENCY,05/11/2015,392.5,Operations Non Fire Stations,Human Resources
800068999,ADECCO UK LIMITED=============,27295135,1,345.52,FRS STAFF AGENCY,05/11/2015,345.52,Communications,Human Resources
800069000,ADECCO UK LIMITED=============,27295136,1,"1,471.35",FRS STAFF AGENCY,05/11/2015,"1,471.35",Legal & Democratic Services,Human Resources
800069001,ADECCO UK LIMITED=============,27295137,1,905.73,FRS STAFF AGENCY,05/11/2015,905.73,Technical And Service Support,Human Resources
800069002,ADECCO UK LIMITED=============,27295138,1,554.75,FRS STAFF AGENCY,05/11/2015,554.75,Community Safety Delivery,Human Resources
800069003,ADECCO UK LIMITED=============,27295139,1,439.6,FRS STAFF AGENCY,05/11/2015,439.6,Technical And Service Support,Human Resources
800069004,ADECCO UK LIMITED=============,27295140,1,"1,390.20",FRS STAFF AGENCY,05/11/2015,"1,390.20",Review of Property Services,Human Resources
800069005,ADECCO UK LIMITED=============,27295141,1,922.25,FRS STAFF AGENCY,05/11/2015,922.25,Technical And Service Support,Human Resources
800069006,ADECCO UK LIMITED=============,27295142,1,900.2,FRS STAFF AGENCY,05/11/2015,900.2,Information Management,Human Resources
800069007,ADECCO UK LIMITED=============,27295143,1,900.2,FRS STAFF AGENCY,05/11/2015,900.2,Information Management,Human Resources
800068996,ADECCO UK LIMITED=============,27295144,1,624.4,FRS STAFF AGENCY,05/11/2015,624.4,Procurement,Human Resources
800068997,ADECCO UK LIMITED=============,27295145,1,788.28,FRS STAFF AGENCY,05/11/2015,788.28,National Operational Guidance Project,Human Resources
800069008,ADECCO UK LIMITED=============,27295148,1,624.4,FRS STAFF AGENCY,05/11/2015,624.4,Procurement,Human Resources
800069009,ADECCO UK LIMITED=============,27295149,1,523.54,FRS STAFF AGENCY,05/11/2015,523.54,National Operational Guidance Project,Human Resources
800069010,ADECCO UK LIMITED=============,27295150,1,554.75,FRS STAFF AGENCY,05/11/2015,554.75,Community Safety Delivery,Human Resources
800069011,ADECCO UK LIMITED=============,27295151,1,554.75,FRS STAFF AGENCY,05/11/2015,554.75,Exercise Unified Response,Human Resources
800069014,ADECCO UK LIMITED=============,27295152,1,"1,686.30",FRS STAFF AGENCY,05/11/2015,"1,686.30",National Operational Guidance Project,Human Resources
800069012,ADECCO UK LIMITED=============,27295153,1,900.2,FRS STAFF AGENCY,05/11/2015,900.2,National Operational Guidance Project,Human Resources
800069013,ADECCO UK LIMITED=============,27295154,1,900.2,FRS STAFF AGENCY,05/11/2015,900.2,National Operational Guidance Project,Human Resources
800069016,ADECCO UK LIMITED=============,27295156,1,900.2,FRS STAFF AGENCY,05/11/2015,900.2,HR Management,Human Resources
800069017,ADECCO UK LIMITED=============,27295157,1,606.56,FRS STAFF AGENCY,05/11/2015,606.56,HR Management,Human Resources
800069018,ADECCO UK LIMITED=============,27295158,1,624.4,FRS STAFF AGENCY,05/11/2015,624.4,HR Management,Human Resources
800069019,ADECCO UK LIMITED=============,27295159,1,"1,162.70",FRS STAFF AGENCY,05/11/2015,"1,162.70",Technical And Service Support,Human Resources
800069021,ADECCO UK LIMITED=============,27295161,1,624.4,FRS STAFF AGENCY,05/11/2015,624.4,Finance Services,Human Resources
800069022,ADECCO UK LIMITED=============,27295162,1,624.4,FRS STAFF AGENCY,05/11/2015,624.4,Information Management,Human Resources
800069023,ADECCO UK LIMITED=============,27295163,1,624.4,FRS STAFF AGENCY,05/11/2015,624.4,Operations Non Fire Stations,Human Resources
800069024,ADECCO UK LIMITED=============,27295164,1,624.4,FRS STAFF AGENCY,05/11/2015,624.4,Technical And Service Support,Human Resources
800069025,ADECCO UK LIMITED=============,27295165,1,302.82,FRS STAFF AGENCY,05/11/2015,302.82,Technical And Service Support,Human Resources
800069026,ADECCO UK LIMITED=============,27295166,1,439.6,FRS STAFF AGENCY,05/11/2015,439.6,Technical And Service Support,Human Resources
800069027,ADECCO UK LIMITED=============,27295167,1,"1,162.70",FRS STAFF AGENCY,05/11/2015,"1,162.70",Technical And Service Support,Human Resources
800069028,ADECCO UK LIMITED=============,27295168,1,439.6,FRS STAFF AGENCY,05/11/2015,439.6,Fire Safety Regulation,Human Resources
800069029,ADECCO UK LIMITED=============,27295169,1,439.6,FRS STAFF AGENCY,05/11/2015,439.6,Fire Safety Regulation,Human Resources
800069030,ADECCO UK LIMITED=============,27295170,1,439.6,FRS STAFF AGENCY,05/11/2015,439.6,Fire Safety Regulation,Human Resources
800069034,ADECCO UK LIMITED=============,27295171,1,263.76,FRS STAFF AGENCY,05/11/2015,263.76,Fire Safety Regulation,Human Resources
800069035,ADECCO UK LIMITED=============,27295172,1,439.6,FRS STAFF AGENCY,05/11/2015,439.6,Fire Safety Regulation,Human Resources
800069036,ADECCO UK LIMITED=============,27295173,1,554.75,FRS STAFF AGENCY,05/11/2015,554.75,Strategy & Inclusion,Human Resources
800069037,ADECCO UK LIMITED=============,27295174,1,624.4,FRS STAFF AGENCY,05/11/2015,624.4,Fire Safety Regulation,Human Resources
800069038,ADECCO UK LIMITED=============,27295175,1,351.68,PURCHASES-COMPUTER/EQUIPMENT,05/11/2015,351.68,Information and Communication Technology,Human Resources
800069032,ADECCO UK LIMITED=============,27295177,1,439.6,FRS STAFF AGENCY,05/11/2015,439.6,Operations Non Fire Stations,Human Resources
800069033,ADECCO UK LIMITED=============,27295178,1,439.6,FRS STAFF AGENCY,05/11/2015,439.6,Fire Safety Regulation,Human Resources
800069039,ADECCO UK LIMITED=============,27295179,1,351.68,FRS STAFF AGENCY,05/11/2015,351.68,Operations Non Fire Stations,Human Resources
800069040,ADECCO UK LIMITED=============,27295180,1,624.4,FRS STAFF AGENCY,05/11/2015,624.4,HR Management,Human Resources
800069046,ADECCO UK LIMITED=============,27295188,1,"2,767.20",CONSULTANTS,05/11/2015,"2,767.20",Development and Training,Human Resources
800069047,ADECCO UK LIMITED=============,27295189,1,922.4,CONSULTANTS,05/11/2015,922.4,Development and Training,Human Resources
800069048,ADECCO UK LIMITED=============,27295190,1,922.4,CONSULTANTS,05/11/2015,922.4,Development and Training,Human Resources
800069054,ADECCO UK LIMITED=============,27301744,1,757.05,FRS STAFF AGENCY,05/11/2015,757.05,Communications,Human Resources
800069055,ADECCO UK LIMITED=============,27301745,1,408.2,FRS STAFF AGENCY,05/11/2015,408.2,Operations Non Fire Stations,Human Resources
800069056,ADECCO UK LIMITED=============,27301746,1,345.52,FRS STAFF AGENCY,05/11/2015,345.52,Communications,Human Resources
800069057,ADECCO UK LIMITED=============,27301747,1,546.83,FRS STAFF AGENCY,05/11/2015,546.83,Community Safety Delivery,Human Resources
800069058,ADECCO UK LIMITED=============,27301748,1,439.6,FRS STAFF AGENCY,05/11/2015,439.6,Technical And Service Support,Human Resources
800069059,ADECCO UK LIMITED=============,27301749,1,"1,390.20",FRS STAFF AGENCY,05/11/2015,"1,390.20",Review of Property Services,Human Resources
800069060,ADECCO UK LIMITED=============,27301750,1,922.25,FRS STAFF AGENCY,05/11/2015,922.25,Technical And Service Support,Human Resources
800069061,ADECCO UK LIMITED=============,27301751,1,900.2,FRS STAFF AGENCY,05/11/2015,900.2,Information Management,Human Resources
800069062,ADECCO UK LIMITED=============,27301752,1,624.4,FRS STAFF AGENCY,05/11/2015,624.4,Procurement,Human Resources
800069063,ADECCO UK LIMITED=============,27301753,1,624.4,FRS STAFF AGENCY,05/11/2015,624.4,Procurement,Human Resources
800069064,ADECCO UK LIMITED=============,27301754,1,785.31,FRS STAFF AGENCY,05/11/2015,785.31,National Operational Guidance Project,Human Resources
800069065,ADECCO UK LIMITED=============,27301755,1,554.75,FRS STAFF AGENCY,05/11/2015,554.75,Community Safety Delivery,Human Resources
800069066,ADECCO UK LIMITED=============,27301756,1,554.75,FRS STAFF AGENCY,05/11/2015,554.75,Exercise Unified Response,Human Resources
800069067,ADECCO UK LIMITED=============,27301757,1,"1,445.40",FRS STAFF AGENCY,05/11/2015,"1,445.40",National Operational Guidance Project,Human Resources
800069068,ADECCO UK LIMITED=============,27301758,1,900.2,FRS STAFF AGENCY,05/11/2015,900.2,National Operational Guidance Project,Human Resources
800069070,ADECCO UK LIMITED=============,27301760,1,554.75,FRS STAFF AGENCY,05/11/2015,554.75,Information and Communication Technology,Human Resources
800069072,ADECCO UK LIMITED=============,27301762,1,624.4,FRS STAFF AGENCY,05/11/2015,624.4,HR Management,Human Resources
800069073,ADECCO UK LIMITED=============,27301763,1,624.4,FRS STAFF AGENCY,05/11/2015,624.4,HR Management,Human Resources
800069076,ADECCO UK LIMITED=============,27301766,1,588.72,FRS STAFF AGENCY,05/11/2015,588.72,Finance Services,Human Resources
800069077,ADECCO UK LIMITED=============,27301767,1,624.4,FRS STAFF AGENCY,05/11/2015,624.4,Information Management,Human Resources
800069078,ADECCO UK LIMITED=============,27301768,1,561.96,FRS STAFF AGENCY,05/11/2015,561.96,Operations Non Fire Stations,Human Resources
800069079,ADECCO UK LIMITED=============,27301769,1,624.4,FRS STAFF AGENCY,05/11/2015,624.4,Technical And Service Support,Human Resources
800069080,ADECCO UK LIMITED=============,27301770,1,302.82,FRS STAFF AGENCY,05/11/2015,302.82,Technical And Service Support,Human Resources
800069082,ADECCO UK LIMITED=============,27301772,1,"1,162.70",FRS STAFF AGENCY,05/11/2015,"1,162.70",Technical And Service Support,Human Resources
800069084,ADECCO UK LIMITED=============,27301774,1,263.76,FRS STAFF AGENCY,05/11/2015,263.76,Fire Safety Regulation,Human Resources
800069085,ADECCO UK LIMITED=============,27301775,1,439.6,FRS STAFF AGENCY,05/11/2015,439.6,Fire Safety Regulation,Human Resources
800069086,ADECCO UK LIMITED=============,27301776,1,439.6,FRS STAFF AGENCY,05/11/2015,439.6,Fire Safety Regulation,Human Resources
800069087,ADECCO UK LIMITED=============,27301777,1,554.75,FRS STAFF AGENCY,05/11/2015,554.75,Strategy & Inclusion,Human Resources
800069091,ADECCO UK LIMITED=============,27301781,1,351.68,FRS STAFF AGENCY,05/11/2015,351.68,Fire Safety Regulation,Human Resources
800069092,ADECCO UK LIMITED=============,27301782,1,624.4,FRS STAFF AGENCY,05/11/2015,624.4,HR Management,Human Resources
800069094,ADECCO UK LIMITED=============,27301784,1,"1,471.35",FRS STAFF AGENCY,05/11/2015,"1,471.35",Legal & Democratic Services,Human Resources
800069095,ADECCO UK LIMITED=============,27301785,1,905.73,FRS STAFF AGENCY,05/11/2015,905.73,Technical And Service Support,Human Resources
800069096,ADECCO UK LIMITED=============,27301786,1,624.4,FRS STAFF AGENCY,05/11/2015,624.4,Operations Non Fire Stations,Human Resources
800069100,ADECCO UK LIMITED=============,27301790,1,"2,046.25",FRS STAFF AGENCY,05/11/2015,"2,046.25",Vehicle & Equipment Programme,Human Resources
021115H,FIRE PROTECTION ASSOCIATION===,27901,1,299,PROFESSIONAL DEVELOPMENT,05/11/2015,598,Fire Safety Regulation,Education
021115H,FIRE PROTECTION ASSOCIATION===,27901,2,299,PROFESSIONAL DEVELOPMENT,05/11/2015,,Fire Safety Regulation,Education
021115H,ARKAS LIMITED=================,27938,1,"1,264.00",STRATEGIC (NON CYCLICAL),05/11/2015,"1,264.00",Technical and Service Support,"Works - Construction, R&M"
141248,THAMES WATER UTILITIES LTD====,2796831119J,1,433.6,WATER & SEWERAGE RATES,05/11/2015,433.6,Technical And Service Support,Utilities
141250,DRAEGER SAFETY UK LIMITED=====,2910029668,1,399,PROTECTIVE EQUIPT - PARTS,05/11/2015,399,Technical and Service Support,Fire & Rescue
301015H,DRAEGER SAFETY UK LIMITED=====,2910032035,1,"5,988.00",PROTECTIVE EQUIPT - PARTS,05/11/2015,"7,866.72",Technical and Service Support,Fire & Rescue
301015H,DRAEGER SAFETY UK LIMITED=====,2910032035,2,"1,878.72",PROTECTIVE EQUIPT - PARTS,05/11/2015,,Technical and Service Support,Fire & Rescue
261015H,DRAEGER SAFETY UK LIMITED=====,2910032183,1,"1,107.40",PROTECTIVE EQUIPT - PARTS,05/11/2015,"1,107.40",Technical and Service Support,Fire & Rescue
301015H,REGENT OFFICE CARE LTD========,30267,1,204.6,STRATEGIC (CYCLICAL),05/11/2015,"7,911.20",Technical and Service Support,Cleaning & Janitorial
301015H,REGENT OFFICE CARE LTD========,30267,2,170.5,STRATEGIC (CYCLICAL),05/11/2015,,Technical and Service Support,Cleaning & Janitorial
301015H,REGENT OFFICE CARE LTD========,30267,3,204.6,STRATEGIC (CYCLICAL),05/11/2015,,Technical and Service Support,Cleaning & Janitorial
301015H,REGENT OFFICE CARE LTD========,30267,4,170.5,STRATEGIC (CYCLICAL),05/11/2015,,Technical and Service Support,Cleaning & Janitorial
301015H,REGENT OFFICE CARE LTD========,30267,5,204.6,STRATEGIC (CYCLICAL),05/11/2015,,Technical and Service Support,Cleaning & Janitorial
301015H,REGENT OFFICE CARE LTD========,30267,6,170.5,STRATEGIC (CYCLICAL),05/11/2015,,Technical and Service Support,Cleaning & Janitorial
301015H,REGENT OFFICE CARE LTD========,30267,7,170.5,STRATEGIC (CYCLICAL),05/11/2015,,Technical and Service Support,Cleaning & Janitorial
301015H,REGENT OFFICE CARE LTD========,30267,8,204.6,STRATEGIC (CYCLICAL),05/11/2015,,Technical and Service Support,Cleaning & Janitorial
301015H,REGENT OFFICE CARE LTD========,30267,9,204.6,STRATEGIC (CYCLICAL),05/11/2015,,Technical and Service Support,Cleaning & Janitorial
301015H,REGENT OFFICE CARE LTD========,30267,10,204.6,STRATEGIC (CYCLICAL),05/11/2015,,Technical and Service Support,Cleaning & Janitorial
301015H,REGENT OFFICE CARE LTD========,30267,11,170.5,STRATEGIC (CYCLICAL),05/11/2015,,Technical and Service Support,Cleaning & Janitorial
301015H,REGENT OFFICE CARE LTD========,30267,12,170.5,STRATEGIC (CYCLICAL),05/11/2015,,Technical and Service Support,Cleaning & Janitorial
301015H,REGENT OFFICE CARE LTD========,30267,13,204.6,STRATEGIC (CYCLICAL),05/11/2015,,Technical and Service Support,Cleaning & Janitorial
301015H,REGENT OFFICE CARE LTD========,30267,14,170.5,STRATEGIC (CYCLICAL),05/11/2015,,Technical and Service Support,Cleaning & Janitorial
301015H,REGENT OFFICE CARE LTD========,30267,15,170.5,STRATEGIC (CYCLICAL),05/11/2015,,Technical and Service Support,Cleaning & Janitorial
301015H,REGENT OFFICE CARE LTD========,30267,16,170.5,STRATEGIC (CYCLICAL),05/11/2015,,Technical and Service Support,Cleaning & Janitorial
301015H,REGENT OFFICE CARE LTD========,30267,17,204.6,STRATEGIC (CYCLICAL),05/11/2015,,Technical and Service Support,Cleaning & Janitorial
301015H,REGENT OFFICE CARE LTD========,30267,18,170.5,STRATEGIC (CYCLICAL),05/11/2015,,Technical and Service Support,Cleaning & Janitorial
301015H,REGENT OFFICE CARE LTD========,30267,19,204.6,STRATEGIC (CYCLICAL),05/11/2015,,Technical and Service Support,Cleaning & Janitorial
301015H,REGENT OFFICE CARE LTD========,30267,20,204.6,STRATEGIC (CYCLICAL),05/11/2015,,Technical and Service Support,Cleaning & Janitorial
301015H,REGENT OFFICE CARE LTD========,30267,21,204.6,STRATEGIC (CYCLICAL),05/11/2015,,Technical and Service Support,Cleaning & Janitorial
301015H,REGENT OFFICE CARE LTD========,30267,22,204.6,STRATEGIC (CYCLICAL),05/11/2015,,Technical and Service Support,Cleaning & Janitorial
301015H,REGENT OFFICE CARE LTD========,30267,23,204.6,STRATEGIC (CYCLICAL),05/11/2015,,Technical and Service Support,Cleaning & Janitorial
301015H,REGENT OFFICE CARE LTD========,30267,24,170.5,STRATEGIC (CYCLICAL),05/11/2015,,Technical and Service Support,Cleaning & Janitorial
301015H,REGENT OFFICE CARE LTD========,30267,25,170.5,STRATEGIC (CYCLICAL),05/11/2015,,Technical and Service Support,Cleaning & Janitorial
301015H,REGENT OFFICE CARE LTD========,30267,26,170.5,STRATEGIC (CYCLICAL),05/11/2015,,Technical and Service Support,Cleaning & Janitorial
301015H,REGENT OFFICE CARE LTD========,30267,27,170.5,STRATEGIC (CYCLICAL),05/11/2015,,Technical and Service Support,Cleaning & Janitorial
301015H,REGENT OFFICE CARE LTD========,30267,28,204.6,STRATEGIC (CYCLICAL),05/11/2015,,Technical and Service Support,Cleaning & Janitorial
301015H,REGENT OFFICE CARE LTD========,30267,29,204.6,STRATEGIC (CYCLICAL),05/11/2015,,Technical and Service Support,Cleaning & Janitorial
301015H,REGENT OFFICE CARE LTD========,30267,30,170.5,STRATEGIC (CYCLICAL),05/11/2015,,Technical and Service Support,Cleaning & Janitorial
301015H,REGENT OFFICE CARE LTD========,30267,31,170.5,STRATEGIC (CYCLICAL),05/11/2015,,Technical and Service Support,Cleaning & Janitorial
301015H,REGENT OFFICE CARE LTD========,30267,32,204.6,STRATEGIC (CYCLICAL),05/11/2015,,Technical and Service Support,Cleaning & Janitorial
301015H,REGENT OFFICE CARE LTD========,30267,33,170.5,STRATEGIC (CYCLICAL),05/11/2015,,Technical and Service Support,Cleaning & Janitorial
301015H,REGENT OFFICE CARE LTD========,30267,34,204.6,STRATEGIC (CYCLICAL),05/11/2015,,Technical and Service Support,Cleaning & Janitorial
301015H,REGENT OFFICE CARE LTD========,30267,35,170.5,STRATEGIC (CYCLICAL),05/11/2015,,Technical and Service Support,Cleaning & Janitorial
301015H,REGENT OFFICE CARE LTD========,30267,36,204.6,STRATEGIC (CYCLICAL),05/11/2015,,Technical and Service Support,Cleaning & Janitorial
301015H,REGENT OFFICE CARE LTD========,30267,37,204.6,STRATEGIC (CYCLICAL),05/11/2015,,Technical and Service Support,Cleaning & Janitorial
301015H,REGENT OFFICE CARE LTD========,30267,38,204.6,STRATEGIC (CYCLICAL),05/11/2015,,Technical and Service Support,Cleaning & Janitorial
301015H,REGENT OFFICE CARE LTD========,30267,39,204.6,STRATEGIC (CYCLICAL),05/11/2015,,Technical and Service Support,Cleaning & Janitorial
301015H,REGENT OFFICE CARE LTD========,30267,40,170.5,STRATEGIC (CYCLICAL),05/11/2015,,Technical and Service Support,Cleaning & Janitorial
301015H,REGENT OFFICE CARE LTD========,30267,41,204.6,STRATEGIC (CYCLICAL),05/11/2015,,Technical and Service Support,Cleaning & Janitorial
301015H,REGENT OFFICE CARE LTD========,30267,42,170.5,STRATEGIC (CYCLICAL),05/11/2015,,Technical and Service Support,Cleaning & Janitorial
291015G,DELTOR COMMUNICATIONS LTD.===,32129,1,265,PRINTING,05/11/2015,265,LFB 150th Anniversary,Facilities & Management S
301015H,PULSE FITNESS LTD,36494,1,"3,147.54",GYM EQUIPMENT,05/11/2015,"3,147.54",Technical And Service Support,Sports & Playground Equip
301015H,STEPHEN AUSTIN & SONS LTD=====,36605,1,799,PRINTING,05/11/2015,799,LFB 150th Anniversary,Facilities & Management S
301015H,PULSE FITNESS LTD,37702,1,"2,309.18",GYM EQUIPMENT,05/11/2015,"2,309.18",Technical And Service Support,Sports & Playground Equip
301015H,PULSE FITNESS LTD,37703,1,"1,443.51",GYM EQUIPMENT,05/11/2015,"1,443.51",Technical And Service Support,Sports & Playground Equip
301015H,PULSE FITNESS LTD,37705,1,"1,443.51",GYM EQUIPMENT,05/11/2015,"1,443.51",Technical And Service Support,Sports & Playground Equip
301015H,PULSE FITNESS LTD,37706,1,"1,443.51",GYM EQUIPMENT,05/11/2015,"1,443.51",Technical And Service Support,Sports & Playground Equip
301015H,PULSE FITNESS LTD,37707,1,"2,085.42",GYM EQUIPMENT,05/11/2015,"2,085.42",Technical And Service Support,Sports & Playground Equip
301015H,PULSE FITNESS LTD,37708,1,"2,309.18",GYM EQUIPMENT,05/11/2015,"2,309.18",Technical And Service Support,Sports & Playground Equip
301015H,PULSE FITNESS LTD,37709,1,"2,309.18",GYM EQUIPMENT,05/11/2015,"2,309.18",Technical And Service Support,Sports & Playground Equip
291015G,DEALERSHIP SERVICES LTD,3777,1,107.4,CLOTHING,05/11/2015,382.5,Cadets,Clothing
291015G,DEALERSHIP SERVICES LTD,3777,2,75.8,CLOTHING,05/11/2015,,Cadets,Clothing
291015G,DEALERSHIP SERVICES LTD,3777,3,43.5,CLOTHING,05/11/2015,,Cadets,Clothing
291015G,DEALERSHIP SERVICES LTD,3777,4,14.5,CLOTHING,05/11/2015,,Cadets,Clothing
291015G,DEALERSHIP SERVICES LTD,3777,5,13.8,CLOTHING,05/11/2015,,Cadets,Clothing
291015G,DEALERSHIP SERVICES LTD,3777,6,18.95,CLOTHING,05/11/2015,,Cadets,Clothing
291015G,DEALERSHIP SERVICES LTD,3777,7,14.5,CLOTHING,05/11/2015,,Cadets,Clothing
291015G,DEALERSHIP SERVICES LTD,3777,8,3.45,CLOTHING,05/11/2015,,Cadets,Clothing
291015G,DEALERSHIP SERVICES LTD,3777,9,26.85,CLOTHING,05/11/2015,,Cadets,Clothing
291015G,DEALERSHIP SERVICES LTD,3777,10,26.85,CLOTHING,05/11/2015,,Cadets,Clothing
291015G,DEALERSHIP SERVICES LTD,3777,11,18.95,CLOTHING,05/11/2015,,Cadets,Clothing
291015G,DEALERSHIP SERVICES LTD,3777,12,14.5,CLOTHING,05/11/2015,,Cadets,Clothing
291015G,DEALERSHIP SERVICES LTD,3777,13,3.45,CLOTHING,05/11/2015,,Cadets,Clothing
291015G,FOCUS & VISION TECHNOLOGY LTD,48681,1,335.74,MEDICAL EXPENSES CONTRACT,05/11/2015,335.74,HR Management,Healthcare
291015G,CIPFA,5163531,1,"2,690.00",PROFESSIONAL DEVELOPMENT,05/11/2015,"2,690.00",Procurement,Human Resources
291015G,LYON EQUIPMENT LIMITED========,543670,1,561.79,OPERATIONAL EQUIP-PURCHASE,05/11/2015,561.79,Operational Policy,Fire & Rescue
141250,LONDON PENSIONS FUND AUTHORITY,547,1,"84,913.39",LOCAL GOVT PENSION SCHEME PAYM,05/11/2015,"84,913.39",Central Finance,Financial Services
800066439,*GREENHAM TRADING LTD=========,5696760,1,118.9,HYGIENE,05/11/2015,331,Development and Training,Cleaning & Janitorial
800066439,*GREENHAM TRADING LTD=========,5696760,2,118.9,HYGIENE,05/11/2015,,Development and Training,Cleaning & Janitorial
800066439,*GREENHAM TRADING LTD=========,5696760,3,93.2,OPERATIONAL EQUIP-PURCHASE,05/11/2015,,Development and Training,Cleaning & Janitorial
141250,ESSEX & SUFFOLK WATER PLC=====,612080610023R,1,402.83,WATER & SEWERAGE RATES,05/11/2015,402.83,Technical And Service Support,Utilities
141250,ESSEX & SUFFOLK WATER PLC=====,612080610032R,1,919.74,WATER & SEWERAGE RATES,05/11/2015,919.74,Technical And Service Support,Utilities
291015G,WSP UK LTD,64230912,1,500,PROF FEES-MISCELLANEOUS,05/11/2015,500,Technical and Service Support,Transport
141248,THAMES WATER UTILITIES LTD====,6443373015J,1,327.33,WATER & SEWERAGE RATES,05/11/2015,327.33,Technical And Service Support,Utilities
291015G,GAS & AIR SERVICES (UK)=======,6762,1,"1,233.10",PROTECTIVE EQUIPT - PARTS,05/11/2015,"1,249.10",Technical and Service Support,Building Constr Materials
291015G,GAS & AIR SERVICES (UK)=======,6762,2,16,REPAIR & MAINTENANCE,05/11/2015,,Technical And Service Support,Building Constr Materials
141248,THAMES WATER UTILITIES LTD====,7845980467J,1,327.73,WATER & SEWERAGE RATES,05/11/2015,327.73,Technical And Service Support,Utilities
291015G,SHARPE PRITCHARD==============,81556,1,"1,131.00",LEGAL PROFESSIONAL FEES-GENERL,05/11/2015,"1,131.00",Central Finance,Legal Services
141248,THAMES WATER UTILITIES LTD====,8659361269J,1,"2,334.86",WATER & SEWERAGE RATES,05/11/2015,"2,334.86",Technical And Service Support,Utilities
021115H,VIMPEX LIMITED================,92690,1,251.6,CLOTHING,05/11/2015,251.6,Cadets,Fire & Rescue
301015H,*OFFICE DEPOT UK LTD,966033962/966635622,1,"1,190.00",STATIONERY CONSUMABLES,05/11/2015,"1,190.00",Technical And Service Support,Stationery
221015H,*OFFICE DEPOT UK LTD,966540277,1,105.6,STATIONERY CONSUMABLES,05/11/2015,462.6,Communications,Stationery
221015H,*OFFICE DEPOT UK LTD,966540277,2,357,STATIONERY CONSUMABLES,05/11/2015,,Communications,Stationery
021115H,KIER BUILDING SERV ENGINEERS==,F00055648,1,325.6,STRATEGIC (CYCLICAL),05/11/2015,"6,760.46",Technical And Service Support,"Works - Construction, R&M"
021115H,KIER BUILDING SERV ENGINEERS==,F00055648,2,342.02,STRATEGIC (CYCLICAL),05/11/2015,,Technical And Service Support,"Works - Construction, R&M"
021115H,KIER BUILDING SERV ENGINEERS==,F00055648,3,158.4,STRATEGIC (CYCLICAL),05/11/2015,,Technical and Service Support,"Works - Construction, R&M"
021115H,KIER BUILDING SERV ENGINEERS==,F00055648,4,176,STRATEGIC (CYCLICAL),05/11/2015,,Technical and Service Support,"Works - Construction, R&M"
021115H,KIER BUILDING SERV ENGINEERS==,F00055648,5,158.4,STRATEGIC (CYCLICAL),05/11/2015,,Technical and Service Support,"Works - Construction, R&M"
021115H,KIER BUILDING SERV ENGINEERS==,F00055648,6,112.2,STRATEGIC (CYCLICAL),05/11/2015,,Technical and Service Support,"Works - Construction, R&M"
021115H,KIER BUILDING SERV ENGINEERS==,F00055648,7,471.43,STRATEGIC (CYCLICAL),05/11/2015,,Technical and Service Support,"Works - Construction, R&M"
021115H,KIER BUILDING SERV ENGINEERS==,F00055648,8,88,STRATEGIC (CYCLICAL),05/11/2015,,Technical and Service Support,"Works - Construction, R&M"
021115H,KIER BUILDING SERV ENGINEERS==,F00055648,9,93.95,STRATEGIC (CYCLICAL),05/11/2015,,Technical and Service Support,"Works - Construction, R&M"
021115H,KIER BUILDING SERV ENGINEERS==,F00055648,10,285.52,STRATEGIC (CYCLICAL),05/11/2015,,Technical and Service Support,"Works - Construction, R&M"
021115H,KIER BUILDING SERV ENGINEERS==,F00055648,11,316.83,STRATEGIC (CYCLICAL),05/11/2015,,Technical And Service Support,"Works - Construction, R&M"
021115H,KIER BUILDING SERV ENGINEERS==,F00055648,12,136.44,STRATEGIC (CYCLICAL),05/11/2015,,Technical and Service Support,"Works - Construction, R&M"
021115H,KIER BUILDING SERV ENGINEERS==,F00055648,13,142.12,STRATEGIC (CYCLICAL),05/11/2015,,Technical And Service Support,"Works - Construction, R&M"
021115H,KIER BUILDING SERV ENGINEERS==,F00055648,14,177.58,STRATEGIC (CYCLICAL),05/11/2015,,Technical and Service Support,"Works - Construction, R&M"
021115H,KIER BUILDING SERV ENGINEERS==,F00055648,15,151.14,STRATEGIC (CYCLICAL),05/11/2015,,Technical and Service Support,"Works - Construction, R&M"
021115H,KIER BUILDING SERV ENGINEERS==,F00055648,16,396.32,STRATEGIC (CYCLICAL),05/11/2015,,Technical and Service Support,"Works - Construction, R&M"
021115H,KIER BUILDING SERV ENGINEERS==,F00055648,17,121.44,STRATEGIC (CYCLICAL),05/11/2015,,Technical and Service Support,"Works - Construction, R&M"
021115H,KIER BUILDING SERV ENGINEERS==,F00055648,18,117.57,STRATEGIC (CYCLICAL),05/11/2015,,Technical and Service Support,"Works - Construction, R&M"
021115H,KIER BUILDING SERV ENGINEERS==,F00055648,19,25.19,STRATEGIC (CYCLICAL),05/11/2015,,Technical and Service Support,"Works - Construction, R&M"
021115H,KIER BUILDING SERV ENGINEERS==,F00055648,20,50.39,STRATEGIC (CYCLICAL),05/11/2015,,Technical and Service Support,"Works - Construction, R&M"
021115H,KIER BUILDING SERV ENGINEERS==,F00055648,21,162.92,STRATEGIC (CYCLICAL),05/11/2015,,Technical and Service Support,"Works - Construction, R&M"
021115H,KIER BUILDING SERV ENGINEERS==,F00055648,22,33.59,STRATEGIC (CYCLICAL),05/11/2015,,Technical and Service Support,"Works - Construction, R&M"
021115H,KIER BUILDING SERV ENGINEERS==,F00055648,23,319.11,STRATEGIC (CYCLICAL),05/11/2015,,Technical And Service Support,"Works - Construction, R&M"
021115H,KIER BUILDING SERV ENGINEERS==,F00055648,24,36.04,STRATEGIC (CYCLICAL),05/11/2015,,Technical and Service Support,"Works - Construction, R&M"
021115H,KIER BUILDING SERV ENGINEERS==,F00055648,25,229.27,STRATEGIC (CYCLICAL),05/11/2015,,Technical and Service Support,"Works - Construction, R&M"
021115H,KIER BUILDING SERV ENGINEERS==,F00055648,26,204.6,STRATEGIC (CYCLICAL),05/11/2015,,Technical And Service Support,"Works - Construction, R&M"
021115H,KIER BUILDING SERV ENGINEERS==,F00055648,27,78.98,STRATEGIC (CYCLICAL),05/11/2015,,Technical and Service Support,"Works - Construction, R&M"
021115H,KIER BUILDING SERV ENGINEERS==,F00055648,28,42.37,STRATEGIC (CYCLICAL),05/11/2015,,Technical and Service Support,"Works - Construction, R&M"
021115H,KIER BUILDING SERV ENGINEERS==,F00055648,29,16.8,STRATEGIC (CYCLICAL),05/11/2015,,Technical and Service Support,"Works - Construction, R&M"
021115H,KIER BUILDING SERV ENGINEERS==,F00055648,30,210.17,STRATEGIC (CYCLICAL),05/11/2015,,Technical and Service Support,"Works - Construction, R&M"
021115H,KIER BUILDING SERV ENGINEERS==,F00055648,31,50.39,STRATEGIC (CYCLICAL),05/11/2015,,Technical and Service Support,"Works - Construction, R&M"
021115H,KIER BUILDING SERV ENGINEERS==,F00055648,32,109.17,STRATEGIC (CYCLICAL),05/11/2015,,Technical and Service Support,"Works - Construction, R&M"
021115H,KIER BUILDING SERV ENGINEERS==,F00055648,33,147.4,STRATEGIC (CYCLICAL),05/11/2015,,Technical and Service Support,"Works - Construction, R&M"
021115H,KIER BUILDING SERV ENGINEERS==,F00055648,34,16.8,STRATEGIC (CYCLICAL),05/11/2015,,Technical and Service Support,"Works - Construction, R&M"
021115H,KIER BUILDING SERV ENGINEERS==,F00055648,35,287.98,STRATEGIC (CYCLICAL),05/11/2015,,Technical and Service Support,"Works - Construction, R&M"
021115H,KIER BUILDING SERV ENGINEERS==,F00055648,36,496.38,STRATEGIC (CYCLICAL),05/11/2015,,Technical and Service Support,"Works - Construction, R&M"
021115H,KIER BUILDING SERV ENGINEERS==,F00055648,37,134.36,STRATEGIC (CYCLICAL),05/11/2015,,Technical and Service Support,"Works - Construction, R&M"
021115H,KIER BUILDING SERV ENGINEERS==,F00055648,38,41.99,STRATEGIC (CYCLICAL),05/11/2015,,Technical and Service Support,"Works - Construction, R&M"
021115H,KIER BUILDING SERV ENGINEERS==,F00055648,39,207.6,STRATEGIC (CYCLICAL),05/11/2015,,Technical and Service Support,"Works - Construction, R&M"
021115H,KIER BUILDING SERV ENGINEERS==,F00055648,40,88,STRATEGIC (CYCLICAL),05/11/2015,,Technical and Service Support,"Works - Construction, R&M"
291015H,HALL FUELS,I07939925,1,"2,647.50",FUEL,05/11/2015,"2,647.50",Operations Fire Stations,Vehicle Management
301015H,MOTT MACDONALD============,IN00325698,1,"7,748.00",CONSULTANTS,05/11/2015,"7,748.00",London Coordination Centre,Consultancy
161015M,AIRBUS DEFENCE AND SPACE,IN030190,1,"4,885.60",PURCHASES-COMPUTER/EQUIPMENT,05/11/2015,"4,885.60",Information and Communication Technology,ICT
161015M,CAPITA BUSINESS SERVICES LTD==,INV-31102,1,350,PROFESSIONAL DEVELOPMENT,05/11/2015,350,Community Safety Delivery,ICT
021115H,CANNON'S MSA LTD,INV1090766,1,447.5,GENERAL CONSUMABLES,05/11/2015,447.5,Procurement,Vehicle Management
291015G,CANNON'S MSA LTD,NV1089912,1,860,TACTICAL DAY TO DAY,05/11/2015,860,Technical And Service Support,Vehicle Management
141250,VEOLIA WATER PROJECTS LTD=====,SI-15-0005574,1,"2,318.54",ELECTRICITY,05/11/2015,"2,318.54",Technical And Service Support,Utilities
800067888,*THOMAS KNEALE & CO LTD,TK112033,1,10.89,CLOTHING,05/11/2015,777.12,Operations Fire Stations,Furniture
800067888,*THOMAS KNEALE & CO LTD,TK112033,2,0.99,CLOTHING,05/11/2015,,Operations Fire Stations,Furniture
800067888,*THOMAS KNEALE & CO LTD,TK112033,3,10.89,CLOTHING,05/11/2015,,Operations Fire Stations,Furniture
800067888,*THOMAS KNEALE & CO LTD,TK112033,4,3.47,CLOTHING,05/11/2015,,Operations Fire Stations,Furniture
800067888,*THOMAS KNEALE & CO LTD,TK112033,5,1.48,CLOTHING,05/11/2015,,Operations Fire Stations,Furniture
800067888,*THOMAS KNEALE & CO LTD,TK112033,6,10.89,CLOTHING,05/11/2015,,Operations Fire Stations,Furniture
800067888,*THOMAS KNEALE & CO LTD,TK112033,7,3.47,CLOTHING,05/11/2015,,Operations Fire Stations,Furniture
800067888,*THOMAS KNEALE & CO LTD,TK112033,8,21.78,CLOTHING,05/11/2015,,Operations Fire Stations,Furniture
800067888,*THOMAS KNEALE & CO LTD,TK112033,9,6.94,CLOTHING,05/11/2015,,Operations Fire Stations,Furniture
800067888,*THOMAS KNEALE & CO LTD,TK112033,10,2.96,CLOTHING,05/11/2015,,Operations Fire Stations,Furniture
800067888,*THOMAS KNEALE & CO LTD,TK112033,11,2.59,OFFICE FURNITURE,05/11/2015,,Operations Fire Stations,Furniture
800067888,*THOMAS KNEALE & CO LTD,TK112033,12,67.95,OFFICE FURNITURE,05/11/2015,,Operations Fire Stations,Furniture
800067888,*THOMAS KNEALE & CO LTD,TK112033,13,3.47,CLOTHING,05/11/2015,,Operations Fire Stations,Furniture
800067888,*THOMAS KNEALE & CO LTD,TK112033,14,10.89,CLOTHING,05/11/2015,,Operations Fire Stations,Furniture
800067888,*THOMAS KNEALE & CO LTD,TK112033,15,0.99,CLOTHING,05/11/2015,,Operations Fire Stations,Furniture
800067888,*THOMAS KNEALE & CO LTD,TK112033,16,1.48,CLOTHING,05/11/2015,,Operations Fire Stations,Furniture
800067888,*THOMAS KNEALE & CO LTD,TK112033,17,3.47,CLOTHING,05/11/2015,,Operations Fire Stations,Furniture
800067888,*THOMAS KNEALE & CO LTD,TK112033,18,3.47,CLOTHING,05/11/2015,,Operations Fire Stations,Furniture
800067888,*THOMAS KNEALE & CO LTD,TK112033,19,1.48,CLOTHING,05/11/2015,,Operations Fire Stations,Furniture
800067888,*THOMAS KNEALE & CO LTD,TK112033,20,10.89,CLOTHING,05/11/2015,,Operations Fire Stations,Furniture
800067888,*THOMAS KNEALE & CO LTD,TK112033,21,3.47,CLOTHING,05/11/2015,,Operations Fire Stations,Furniture
800067888,*THOMAS KNEALE & CO LTD,TK112033,22,1.48,CLOTHING,05/11/2015,,Operations Fire Stations,Furniture
800067888,*THOMAS KNEALE & CO LTD,TK112033,23,3.47,CLOTHING,05/11/2015,,Operations Fire Stations,Furniture
800067888,*THOMAS KNEALE & CO LTD,TK112033,24,1.48,CLOTHING,05/11/2015,,Operations Fire Stations,Furniture
800067888,*THOMAS KNEALE & CO LTD,TK112033,25,10.89,CLOTHING,05/11/2015,,Operations Fire Stations,Furniture
800067888,*THOMAS KNEALE & CO LTD,TK112033,26,10.89,CLOTHING,05/11/2015,,Operations Fire Stations,Furniture
800067888,*THOMAS KNEALE & CO LTD,TK112033,27,3.47,CLOTHING,05/11/2015,,Operations Fire Stations,Furniture
800067888,*THOMAS KNEALE & CO LTD,TK112033,28,3.47,CLOTHING,05/11/2015,,Operations Fire Stations,Furniture
800067888,*THOMAS KNEALE & CO LTD,TK112033,29,1.48,CLOTHING,05/11/2015,,Operations Fire Stations,Furniture
800067888,*THOMAS KNEALE & CO LTD,TK112033,30,10.89,CLOTHING,05/11/2015,,Operations Fire Stations,Furniture
800067888,*THOMAS KNEALE & CO LTD,TK112033,31,10.89,CLOTHING,05/11/2015,,Operations Fire Stations,Furniture
800067888,*THOMAS KNEALE & CO LTD,TK112033,32,5.18,CLOTHING,05/11/2015,,Operations Fire Stations,Furniture
800067888,*THOMAS KNEALE & CO LTD,TK112033,33,10.89,CLOTHING,05/11/2015,,Operations Fire Stations,Furniture
800067888,*THOMAS KNEALE & CO LTD,TK112033,34,0.99,CLOTHING,05/11/2015,,Operations Fire Stations,Furniture
800067888,*THOMAS KNEALE & CO LTD,TK112033,35,10.89,CLOTHING,05/11/2015,,Operations Fire Stations,Furniture
800067888,*THOMAS KNEALE & CO LTD,TK112033,36,0.99,CLOTHING,05/11/2015,,Operations Fire Stations,Furniture
800067888,*THOMAS KNEALE & CO LTD,TK112033,37,10.89,CLOTHING,05/11/2015,,Operations Fire Stations,Furniture
800067888,*THOMAS KNEALE & CO LTD,TK112033,38,10.89,CLOTHING,05/11/2015,,Operations Fire Stations,Furniture
800067888,*THOMAS KNEALE & CO LTD,TK112033,39,10.89,CLOTHING,05/11/2015,,Operations Fire Stations,Furniture
800067888,*THOMAS KNEALE & CO LTD,TK112033,40,0.99,CLOTHING,05/11/2015,,Operations Fire Stations,Furniture
800067888,*THOMAS KNEALE & CO LTD,TK112033,41,3.47,CLOTHING,05/11/2015,,Operations Fire Stations,Furniture
800067888,*THOMAS KNEALE & CO LTD,TK112033,42,1.48,CLOTHING,05/11/2015,,Operations Fire Stations,Furniture
800067888,*THOMAS KNEALE & CO LTD,TK112033,43,67.95,OFFICE FURNITURE,05/11/2015,,Operations Fire Stations,Furniture
800067888,*THOMAS KNEALE & CO LTD,TK112033,44,10.89,CLOTHING,05/11/2015,,Operations Fire Stations,Furniture
800067888,*THOMAS KNEALE & CO LTD,TK112033,45,10.89,CLOTHING,05/11/2015,,Operations Fire Stations,Furniture
800067888,*THOMAS KNEALE & CO LTD,TK112033,46,3.47,CLOTHING,05/11/2015,,Operations Fire Stations,Furniture
800067888,*THOMAS KNEALE & CO LTD,TK112033,47,2.96,CLOTHING,05/11/2015,,Operations Fire Stations,Furniture
800067888,*THOMAS KNEALE & CO LTD,TK112033,48,10.89,CLOTHING,05/11/2015,,Operations Fire Stations,Furniture
800067888,*THOMAS KNEALE & CO LTD,TK112033,49,29.6,CLOTHING,05/11/2015,,Central Operations,Furniture
800067888,*THOMAS KNEALE & CO LTD,TK112033,50,51.8,OFFICE FURNITURE,05/11/2015,,Central Operations,Furniture
800067888,*THOMAS KNEALE & CO LTD,TK112033,51,67.95,OFFICE FURNITURE,05/11/2015,,Operations Fire Stations,Furniture
800067888,*THOMAS KNEALE & CO LTD,TK112033,52,2.59,OFFICE FURNITURE,05/11/2015,,Operations Fire Stations,Furniture
800067888,*THOMAS KNEALE & CO LTD,TK112033,53,3.47,CLOTHING,05/11/2015,,Operations Fire Stations,Furniture
800067888,*THOMAS KNEALE & CO LTD,TK112033,54,0.99,CLOTHING,05/11/2015,,Operations Fire Stations,Furniture
800067888,*THOMAS KNEALE & CO LTD,TK112033,55,6.94,CLOTHING,05/11/2015,,Operations Fire Stations,Furniture
800067888,*THOMAS KNEALE & CO LTD,TK112033,56,10.89,CLOTHING,05/11/2015,,Operations Fire Stations,Furniture
800067888,*THOMAS KNEALE & CO LTD,TK112033,57,0.99,CLOTHING,05/11/2015,,Operations Fire Stations,Furniture
800067888,*THOMAS KNEALE & CO LTD,TK112033,58,10.89,CLOTHING,05/11/2015,,Operations Fire Stations,Furniture
800067888,*THOMAS KNEALE & CO LTD,TK112033,59,10.89,CLOTHING,05/11/2015,,Operations Fire Stations,Furniture
800067888,*THOMAS KNEALE & CO LTD,TK112033,60,2.96,CLOTHING,05/11/2015,,Operations Fire Stations,Furniture
800067888,*THOMAS KNEALE & CO LTD,TK112033,61,10.89,CLOTHING,05/11/2015,,Operations Fire Stations,Furniture
800067888,*THOMAS KNEALE & CO LTD,TK112033,62,2.84,OFFICE FURNITURE,05/11/2015,,Operations Fire Stations,Furniture
800067888,*THOMAS KNEALE & CO LTD,TK112033,63,10.89,CLOTHING,05/11/2015,,Operations Fire Stations,Furniture
800067888,*THOMAS KNEALE & CO LTD,TK112033,64,0.99,CLOTHING,05/11/2015,,Operations Fire Stations,Furniture
800067888,*THOMAS KNEALE & CO LTD,TK112033,65,1.48,CLOTHING,05/11/2015,,Operations Fire Stations,Furniture
800067888,*THOMAS KNEALE & CO LTD,TK112033,66,3.47,CLOTHING,05/11/2015,,Operations Fire Stations,Furniture
800067888,*THOMAS KNEALE & CO LTD,TK112033,67,2.84,OFFICE FURNITURE,05/11/2015,,Operations Fire Stations,Furniture
800067888,*THOMAS KNEALE & CO LTD,TK112033,68,10.89,CLOTHING,05/11/2015,,Operations Fire Stations,Furniture
800067888,*THOMAS KNEALE & CO LTD,TK112033,69,3.47,CLOTHING,05/11/2015,,Operations Fire Stations,Furniture
800067888,*THOMAS KNEALE & CO LTD,TK112033,70,1.48,CLOTHING,05/11/2015,,Operations Fire Stations,Furniture
800067888,*THOMAS KNEALE & CO LTD,TK112033,71,10.89,CLOTHING,05/11/2015,,Operations Fire Stations,Furniture
800067888,*THOMAS KNEALE & CO LTD,TK112033,72,2.84,OFFICE FURNITURE,05/11/2015,,Operations Fire Stations,Furniture
800067888,*THOMAS KNEALE & CO LTD,TK112033,73,10.89,CLOTHING,05/11/2015,,Operations Fire Stations,Furniture
800067888,*THOMAS KNEALE & CO LTD,TK112033,74,10.89,CLOTHING,05/11/2015,,Operations Fire Stations,Furniture
800067888,*THOMAS KNEALE & CO LTD,TK112033,75,3.47,CLOTHING,05/11/2015,,Operations Fire Stations,Furniture
800067888,*THOMAS KNEALE & CO LTD,TK112033,76,1.48,CLOTHING,05/11/2015,,Operations Fire Stations,Furniture
800067888,*THOMAS KNEALE & CO LTD,TK112033,77,67.95,OFFICE FURNITURE,05/11/2015,,Operations Fire Stations,Furniture
800067888,*THOMAS KNEALE & CO LTD,TK112033,78,2.59,OFFICE FURNITURE,05/11/2015,,Operations Fire Stations,Furniture
141256,OGILVIE FLEET LTD=============,359195,1,428.44,LEASE CAR CHARGES,09/11/2015,428.44,Procurement,Vehicle Management
141256,OGILVIE FLEET LTD=============,359195,2,-39.14,VAT CAR LEASING,09/11/2015,,Finance Services,Vehicle Management
141256,OGILVIE FLEET LTD=============,359195,3,39.14,LEASE CAR CHARGES,09/11/2015,,Procurement,Vehicle Management
141256,OGILVIE FLEET LTD=============,359196,1,476.08,LEASE CAR CHARGES,09/11/2015,476.08,Procurement,Vehicle Management
141256,OGILVIE FLEET LTD=============,359196,2,-43.08,VAT CAR LEASING,09/11/2015,,Finance Services,Vehicle Management
141256,OGILVIE FLEET LTD=============,359196,3,43.08,LEASE CAR CHARGES,09/11/2015,,Procurement,Vehicle Management
141256,OGILVIE FLEET LTD=============,359197,1,277.32,LEASE CAR CHARGES,09/11/2015,277.32,Procurement,Vehicle Management
141256,OGILVIE FLEET LTD=============,359197,2,-23.27,VAT CAR LEASING,09/11/2015,,Finance Services,Vehicle Management
141256,OGILVIE FLEET LTD=============,359197,3,23.27,LEASE CAR CHARGES,09/11/2015,,Procurement,Vehicle Management
141256,OGILVIE FLEET LTD=============,359198,1,557.15,LEASE CAR CHARGES,09/11/2015,557.15,Procurement,Vehicle Management
141256,OGILVIE FLEET LTD=============,359198,2,-50.11,VAT CAR LEASING,09/11/2015,,Finance Services,Vehicle Management
141256,OGILVIE FLEET LTD=============,359198,3,50.11,LEASE CAR CHARGES,09/11/2015,,Procurement,Vehicle Management
141255,THAMES WATER UTILITIES LTD====,0077450054J,1,491.28,ELECTRICITY,09/11/2015,491.28,Technical And Service Support,Utilities
141255,THAMES WATER UTILITIES LTD====,0213662018J,1,964.92,WATER & SEWERAGE RATES,09/11/2015,964.92,Technical And Service Support,Utilities
031115H,FIRST PRODUCTS (SUSSEX) LTD,10/15 9,1,535.5,GENERAL CONSUMABLES,09/11/2015,535.5,Procurement,Fire & Rescue
221015H,BSRIA LTD=====================,107036,1,313.5,PROFESSIONAL DEVELOPMENT,09/11/2015,313.5,Technical And Service Support,Environmental Services
031115H,MISCO UK LTD,10755369,1,"2,612.69",STATIONERY CONSUMABLES,09/11/2015,"2,612.69",Development and Training,ICT
041115H,*SPRUE SAFETY PRODUCTS LTD====,1081263,1,988.8,FIRE DETECTORS,09/11/2015,988.8,Operations Non Fire Stations,Health & Safety
021115H,*SPRUE SAFETY PRODUCTS LTD====,1082852,1,880,FIRE DETECTORS,09/11/2015,"2,480.00",Operations Non Fire Stations,Health & Safety
021115H,*SPRUE SAFETY PRODUCTS LTD====,1082852,2,"1,600.00",FIRE DETECTORS,09/11/2015,,Operations Non Fire Stations,Health & Safety
021115H,*SPRUE SAFETY PRODUCTS LTD====,1082853,1,"1,320.00",FIRE DETECTORS,09/11/2015,"4,680.00",Operations Non Fire Stations,Health & Safety
021115H,*SPRUE SAFETY PRODUCTS LTD====,1082853,2,"1,600.00",FIRE DETECTORS,09/11/2015,,Operations Non Fire Stations,Health & Safety
021115H,*SPRUE SAFETY PRODUCTS LTD====,1082853,3,"1,760.00",FIRE DETECTORS,09/11/2015,,Operations Non Fire Stations,Health & Safety
800068906,*JAMES HUNTER (OUTFITTERS) LTD,108355,1,293.13,CLOTHING,09/11/2015,354.92,Operations Fire Stations,Clothing
800068906,*JAMES HUNTER (OUTFITTERS) LTD,108355,2,61.79,CLOTHING,09/11/2015,,Operations Fire Stations,Clothing
800068932,*JAMES HUNTER (OUTFITTERS) LTD,108381,1,188.17,CLOTHING,09/11/2015,311.75,Operations Fire Stations,Clothing
800068932,*JAMES HUNTER (OUTFITTERS) LTD,108381,2,123.58,CLOTHING,09/11/2015,,Operations Fire Stations,Clothing
800068938,*JAMES HUNTER (OUTFITTERS) LTD,108387,1,231.56,CLOTHING,09/11/2015,293.35,Operations Fire Stations,Clothing
800068938,*JAMES HUNTER (OUTFITTERS) LTD,108387,2,61.79,CLOTHING,09/11/2015,,Operations Fire Stations,Clothing
281015H,NISBETS=======================,11860826,1,529.99,CATERING EQUIPMENT,09/11/2015,529.99,Operations Fire Stations,Catering
031115H,VISTA LANDSCAPE MANAGEMENT LTD,121352,1,"1,262.50",GROUNDS MAINTENANCE,09/11/2015,"1,262.50",Technical And Service Support,"Works - Construction, R&M"
031115H,VISTA LANDSCAPE MANAGEMENT LTD,121354,1,"1,000.00",GROUNDS MAINTENANCE,09/11/2015,"1,000.00",Technical And Service Support,"Works - Construction, R&M"
041115H,DRON & WRIGHT=================,17920,1,210,PROFESSIONAL SERVICES,09/11/2015,"41,384.71",Technical And Service Support,Facilities & Management S
041115H,DRON & WRIGHT=================,17920,2,"4,235.16",PROFESSIONAL SERVICES,09/11/2015,,Technical And Service Support,Facilities & Management S
041115H,DRON & WRIGHT=================,17920,3,945,PROFESSIONAL SERVICES,09/11/2015,,Technical And Service Support,Facilities & Management S
041115H,DRON & WRIGHT=================,17920,4,"1,385.00",PROFESSIONAL SERVICES,09/11/2015,,Technical And Service Support,Facilities & Management S
041115H,DRON & WRIGHT=================,17920,5,"1,437.25",PROFESSIONAL SERVICES,09/11/2015,,Technical And Service Support,Facilities & Management S
041115H,DRON & WRIGHT=================,17920,6,"1,300.00",DISPOSAL COSTS-ESTATES AGENTS,09/11/2015,,Technical and Service Support,Facilities & Management S
041115H,DRON & WRIGHT=================,17920,7,"1,179.50",DISPOSAL COSTS-ESTATES AGENTS,09/11/2015,,Technical and Service Support,Facilities & Management S
041115H,DRON & WRIGHT=================,17920,8,503,DISPOSAL COSTS-ESTATES AGENTS,09/11/2015,,Technical and Service Support,Facilities & Management S
041115H,DRON & WRIGHT=================,17920,9,"2,029.00",DISPOSAL COSTS-ESTATES AGENTS,09/11/2015,,Technical and Service Support,Facilities & Management S
041115H,DRON & WRIGHT=================,17920,10,"4,629.00",DISPOSAL COSTS-ESTATES AGENTS,09/11/2015,,Technical and Service Support,Facilities & Management S
041115H,DRON & WRIGHT=================,17920,11,"7,283.55",PROFESSIONAL SERVICES,09/11/2015,,Technical And Service Support,Facilities & Management S
041115H,DRON & WRIGHT=================,17920,12,975,PROFESSIONAL SERVICES,09/11/2015,,Technical And Service Support,Facilities & Management S
041115H,DRON & WRIGHT=================,17920,13,"3,431.67",PROFESSIONAL SERVICES,09/11/2015,,Technical And Service Support,Facilities & Management S
041115H,DRON & WRIGHT=================,17920,14,"11,114.08",DISPOSAL COSTS-ESTATES AGENTS,09/11/2015,,Technical and Service Support,Facilities & Management S
041115H,DRON & WRIGHT=================,17920,15,617.5,DISPOSAL COSTS-ESTATES AGENTS,09/11/2015,,Technical and Service Support,Facilities & Management S
041115H,DRON & WRIGHT=================,17920,16,39.5,PROF FEES-MISCELLANEOUS,09/11/2015,,Technical and Service Support,Facilities & Management S
041115H,DRON & WRIGHT=================,17920,17,70.5,PROF FEES-MISCELLANEOUS,09/11/2015,,Technical and Service Support,Facilities & Management S
271015H,*LOCKHART CATERING EQUIPMENT,2548452,1,2.69,CATERING EQUIPMENT,09/11/2015,336.11,Operations Fire Stations,Catering
271015H,*LOCKHART CATERING EQUIPMENT,2548452,2,70.18,CATERING EQUIPMENT,09/11/2015,,Operations Fire Stations,Catering
271015H,*LOCKHART CATERING EQUIPMENT,2548452,3,70.18,CATERING EQUIPMENT,09/11/2015,,Operations Fire Stations,Catering
271015H,*LOCKHART CATERING EQUIPMENT,2548452,4,26.99,CATERING EQUIPMENT,09/11/2015,,Operations Fire Stations,Catering
271015H,*LOCKHART CATERING EQUIPMENT,2548452,5,25.19,CATERING EQUIPMENT,09/11/2015,,Operations Fire Stations,Catering
271015H,*LOCKHART CATERING EQUIPMENT,2548452,6,31.48,CATERING EQUIPMENT,09/11/2015,,Operations Fire Stations,Catering
271015H,*LOCKHART CATERING EQUIPMENT,2548452,7,46.76,CATERING EQUIPMENT,09/11/2015,,Operations Fire Stations,Catering
271015H,*LOCKHART CATERING EQUIPMENT,2548452,8,62.64,CATERING EQUIPMENT,09/11/2015,,Operations Fire Stations,Catering
800069049,ADECCO UK LIMITED=============,27295185,1,922.4,CONSULTANTS,09/11/2015,922.4,Development and Training,Human Resources
800069050,ADECCO UK LIMITED=============,27295186,1,922.4,CONSULTANTS,09/11/2015,922.4,Development and Training,Human Resources
800069051,ADECCO UK LIMITED=============,27295187,1,"1,844.80",CONSULTANTS,09/11/2015,"1,844.80",Development and Training,Human Resources
800069071,ADECCO UK LIMITED=============,27301761,1,900.2,FRS STAFF AGENCY,09/11/2015,900.2,HR Management,Human Resources
800069074,ADECCO UK LIMITED=============,27301764,1,"1,162.70",FRS STAFF AGENCY,09/11/2015,"1,162.70",Technical And Service Support,Human Resources
800069083,ADECCO UK LIMITED=============,27301773,1,439.6,FRS STAFF AGENCY,09/11/2015,439.6,Fire Safety Regulation,Human Resources
800069090,ADECCO UK LIMITED=============,27301780,1,439.6,FRS STAFF AGENCY,09/11/2015,439.6,Operations Non Fire Stations,Human Resources
800069093,ADECCO UK LIMITED=============,27301783,1,768.25,FRS STAFF AGENCY,09/11/2015,768.25,Fire Safety Regulation,Human Resources
800069097,ADECCO UK LIMITED=============,27301787,1,624.4,PURCHASES-COMPUTER/EQUIPMENT,09/11/2015,624.4,Information and Communication Technology,Human Resources
800069098,ADECCO UK LIMITED=============,27301788,1,624.4,FRS STAFF AGENCY,09/11/2015,624.4,Operations Non Fire Stations,Human Resources
800069052,ADECCO UK LIMITED=============,27305583,1,"1,212.00",FRS STAFF AGENCY,09/11/2015,"1,212.00",Technical And Service Support,Human Resources
031115H,SUNDERLAND CITY COUNCIL,2808007068,1,"22,492.02",FIRE AUTHS-MUTUAL ASSISTANCE,09/11/2015,"22,492.02",National Operational Guidance Project,Statutory Bodies
031115H,DRAEGER SAFETY UK LIMITED=====,2910032184,1,105.6,PROTECTIVE EQUIPT - PARTS,09/11/2015,"1,839.20",Technical and Service Support,Fire & Rescue
031115H,DRAEGER SAFETY UK LIMITED=====,2910032184,2,636.5,PROTECTIVE EQUIPT - PARTS,09/11/2015,,Technical and Service Support,Fire & Rescue
031115H,DRAEGER SAFETY UK LIMITED=====,2910032184,3,105.82,PROTECTIVE EQUIPT - PARTS,09/11/2015,,Technical and Service Support,Fire & Rescue
031115H,DRAEGER SAFETY UK LIMITED=====,2910032184,4,327.72,PROTECTIVE EQUIPT - PARTS,09/11/2015,,Technical and Service Support,Fire & Rescue
031115H,DRAEGER SAFETY UK LIMITED=====,2910032184,5,50.26,PROTECTIVE EQUIPT - PARTS,09/11/2015,,Technical and Service Support,Fire & Rescue
031115H,DRAEGER SAFETY UK LIMITED=====,2910032184,6,380.2,PROTECTIVE EQUIPT - PARTS,09/11/2015,,Technical and Service Support,Fire & Rescue
031115H,DRAEGER SAFETY UK LIMITED=====,2910032184,7,233.1,PROTECTIVE EQUIPT - PARTS,09/11/2015,,Technical and Service Support,Fire & Rescue
291015G,DRAEGER SAFETY UK LIMITED=====,2910032465,1,129,PROTECTIVE EQUIPT - PARTS,09/11/2015,"2,651.70",Technical and Service Support,Fire & Rescue
291015G,DRAEGER SAFETY UK LIMITED=====,2910032465,2,60,PROTECTIVE EQUIPT - PARTS,09/11/2015,,Technical and Service Support,Fire & Rescue
291015G,DRAEGER SAFETY UK LIMITED=====,2910032465,3,283.2,PROTECTIVE EQUIPT - PARTS,09/11/2015,,Technical and Service Support,Fire & Rescue
291015G,DRAEGER SAFETY UK LIMITED=====,2910032465,4,567.4,PROTECTIVE EQUIPT - PARTS,09/11/2015,,Technical and Service Support,Fire & Rescue
291015G,DRAEGER SAFETY UK LIMITED=====,2910032465,5,"1,140.60",PROTECTIVE EQUIPT - PARTS,09/11/2015,,Technical and Service Support,Fire & Rescue
291015G,DRAEGER SAFETY UK LIMITED=====,2910032465,6,76,PROTECTIVE EQUIPT - PARTS,09/11/2015,,Technical and Service Support,Fire & Rescue
291015G,DRAEGER SAFETY UK LIMITED=====,2910032465,7,216.3,PROTECTIVE EQUIPT - PARTS,09/11/2015,,Technical and Service Support,Fire & Rescue
291015G,DRAEGER SAFETY UK LIMITED=====,2910032465,8,179.2,PROTECTIVE EQUIPT - PARTS,09/11/2015,,Technical and Service Support,Fire & Rescue
031115H,REGENT OFFICE CARE LTD========,32062,1,204.6,STRATEGIC (CYCLICAL),09/11/2015,"4,126.10",Technical and Service Support,Cleaning & Janitorial
031115H,REGENT OFFICE CARE LTD========,32062,2,170.5,STRATEGIC (CYCLICAL),09/11/2015,,Technical and Service Support,Cleaning & Janitorial
031115H,REGENT OFFICE CARE LTD========,32062,3,170.5,STRATEGIC (CYCLICAL),09/11/2015,,Technical and Service Support,Cleaning & Janitorial
031115H,REGENT OFFICE CARE LTD========,32062,4,204.6,STRATEGIC (CYCLICAL),09/11/2015,,Technical and Service Support,Cleaning & Janitorial
031115H,REGENT OFFICE CARE LTD========,32062,5,170.5,STRATEGIC (CYCLICAL),09/11/2015,,Technical and Service Support,Cleaning & Janitorial
031115H,REGENT OFFICE CARE LTD========,32062,6,204.6,STRATEGIC (CYCLICAL),09/11/2015,,Technical and Service Support,Cleaning & Janitorial
031115H,REGENT OFFICE CARE LTD========,32062,7,204.6,STRATEGIC (CYCLICAL),09/11/2015,,Technical and Service Support,Cleaning & Janitorial
031115H,REGENT OFFICE CARE LTD========,32062,8,170.5,STRATEGIC (CYCLICAL),09/11/2015,,Technical and Service Support,Cleaning & Janitorial
031115H,REGENT OFFICE CARE LTD========,32062,9,204.6,STRATEGIC (CYCLICAL),09/11/2015,,Technical and Service Support,Cleaning & Janitorial
031115H,REGENT OFFICE CARE LTD========,32062,10,170.5,STRATEGIC (CYCLICAL),09/11/2015,,Technical and Service Support,Cleaning & Janitorial
031115H,REGENT OFFICE CARE LTD========,32062,11,204.6,STRATEGIC (CYCLICAL),09/11/2015,,Technical and Service Support,Cleaning & Janitorial
031115H,REGENT OFFICE CARE LTD========,32062,12,204.6,STRATEGIC (CYCLICAL),09/11/2015,,Technical and Service Support,Cleaning & Janitorial
031115H,REGENT OFFICE CARE LTD========,32062,13,170.5,STRATEGIC (CYCLICAL),09/11/2015,,Technical and Service Support,Cleaning & Janitorial
031115H,REGENT OFFICE CARE LTD========,32062,14,170.5,STRATEGIC (CYCLICAL),09/11/2015,,Technical and Service Support,Cleaning & Janitorial
031115H,REGENT OFFICE CARE LTD========,32062,15,204.6,STRATEGIC (CYCLICAL),09/11/2015,,Technical and Service Support,Cleaning & Janitorial
031115H,REGENT OFFICE CARE LTD========,32062,16,170.5,STRATEGIC (CYCLICAL),09/11/2015,,Technical and Service Support,Cleaning & Janitorial
031115H,REGENT OFFICE CARE LTD========,32062,17,170.5,STRATEGIC (CYCLICAL),09/11/2015,,Technical and Service Support,Cleaning & Janitorial
031115H,REGENT OFFICE CARE LTD========,32062,18,170.5,STRATEGIC (CYCLICAL),09/11/2015,,Technical and Service Support,Cleaning & Janitorial
031115H,REGENT OFFICE CARE LTD========,32062,19,204.6,STRATEGIC (CYCLICAL),09/11/2015,,Technical and Service Support,Cleaning & Janitorial
031115H,REGENT OFFICE CARE LTD========,32062,20,204.6,STRATEGIC (CYCLICAL),09/11/2015,,Technical and Service Support,Cleaning & Janitorial
031115H,REGENT OFFICE CARE LTD========,32062,21,170.5,STRATEGIC (CYCLICAL),09/11/2015,,Technical and Service Support,Cleaning & Janitorial
031115H,REGENT OFFICE CARE LTD========,32062,22,204.6,STRATEGIC (CYCLICAL),09/11/2015,,Technical and Service Support,Cleaning & Janitorial
141255,THAMES WATER UTILITIES LTD====,4017462014J,1,397.61,WATER & SEWERAGE RATES,09/11/2015,397.61,Technical And Service Support,Utilities
041115H,CARPETS & FLOOR COVERS DIRECT=,4117,1,"6,467.52",STRATEGIC (NON CYCLICAL),09/11/2015,"6,467.52",Technical and Service Support,Building Constr Materials
141251,BRITISH GAS BUSINESS==========,4303708151,1,301.43,ELECTRICITY,09/11/2015,"10,410.65",Technical And Service Support,Utilities
141251,BRITISH GAS BUSINESS==========,4303708151,2,288.61,ELECTRICITY,09/11/2015,,Technical And Service Support,Utilities
141251,BRITISH GAS BUSINESS==========,4303708151,3,499.73,ELECTRICITY,09/11/2015,,Technical And Service Support,Utilities
141251,BRITISH GAS BUSINESS==========,4303708151,4,407.1,ELECTRICITY,09/11/2015,,Technical And Service Support,Utilities
141251,BRITISH GAS BUSINESS==========,4303708151,5,536.78,ELECTRICITY,09/11/2015,,Technical And Service Support,Utilities
141251,BRITISH GAS BUSINESS==========,4303708151,6,358.95,ELECTRICITY,09/11/2015,,Technical And Service Support,Utilities
141251,BRITISH GAS BUSINESS==========,4303708151,7,446.44,ELECTRICITY,09/11/2015,,Technical And Service Support,Utilities
141251,BRITISH GAS BUSINESS==========,4303708151,8,104.81,ELECTRICITY,09/11/2015,,Technical And Service Support,Utilities
141251,BRITISH GAS BUSINESS==========,4303708151,9,405.2,ELECTRICITY,09/11/2015,,Technical And Service Support,Utilities
141251,BRITISH GAS BUSINESS==========,4303708151,10,481.71,ELECTRICITY,09/11/2015,,Technical And Service Support,Utilities
141251,BRITISH GAS BUSINESS==========,4303708151,11,201.07,ELECTRICITY,09/11/2015,,Technical And Service Support,Utilities
141251,BRITISH GAS BUSINESS==========,4303708151,12,331.22,ELECTRICITY,09/11/2015,,Technical And Service Support,Utilities
141251,BRITISH GAS BUSINESS==========,4303708151,13,475.8,ELECTRICITY,09/11/2015,,Technical And Service Support,Utilities
141251,BRITISH GAS BUSINESS==========,4303708151,14,362.57,ELECTRICITY,09/11/2015,,Technical And Service Support,Utilities
141251,BRITISH GAS BUSINESS==========,4303708151,15,313.97,ELECTRICITY,09/11/2015,,Technical And Service Support,Utilities
141251,BRITISH GAS BUSINESS==========,4303708151,16,167.48,ELECTRICITY,09/11/2015,,Technical And Service Support,Utilities
141251,BRITISH GAS BUSINESS==========,4303708151,17,291.67,ELECTRICITY,09/11/2015,,Technical And Service Support,Utilities
141251,BRITISH GAS BUSINESS==========,4303708151,18,53.91,ELECTRICITY,09/11/2015,,Technical And Service Support,Utilities
141251,BRITISH GAS BUSINESS==========,4303708151,19,48,ELECTRICITY,09/11/2015,,Technical And Service Support,Utilities
141251,BRITISH GAS BUSINESS==========,4303708151,20,57.5,ELECTRICITY,09/11/2015,,Technical And Service Support,Utilities
141251,BRITISH GAS BUSINESS==========,4303708151,21,54.13,ELECTRICITY,09/11/2015,,Technical And Service Support,Utilities
141251,BRITISH GAS BUSINESS==========,4303708151,22,140.32,ELECTRICITY,09/11/2015,,Technical And Service Support,Utilities
141251,BRITISH GAS BUSINESS==========,4303708151,23,12.74,ELECTRICITY,09/11/2015,,Technical And Service Support,Utilities
141251,BRITISH GAS BUSINESS==========,4303708151,24,7.48,ELECTRICITY,09/11/2015,,Technical And Service Support,Utilities
141251,BRITISH GAS BUSINESS==========,4303708151,25,10.62,ELECTRICITY,09/11/2015,,Technical And Service Support,Utilities
141251,BRITISH GAS BUSINESS==========,4303708151,26,822.54,ELECTRICITY,09/11/2015,,Technical And Service Support,Utilities
141251,BRITISH GAS BUSINESS==========,4303708151,27,516.09,ELECTRICITY,09/11/2015,,Technical And Service Support,Utilities
141251,BRITISH GAS BUSINESS==========,4303708151,28,298.15,ELECTRICITY,09/11/2015,,Technical And Service Support,Utilities
141251,BRITISH GAS BUSINESS==========,4303708151,29,344.4,ELECTRICITY,09/11/2015,,Technical And Service Support,Utilities
141251,BRITISH GAS BUSINESS==========,4303708151,30,295.01,ELECTRICITY,09/11/2015,,Technical And Service Support,Utilities
141251,BRITISH GAS BUSINESS==========,4303708151,31,593.86,ELECTRICITY,09/11/2015,,Technical And Service Support,Utilities
141251,BRITISH GAS BUSINESS==========,4303708151,32,486.39,ELECTRICITY,09/11/2015,,Technical And Service Support,Utilities
141251,BRITISH GAS BUSINESS==========,4303708151,33,287.41,ELECTRICITY,09/11/2015,,Technical And Service Support,Utilities
141251,BRITISH GAS BUSINESS==========,4303708151,34,13.3,ELECTRICITY,09/11/2015,,Technical And Service Support,Utilities
141251,BRITISH GAS BUSINESS==========,4303708151,35,12.93,ELECTRICITY,09/11/2015,,Technical And Service Support,Utilities
141251,BRITISH GAS BUSINESS==========,4303708151,36,381.33,ELECTRICITY,09/11/2015,,Technical And Service Support,Utilities
141252,BRITISH GAS BUSINESS==========,4303708152,1,329.95,ELECTRICITY,09/11/2015,"10,936.89",Technical And Service Support,Utilities
141252,BRITISH GAS BUSINESS==========,4303708152,2,530.24,ELECTRICITY,09/11/2015,,Technical And Service Support,Utilities
141252,BRITISH GAS BUSINESS==========,4303708152,3,11.36,ELECTRICITY,09/11/2015,,Technical And Service Support,Utilities
141252,BRITISH GAS BUSINESS==========,4303708152,4,15.79,ELECTRICITY,09/11/2015,,Technical And Service Support,Utilities
141252,BRITISH GAS BUSINESS==========,4303708152,5,157.22,ELECTRICITY,09/11/2015,,Technical And Service Support,Utilities
141252,BRITISH GAS BUSINESS==========,4303708152,6,609.81,ELECTRICITY,09/11/2015,,Technical And Service Support,Utilities
141252,BRITISH GAS BUSINESS==========,4303708152,7,10.6,ELECTRICITY,09/11/2015,,Technical And Service Support,Utilities
141252,BRITISH GAS BUSINESS==========,4303708152,8,301.83,ELECTRICITY,09/11/2015,,Technical And Service Support,Utilities
141252,BRITISH GAS BUSINESS==========,4303708152,9,428.68,ELECTRICITY,09/11/2015,,Technical And Service Support,Utilities
141252,BRITISH GAS BUSINESS==========,4303708152,10,410.8,ELECTRICITY,09/11/2015,,Technical And Service Support,Utilities
141252,BRITISH GAS BUSINESS==========,4303708152,11,29.93,ELECTRICITY,09/11/2015,,Technical And Service Support,Utilities
141252,BRITISH GAS BUSINESS==========,4303708152,12,22.8,ELECTRICITY,09/11/2015,,Technical And Service Support,Utilities
141252,BRITISH GAS BUSINESS==========,4303708152,13,202.43,ELECTRICITY,09/11/2015,,Technical And Service Support,Utilities
141252,BRITISH GAS BUSINESS==========,4303708152,14,23.21,ELECTRICITY,09/11/2015,,Technical And Service Support,Utilities
141252,BRITISH GAS BUSINESS==========,4303708152,15,501.09,ELECTRICITY,09/11/2015,,Technical And Service Support,Utilities
141252,BRITISH GAS BUSINESS==========,4303708152,16,64.33,ELECTRICITY,09/11/2015,,Technical And Service Support,Utilities
141252,BRITISH GAS BUSINESS==========,4303708152,17,313.41,ELECTRICITY,09/11/2015,,Technical And Service Support,Utilities
141252,BRITISH GAS BUSINESS==========,4303708152,18,517.03,ELECTRICITY,09/11/2015,,Technical And Service Support,Utilities
141252,BRITISH GAS BUSINESS==========,4303708152,19,102.11,ELECTRICITY,09/11/2015,,Technical And Service Support,Utilities
141252,BRITISH GAS BUSINESS==========,4303708152,20,432.91,ELECTRICITY,09/11/2015,,Technical And Service Support,Utilities
141252,BRITISH GAS BUSINESS==========,4303708152,21,498.92,ELECTRICITY,09/11/2015,,Technical And Service Support,Utilities
141252,BRITISH GAS BUSINESS==========,4303708152,22,275.84,ELECTRICITY,09/11/2015,,Technical And Service Support,Utilities
141252,BRITISH GAS BUSINESS==========,4303708152,23,118.34,ELECTRICITY,09/11/2015,,Technical And Service Support,Utilities
141252,BRITISH GAS BUSINESS==========,4303708152,24,316.95,ELECTRICITY,09/11/2015,,Technical And Service Support,Utilities
141252,BRITISH GAS BUSINESS==========,4303708152,25,277.9,ELECTRICITY,09/11/2015,,Technical And Service Support,Utilities
141252,BRITISH GAS BUSINESS==========,4303708152,26,509.35,ELECTRICITY,09/11/2015,,Technical And Service Support,Utilities
141252,BRITISH GAS BUSINESS==========,4303708152,27,266.76,ELECTRICITY,09/11/2015,,Technical And Service Support,Utilities
141252,BRITISH GAS BUSINESS==========,4303708152,28,445.69,ELECTRICITY,09/11/2015,,Technical And Service Support,Utilities
141252,BRITISH GAS BUSINESS==========,4303708152,29,572.72,ELECTRICITY,09/11/2015,,Technical And Service Support,Utilities
141252,BRITISH GAS BUSINESS==========,4303708152,30,470.22,ELECTRICITY,09/11/2015,,Technical And Service Support,Utilities
141252,BRITISH GAS BUSINESS==========,4303708152,31,301.85,ELECTRICITY,09/11/2015,,Technical And Service Support,Utilities
141252,BRITISH GAS BUSINESS==========,4303708152,32,13.46,ELECTRICITY,09/11/2015,,Technical And Service Support,Utilities
141252,BRITISH GAS BUSINESS==========,4303708152,33,110.27,ELECTRICITY,09/11/2015,,Technical And Service Support,Utilities
141252,BRITISH GAS BUSINESS==========,4303708152,34,275.61,ELECTRICITY,09/11/2015,,Technical And Service Support,Utilities
141252,BRITISH GAS BUSINESS==========,4303708152,35,259.44,ELECTRICITY,09/11/2015,,Technical And Service Support,Utilities
141252,BRITISH GAS BUSINESS==========,4303708152,36,33.33,ELECTRICITY,09/11/2015,,Technical And Service Support,Utilities
141252,BRITISH GAS BUSINESS==========,4303708152,37,299.97,ELECTRICITY,09/11/2015,,Technical And Service Support,Utilities
141252,BRITISH GAS BUSINESS==========,4303708152,38,874.74,ELECTRICITY,09/11/2015,,Technical And Service Support,Utilities
141253,BRITISH GAS BUSINESS==========,4303708153,1,610.02,ELECTRICITY,09/11/2015,"15,591.75",Technical And Service Support,Utilities
141253,BRITISH GAS BUSINESS==========,4303708153,2,220.14,ELECTRICITY,09/11/2015,,Technical And Service Support,Utilities
141253,BRITISH GAS BUSINESS==========,4303708153,3,"1,153.35",ELECTRICITY,09/11/2015,,Technical And Service Support,Utilities
141253,BRITISH GAS BUSINESS==========,4303708153,4,136.83,ELECTRICITY,09/11/2015,,Technical And Service Support,Utilities
141253,BRITISH GAS BUSINESS==========,4303708153,5,561.28,ELECTRICITY,09/11/2015,,Technical And Service Support,Utilities
141253,BRITISH GAS BUSINESS==========,4303708153,6,239.09,ELECTRICITY,09/11/2015,,Technical And Service Support,Utilities
141253,BRITISH GAS BUSINESS==========,4303708153,7,183.77,ELECTRICITY,09/11/2015,,Technical And Service Support,Utilities
141253,BRITISH GAS BUSINESS==========,4303708153,8,231.3,ELECTRICITY,09/11/2015,,Technical And Service Support,Utilities
141253,BRITISH GAS BUSINESS==========,4303708153,9,487.13,ELECTRICITY,09/11/2015,,Technical And Service Support,Utilities
141253,BRITISH GAS BUSINESS==========,4303708153,10,66.6,ELECTRICITY,09/11/2015,,Technical And Service Support,Utilities
141253,BRITISH GAS BUSINESS==========,4303708153,11,254.68,ELECTRICITY,09/11/2015,,Technical And Service Support,Utilities
141253,BRITISH GAS BUSINESS==========,4303708153,12,934.46,ELECTRICITY,09/11/2015,,Technical And Service Support,Utilities
141253,BRITISH GAS BUSINESS==========,4303708153,13,343.46,ELECTRICITY,09/11/2015,,Technical And Service Support,Utilities
141253,BRITISH GAS BUSINESS==========,4303708153,14,430.67,ELECTRICITY,09/11/2015,,Technical And Service Support,Utilities
141253,BRITISH GAS BUSINESS==========,4303708153,15,286.95,ELECTRICITY,09/11/2015,,Technical And Service Support,Utilities
141253,BRITISH GAS BUSINESS==========,4303708153,16,686.1,ELECTRICITY,09/11/2015,,Technical And Service Support,Utilities
141253,BRITISH GAS BUSINESS==========,4303708153,17,401.6,ELECTRICITY,09/11/2015,,Technical And Service Support,Utilities
141253,BRITISH GAS BUSINESS==========,4303708153,18,308.56,ELECTRICITY,09/11/2015,,Technical And Service Support,Utilities
141253,BRITISH GAS BUSINESS==========,4303708153,19,610.31,ELECTRICITY,09/11/2015,,Technical And Service Support,Utilities
141253,BRITISH GAS BUSINESS==========,4303708153,20,34.25,ELECTRICITY,09/11/2015,,Technical And Service Support,Utilities
141253,BRITISH GAS BUSINESS==========,4303708153,21,18.19,ELECTRICITY,09/11/2015,,Technical And Service Support,Utilities
141253,BRITISH GAS BUSINESS==========,4303708153,22,15.23,ELECTRICITY,09/11/2015,,Technical And Service Support,Utilities
141253,BRITISH GAS BUSINESS==========,4303708153,23,23.17,ELECTRICITY,09/11/2015,,Technical And Service Support,Utilities
141253,BRITISH GAS BUSINESS==========,4303708153,24,522.69,ELECTRICITY,09/11/2015,,Technical And Service Support,Utilities
141253,BRITISH GAS BUSINESS==========,4303708153,25,623.19,ELECTRICITY,09/11/2015,,Technical And Service Support,Utilities
141253,BRITISH GAS BUSINESS==========,4303708153,26,25.64,ELECTRICITY,09/11/2015,,Technical And Service Support,Utilities
141253,BRITISH GAS BUSINESS==========,4303708153,27,496.61,ELECTRICITY,09/11/2015,,Technical And Service Support,Utilities
141253,BRITISH GAS BUSINESS==========,4303708153,28,251.82,ELECTRICITY,09/11/2015,,Technical And Service Support,Utilities
141253,BRITISH GAS BUSINESS==========,4303708153,29,247.39,ELECTRICITY,09/11/2015,,Technical And Service Support,Utilities
141253,BRITISH GAS BUSINESS==========,4303708153,30,233.61,ELECTRICITY,09/11/2015,,Technical And Service Support,Utilities
141253,BRITISH GAS BUSINESS==========,4303708153,31,415.18,ELECTRICITY,09/11/2015,,Technical And Service Support,Utilities
141253,BRITISH GAS BUSINESS==========,4303708153,32,"2,912.98",ELECTRICITY,09/11/2015,,Technical And Service Support,Utilities
141253,BRITISH GAS BUSINESS==========,4303708153,33,654.59,ELECTRICITY,09/11/2015,,Technical And Service Support,Utilities
141253,BRITISH GAS BUSINESS==========,4303708153,34,197.06,ELECTRICITY,09/11/2015,,Technical And Service Support,Utilities
141253,BRITISH GAS BUSINESS==========,4303708153,35,17.43,ELECTRICITY,09/11/2015,,Technical And Service Support,Utilities
141253,BRITISH GAS BUSINESS==========,4303708153,36,279.37,ELECTRICITY,09/11/2015,,Technical And Service Support,Utilities
141253,BRITISH GAS BUSINESS==========,4303708153,37,477.05,ELECTRICITY,09/11/2015,,Technical And Service Support,Utilities
141254,BRITISH GAS BUSINESS==========,4303708154,1,506.41,ELECTRICITY,09/11/2015,"6,194.44",Technical And Service Support,Utilities
141254,BRITISH GAS BUSINESS==========,4303708154,2,422.74,ELECTRICITY,09/11/2015,,Technical And Service Support,Utilities
141254,BRITISH GAS BUSINESS==========,4303708154,3,344.43,ELECTRICITY,09/11/2015,,Technical And Service Support,Utilities
141254,BRITISH GAS BUSINESS==========,4303708154,4,741.52,ELECTRICITY,09/11/2015,,Technical And Service Support,Utilities
141254,BRITISH GAS BUSINESS==========,4303708154,5,335.15,ELECTRICITY,09/11/2015,,Technical And Service Support,Utilities
141254,BRITISH GAS BUSINESS==========,4303708154,6,"1,249.14",ELECTRICITY,09/11/2015,,Technical And Service Support,Utilities
141254,BRITISH GAS BUSINESS==========,4303708154,7,342.51,ELECTRICITY,09/11/2015,,Technical And Service Support,Utilities
141254,BRITISH GAS BUSINESS==========,4303708154,8,297.01,ELECTRICITY,09/11/2015,,Technical And Service Support,Utilities
141254,BRITISH GAS BUSINESS==========,4303708154,9,23.26,ELECTRICITY,09/11/2015,,Technical And Service Support,Utilities
141254,BRITISH GAS BUSINESS==========,4303708154,10,264.76,ELECTRICITY,09/11/2015,,Technical And Service Support,Utilities
141254,BRITISH GAS BUSINESS==========,4303708154,11,12.46,ELECTRICITY,09/11/2015,,Technical And Service Support,Utilities
141254,BRITISH GAS BUSINESS==========,4303708154,12,8.59,ELECTRICITY,09/11/2015,,Technical And Service Support,Utilities
141254,BRITISH GAS BUSINESS==========,4303708154,13,8.96,ELECTRICITY,09/11/2015,,Technical And Service Support,Utilities
141254,BRITISH GAS BUSINESS==========,4303708154,14,367.32,ELECTRICITY,09/11/2015,,Technical And Service Support,Utilities
141254,BRITISH GAS BUSINESS==========,4303708154,15,214.89,ELECTRICITY,09/11/2015,,Technical And Service Support,Utilities
141254,BRITISH GAS BUSINESS==========,4303708154,16,348.34,ELECTRICITY,09/11/2015,,Technical And Service Support,Utilities
141254,BRITISH GAS BUSINESS==========,4303708154,17,373.4,ELECTRICITY,09/11/2015,,Technical And Service Support,Utilities
141254,BRITISH GAS BUSINESS==========,4303708154,18,333.55,ELECTRICITY,09/11/2015,,Technical And Service Support,Utilities
211015H,UNDERSTANDING RECRUITMENT,4360,1,"5,040.00",CONSULTANTS,09/11/2015,"5,040.00",Information and Communication Technology,Human Resources
800066857,*BURLINGTON UNIFORMS LTD,445815,1,202.4,CLOTHING,09/11/2015,607.2,Central Operations,Clothing
800066857,*BURLINGTON UNIFORMS LTD,445815,2,202.4,CLOTHING,09/11/2015,,Central Operations,Clothing
800066857,*BURLINGTON UNIFORMS LTD,445815,3,202.4,CLOTHING,09/11/2015,,Central Operations,Clothing
800068402,*GREENHAM TRADING LTD=========,5700567,1,6.84,HYGIENE,09/11/2015,302.47,Operations Fire Stations,Cleaning & Janitorial
800068402,*GREENHAM TRADING LTD=========,5700567,2,29.5,HYGIENE,09/11/2015,,Operations Fire Stations,Cleaning & Janitorial
800068402,*GREENHAM TRADING LTD=========,5700567,3,19.76,HYGIENE,09/11/2015,,Operations Fire Stations,Cleaning & Janitorial
800068402,*GREENHAM TRADING LTD=========,5700567,4,19.96,HYGIENE,09/11/2015,,Operations Fire Stations,Cleaning & Janitorial
800068402,*GREENHAM TRADING LTD=========,5700567,5,8,HYGIENE,09/11/2015,,Operations Fire Stations,Cleaning & Janitorial
800068402,*GREENHAM TRADING LTD=========,5700567,6,31,HYGIENE,09/11/2015,,Operations Fire Stations,Cleaning & Janitorial
800068402,*GREENHAM TRADING LTD=========,5700567,7,40.75,HYGIENE,09/11/2015,,Operations Fire Stations,Cleaning & Janitorial
800068402,*GREENHAM TRADING LTD=========,5700567,8,16.3,HYGIENE,09/11/2015,,Operations Fire Stations,Cleaning & Janitorial
800068402,*GREENHAM TRADING LTD=========,5700567,9,37.28,OPERATIONAL EQUIP-PURCHASE,09/11/2015,,Operations Fire Stations,Cleaning & Janitorial
800068402,*GREENHAM TRADING LTD=========,5700567,10,21.62,HYGIENE,09/11/2015,,Operations Fire Stations,Cleaning & Janitorial
800068402,*GREENHAM TRADING LTD=========,5700567,11,6.6,HYGIENE,09/11/2015,,Operations Fire Stations,Cleaning & Janitorial
800068402,*GREENHAM TRADING LTD=========,5700567,12,32.43,HYGIENE,09/11/2015,,Operations Fire Stations,Cleaning & Janitorial
800068402,*GREENHAM TRADING LTD=========,5700567,13,32.43,HYGIENE,09/11/2015,,Operations Fire Stations,Cleaning & Janitorial
031115H,WEST MIDLANDS FIRE SERVICE====,600034704,1,"4,962.90",FIRE AUTHS-MUTUAL ASSISTANCE,09/11/2015,"4,962.90",National Operational Guidance Project,Statutory Bodies
031115H,WEST MIDLANDS FIRE SERVICE====,600034705,1,"15,228.34",FIRE AUTHS-MUTUAL ASSISTANCE,09/11/2015,"15,228.34",National Operational Guidance Project,Statutory Bodies
041115H,L B OF BARKING & DAGENHAM,60020027,1,"84,250.00",COMMUNITY RELATIONS,09/11/2015,"84,250.00",Community Safety Delivery,Statutory Bodies
211015H,CAPITA SECURE INFO SOLUTIONS,6060006936,1,"82,349.00",CAMS CONTRACT,09/11/2015,"82,349.00",CAMS Project,ICT
211015H,CAPITA SECURE INFO SOLUTIONS,6060006937,1,"15,584.03",CAMS CONTRACT,09/11/2015,"15,584.03",CAMS Project,ICT
031115H,TOYOTA MATERIAL HANDLING UK LT,610199185,1,780,PURCHASE,09/11/2015,780,Procurement,Vehicle Management
141255,THAMES WATER UTILITIES LTD====,8896474587J,1,324.82,WATER & SEWERAGE RATES,09/11/2015,324.82,Technical And Service Support,Utilities
041115H,ENERGY TEAM (UK) LTD,9575,1,258.46,CONSULTANTS,09/11/2015,"1,014.33",Technical And Service Support,Environmental Services
041115H,ENERGY TEAM (UK) LTD,9575,2,498.02,CONSULTANTS,09/11/2015,,Technical And Service Support,Environmental Services
041115H,ENERGY TEAM (UK) LTD,9575,3,257.85,CONSULTANTS,09/11/2015,,Technical And Service Support,Environmental Services
041115H,PITNEY BOWES PURCHASE POWER,BD091927,1,"4,040.00",POSTAL SERVICES,09/11/2015,"4,040.00",Information Management,Mail Services
231015H,SURVITEC SERVICE &DISTRIBUTION,CD30835661,1,700,PROTECTIVE EQUIPMENT,09/11/2015,708,Technical And Service Support,Fire & Rescue
231015H,SURVITEC SERVICE &DISTRIBUTION,CD30835661,2,8,PROTECTIVE EQUIPMENT,09/11/2015,,Technical And Service Support,Fire & Rescue
800069101,ALLSTAR BUSINESS SOLUTIONS LTD,E2005586441,1,751.9,FUEL,09/11/2015,"17,933.26",Central Operations,Vehicle Management
800069101,ALLSTAR BUSINESS SOLUTIONS LTD,E2005586441,2,562.61,FUEL,09/11/2015,,Operations Fire Stations,Vehicle Management
800069101,ALLSTAR BUSINESS SOLUTIONS LTD,E2005586441,3,560.82,FUEL,09/11/2015,,Procurement,Vehicle Management
800069101,ALLSTAR BUSINESS SOLUTIONS LTD,E2005586441,4,515.57,FUEL,09/11/2015,,Operations Fire Stations,Vehicle Management
800069101,ALLSTAR BUSINESS SOLUTIONS LTD,E2005586441,5,465.96,FUEL,09/11/2015,,Operations Fire Stations,Vehicle Management
800069101,ALLSTAR BUSINESS SOLUTIONS LTD,E2005586441,6,415.21,FUEL,09/11/2015,,Operations Fire Stations,Vehicle Management
800069101,ALLSTAR BUSINESS SOLUTIONS LTD,E2005586441,7,376.99,FUEL,09/11/2015,,Operations Fire Stations,Vehicle Management
800069101,ALLSTAR BUSINESS SOLUTIONS LTD,E2005586441,8,352.1,FUEL,09/11/2015,,Operations Fire Stations,Vehicle Management
800069101,ALLSTAR BUSINESS SOLUTIONS LTD,E2005586441,9,347.67,FUEL,09/11/2015,,Operations Fire Stations,Vehicle Management
800069101,ALLSTAR BUSINESS SOLUTIONS LTD,E2005586441,10,336.64,FUEL,09/11/2015,,Operations Fire Stations,Vehicle Management
800069101,ALLSTAR BUSINESS SOLUTIONS LTD,E2005586441,11,321.19,FUEL,09/11/2015,,Operations Fire Stations,Vehicle Management
800069101,ALLSTAR BUSINESS SOLUTIONS LTD,E2005586441,12,305.07,FUEL,09/11/2015,,Operations Fire Stations,Vehicle Management
800069101,ALLSTAR BUSINESS SOLUTIONS LTD,E2005586441,13,289.79,FUEL,09/11/2015,,Operations Fire Stations,Vehicle Management
800069101,ALLSTAR BUSINESS SOLUTIONS LTD,E2005586441,14,286.77,FUEL,09/11/2015,,Operations Fire Stations,Vehicle Management
800069101,ALLSTAR BUSINESS SOLUTIONS LTD,E2005586441,15,276.6,FUEL,09/11/2015,,Operations Fire Stations,Vehicle Management
800069101,ALLSTAR BUSINESS SOLUTIONS LTD,E2005586441,16,276.26,FUEL,09/11/2015,,Operations Fire Stations,Vehicle Management
800069101,ALLSTAR BUSINESS SOLUTIONS LTD,E2005586441,17,269.49,FUEL,09/11/2015,,Operations Fire Stations,Vehicle Management
800069101,ALLSTAR BUSINESS SOLUTIONS LTD,E2005586441,18,267.16,FUEL,09/11/2015,,Operations Fire Stations,Vehicle Management
800069101,ALLSTAR BUSINESS SOLUTIONS LTD,E2005586441,19,264.92,FUEL,09/11/2015,,Operations Fire Stations,Vehicle Management
800069101,ALLSTAR BUSINESS SOLUTIONS LTD,E2005586441,20,259.27,FUEL,09/11/2015,,Operations Fire Stations,Vehicle Management
800069101,ALLSTAR BUSINESS SOLUTIONS LTD,E2005586441,21,256.3,FUEL,09/11/2015,,Operations Fire Stations,Vehicle Management
800069101,ALLSTAR BUSINESS SOLUTIONS LTD,E2005586441,22,256.28,FUEL,09/11/2015,,Operations Fire Stations,Vehicle Management
800069101,ALLSTAR BUSINESS SOLUTIONS LTD,E2005586441,23,250.62,FUEL,09/11/2015,,Operations Fire Stations,Vehicle Management
800069101,ALLSTAR BUSINESS SOLUTIONS LTD,E2005586441,24,248.85,FUEL,09/11/2015,,Operations Fire Stations,Vehicle Management
800069101,ALLSTAR BUSINESS SOLUTIONS LTD,E2005586441,25,246.96,FUEL,09/11/2015,,Operations Fire Stations,Vehicle Management
800069101,ALLSTAR BUSINESS SOLUTIONS LTD,E2005586441,26,237.84,FUEL,09/11/2015,,Operations Fire Stations,Vehicle Management
800069101,ALLSTAR BUSINESS SOLUTIONS LTD,E2005586441,27,232.14,FUEL,09/11/2015,,Operations Fire Stations,Vehicle Management
800069101,ALLSTAR BUSINESS SOLUTIONS LTD,E2005586441,28,224.03,FUEL,09/11/2015,,Operations Fire Stations,Vehicle Management
800069101,ALLSTAR BUSINESS SOLUTIONS LTD,E2005586441,29,224.02,FUEL,09/11/2015,,Operations Fire Stations,Vehicle Management
800069101,ALLSTAR BUSINESS SOLUTIONS LTD,E2005586441,30,222.99,FUEL,09/11/2015,,Operations Fire Stations,Vehicle Management
800069101,ALLSTAR BUSINESS SOLUTIONS LTD,E2005586441,31,221.4,FUEL,09/11/2015,,Operations Fire Stations,Vehicle Management
800069101,ALLSTAR BUSINESS SOLUTIONS LTD,E2005586441,32,216.69,FUEL,09/11/2015,,Operations Fire Stations,Vehicle Management
800069101,ALLSTAR BUSINESS SOLUTIONS LTD,E2005586441,33,214.51,FUEL,09/11/2015,,Operations Fire Stations,Vehicle Management
800069101,ALLSTAR BUSINESS SOLUTIONS LTD,E2005586441,34,206.68,FUEL,09/11/2015,,Operations Fire Stations,Vehicle Management
800069101,ALLSTAR BUSINESS SOLUTIONS LTD,E2005586441,35,204.3,FUEL,09/11/2015,,Operations Fire Stations,Vehicle Management
800069101,ALLSTAR BUSINESS SOLUTIONS LTD,E2005586441,36,203.78,FUEL,09/11/2015,,Operations Fire Stations,Vehicle Management
800069101,ALLSTAR BUSINESS SOLUTIONS LTD,E2005586441,37,185.33,FUEL,09/11/2015,,Operations Fire Stations,Vehicle Management
800069101,ALLSTAR BUSINESS SOLUTIONS LTD,E2005586441,38,183.88,FUEL,09/11/2015,,Operations Fire Stations,Vehicle Management
800069101,ALLSTAR BUSINESS SOLUTIONS LTD,E2005586441,39,177.56,FUEL,09/11/2015,,Operations Fire Stations,Vehicle Management
800069101,ALLSTAR BUSINESS SOLUTIONS LTD,E2005586441,40,174.64,FUEL,09/11/2015,,Operations Fire Stations,Vehicle Management
800069101,ALLSTAR BUSINESS SOLUTIONS LTD,E2005586441,41,174.18,FUEL,09/11/2015,,Technical And Service Support,Vehicle Management
800069101,ALLSTAR BUSINESS SOLUTIONS LTD,E2005586441,42,166.53,FUEL,09/11/2015,,Operations Fire Stations,Vehicle Management
800069101,ALLSTAR BUSINESS SOLUTIONS LTD,E2005586441,43,164.77,FUEL,09/11/2015,,Operations Fire Stations,Vehicle Management
800069101,ALLSTAR BUSINESS SOLUTIONS LTD,E2005586441,44,160.65,FUEL,09/11/2015,,Operations Fire Stations,Vehicle Management
800069101,ALLSTAR BUSINESS SOLUTIONS LTD,E2005586441,45,159.74,FUEL,09/11/2015,,Operations Fire Stations,Vehicle Management
800069101,ALLSTAR BUSINESS SOLUTIONS LTD,E2005586441,46,155.22,FUEL,09/11/2015,,Operations Fire Stations,Vehicle Management
800069101,ALLSTAR BUSINESS SOLUTIONS LTD,E2005586441,47,148.43,FUEL,09/11/2015,,Operations Non Fire Stations,Vehicle Management
800069101,ALLSTAR BUSINESS SOLUTIONS LTD,E2005586441,48,142.13,FUEL,09/11/2015,,Command Units,Vehicle Management
800069101,ALLSTAR BUSINESS SOLUTIONS LTD,E2005586441,49,140.06,FUEL,09/11/2015,,Operations Fire Stations,Vehicle Management
800069101,ALLSTAR BUSINESS SOLUTIONS LTD,E2005586441,50,138.99,FUEL,09/11/2015,,Operations Fire Stations,Vehicle Management
800069101,ALLSTAR BUSINESS SOLUTIONS LTD,E2005586441,51,136,FUEL,09/11/2015,,Operations Fire Stations,Vehicle Management
800069101,ALLSTAR BUSINESS SOLUTIONS LTD,E2005586441,52,134.47,FUEL,09/11/2015,,Operations Fire Stations,Vehicle Management
800069101,ALLSTAR BUSINESS SOLUTIONS LTD,E2005586441,53,133.51,FUEL,09/11/2015,,Operations Fire Stations,Vehicle Management
800069101,ALLSTAR BUSINESS SOLUTIONS LTD,E2005586441,54,132.86,FUEL,09/11/2015,,Command Units,Vehicle Management
800069101,ALLSTAR BUSINESS SOLUTIONS LTD,E2005586441,55,130.86,FUEL,09/11/2015,,Operations Fire Stations,Vehicle Management
800069101,ALLSTAR BUSINESS SOLUTIONS LTD,E2005586441,56,130.62,FUEL,09/11/2015,,Operations Fire Stations,Vehicle Management
800069101,ALLSTAR BUSINESS SOLUTIONS LTD,E2005586441,57,129.23,FUEL,09/11/2015,,CBRN RRT,Vehicle Management
800069101,ALLSTAR BUSINESS SOLUTIONS LTD,E2005586441,58,128.57,FUEL,09/11/2015,,Operational Resilience,Vehicle Management
800069101,ALLSTAR BUSINESS SOLUTIONS LTD,E2005586441,59,125.69,FUEL,09/11/2015,,Operations Fire Stations,Vehicle Management
800069101,ALLSTAR BUSINESS SOLUTIONS LTD,E2005586441,60,123.11,FUEL,09/11/2015,,Command Units,Vehicle Management
800069101,ALLSTAR BUSINESS SOLUTIONS LTD,E2005586441,61,121.25,FUEL,09/11/2015,,Operations Fire Stations,Vehicle Management
800069101,ALLSTAR BUSINESS SOLUTIONS LTD,E2005586441,62,120.54,FUEL,09/11/2015,,Fire Safety Regulation,Vehicle Management
800069101,ALLSTAR BUSINESS SOLUTIONS LTD,E2005586441,63,119.8,FUEL,09/11/2015,,Operations Fire Stations,Vehicle Management
800069101,ALLSTAR BUSINESS SOLUTIONS LTD,E2005586441,64,118.15,FUEL,09/11/2015,,Operations Fire Stations,Vehicle Management
800069101,ALLSTAR BUSINESS SOLUTIONS LTD,E2005586441,65,116.14,FUEL,09/11/2015,,Operations Fire Stations,Vehicle Management
800069101,ALLSTAR BUSINESS SOLUTIONS LTD,E2005586441,66,115.94,FUEL,09/11/2015,,Operations Fire Stations,Vehicle Management
800069101,ALLSTAR BUSINESS SOLUTIONS LTD,E2005586441,67,113.5,FUEL,09/11/2015,,Operations Fire Stations,Vehicle Management
800069101,ALLSTAR BUSINESS SOLUTIONS LTD,E2005586441,68,110.7,FUEL,09/11/2015,,Command Units,Vehicle Management
800069101,ALLSTAR BUSINESS SOLUTIONS LTD,E2005586441,69,107.5,FUEL,09/11/2015,,Operations Fire Stations,Vehicle Management
800069101,ALLSTAR BUSINESS SOLUTIONS LTD,E2005586441,70,106.56,FUEL,09/11/2015,,Operations Fire Stations,Vehicle Management
800069101,ALLSTAR BUSINESS SOLUTIONS LTD,E2005586441,71,105.61,FUEL,09/11/2015,,Operations Fire Stations,Vehicle Management
800069101,ALLSTAR BUSINESS SOLUTIONS LTD,E2005586441,72,105.22,FUEL,09/11/2015,,Operations Fire Stations,Vehicle Management
800069101,ALLSTAR BUSINESS SOLUTIONS LTD,E2005586441,73,104.71,FUEL,09/11/2015,,Operations Fire Stations,Vehicle Management
800069101,ALLSTAR BUSINESS SOLUTIONS LTD,E2005586441,74,100.17,FUEL,09/11/2015,,Command Units,Vehicle Management
800069101,ALLSTAR BUSINESS SOLUTIONS LTD,E2005586441,75,97.74,FUEL,09/11/2015,,Operations Fire Stations,Vehicle Management
800069101,ALLSTAR BUSINESS SOLUTIONS LTD,E2005586441,76,94.79,FUEL,09/11/2015,,Operations Fire Stations,Vehicle Management
800069101,ALLSTAR BUSINESS SOLUTIONS LTD,E2005586441,77,94.16,FUEL,09/11/2015,,Operations Fire Stations,Vehicle Management
800069101,ALLSTAR BUSINESS SOLUTIONS LTD,E2005586441,78,93.68,FUEL,09/11/2015,,Operations Fire Stations,Vehicle Management
800069101,ALLSTAR BUSINESS SOLUTIONS LTD,E2005586441,79,92.77,FUEL,09/11/2015,,Information and Communication Technology,Vehicle Management
800069101,ALLSTAR BUSINESS SOLUTIONS LTD,E2005586441,80,88.73,FUEL,09/11/2015,,Operations Fire Stations,Vehicle Management
800069101,ALLSTAR BUSINESS SOLUTIONS LTD,E2005586441,81,86.01,FUEL,09/11/2015,,Operations Fire Stations,Vehicle Management
800069101,ALLSTAR BUSINESS SOLUTIONS LTD,E2005586441,82,82.96,FUEL,09/11/2015,,Operations Fire Stations,Vehicle Management
800069101,ALLSTAR BUSINESS SOLUTIONS LTD,E2005586441,83,80.13,FUEL,09/11/2015,,Command Units,Vehicle Management
800069101,ALLSTAR BUSINESS SOLUTIONS LTD,E2005586441,84,79.29,FUEL,09/11/2015,,Operations Fire Stations,Vehicle Management
800069101,ALLSTAR BUSINESS SOLUTIONS LTD,E2005586441,85,77.89,FUEL,09/11/2015,,Command Units,Vehicle Management
800069101,ALLSTAR BUSINESS SOLUTIONS LTD,E2005586441,86,75.56,FUEL,09/11/2015,,Operations Fire Stations,Vehicle Management
800069101,ALLSTAR BUSINESS SOLUTIONS LTD,E2005586441,87,73.11,FUEL,09/11/2015,,Operations Fire Stations,Vehicle Management
800069101,ALLSTAR BUSINESS SOLUTIONS LTD,E2005586441,88,68.73,FUEL,09/11/2015,,Operations Fire Stations,Vehicle Management
800069101,ALLSTAR BUSINESS SOLUTIONS LTD,E2005586441,89,68.46,FUEL,09/11/2015,,Operational Resilience,Vehicle Management
800069101,ALLSTAR BUSINESS SOLUTIONS LTD,E2005586441,90,66.98,FUEL,09/11/2015,,Operations Fire Stations,Vehicle Management
800069101,ALLSTAR BUSINESS SOLUTIONS LTD,E2005586441,91,66.68,FUEL,09/11/2015,,Operations Fire Stations,Vehicle Management
800069101,ALLSTAR BUSINESS SOLUTIONS LTD,E2005586441,92,60.66,FUEL,09/11/2015,,Operations Fire Stations,Vehicle Management
800069101,ALLSTAR BUSINESS SOLUTIONS LTD,E2005586441,93,43.67,FUEL,09/11/2015,,LIFE - LFB Funded,Vehicle Management
800069101,ALLSTAR BUSINESS SOLUTIONS LTD,E2005586441,94,36.7,FUEL,09/11/2015,,Operations Fire Stations,Vehicle Management
800069101,ALLSTAR BUSINESS SOLUTIONS LTD,E2005586441,95,31.43,FUEL,09/11/2015,,Operations Fire Stations,Vehicle Management
800069101,ALLSTAR BUSINESS SOLUTIONS LTD,E2005586441,96,24.68,FUEL,09/11/2015,,Operations Fire Stations,Vehicle Management
800069101,ALLSTAR BUSINESS SOLUTIONS LTD,E2005586441,97,19.98,FUEL,09/11/2015,,Technical And Service Support,Vehicle Management
800069101,ALLSTAR BUSINESS SOLUTIONS LTD,E2005586441,98,8.14,FUEL,09/11/2015,,Operations Fire Stations,Vehicle Management
800069101,ALLSTAR BUSINESS SOLUTIONS LTD,E2005586441,99,8.13,FUEL,09/11/2015,,Operations Fire Stations,Vehicle Management
291015G,HALL FUELS,I07948873,1,"3,026.28",FUEL,09/11/2015,"3,026.28",Operations Fire Stations,Vehicle Management
291015G,HALL FUELS,I07948874,1,"2,593.20",FUEL,09/11/2015,"2,593.20",Operations Fire Stations,Vehicle Management
031115H,BLUESKY SHAREPOINT CONSULTING,INV-1539,1,"4,250.00",CONSULTANTS,09/11/2015,"4,250.00",National Operational Guidance Project,Consultancy
141256,JCT600 VEHICLE LEASING,INV00104521,1,465.78,LEASE CAR CHARGES,09/11/2015,465.78,Procurement,Vehicle Management
141256,JCT600 VEHICLE LEASING,INV00104521,2,-40.31,VAT CAR LEASING,09/11/2015,,Finance Services,Vehicle Management
141256,JCT600 VEHICLE LEASING,INV00104521,3,40.31,LEASE CAR CHARGES,09/11/2015,,Procurement,Vehicle Management
141256,JCT600 VEHICLE LEASING,INV00104522,1,533.51,LEASE CAR CHARGES,09/11/2015,533.51,Procurement,Vehicle Management
141256,JCT600 VEHICLE LEASING,INV00104522,2,-47.37,VAT CAR LEASING,09/11/2015,,Finance Services,Vehicle Management
141256,JCT600 VEHICLE LEASING,INV00104522,3,47.37,LEASE CAR CHARGES,09/11/2015,,Procurement,Vehicle Management
141256,JCT600 VEHICLE LEASING,INV00104523,1,306.03,LEASE CAR CHARGES,09/11/2015,306.03,Procurement,Vehicle Management
141256,JCT600 VEHICLE LEASING,INV00104523,2,-26.92,VAT CAR LEASING,09/11/2015,,Finance Services,Vehicle Management
141256,JCT600 VEHICLE LEASING,INV00104523,3,26.92,LEASE CAR CHARGES,09/11/2015,,Procurement,Vehicle Management
141256,JCT600 VEHICLE LEASING,INV00104524,1,370.39,LEASE CAR CHARGES,09/11/2015,370.39,Procurement,Vehicle Management
141256,JCT600 VEHICLE LEASING,INV00104524,2,-32.96,VAT CAR LEASING,09/11/2015,,Finance Services,Vehicle Management
141256,JCT600 VEHICLE LEASING,INV00104524,3,32.96,LEASE CAR CHARGES,09/11/2015,,Procurement,Vehicle Management
031115H,ETC VENUES LTD================,PH-114638,1,"2,904.90",PROFESSIONAL DEVELOPMENT,09/11/2015,"2,904.90",National Operational Guidance Project,Human Resources
041115H,RADIOCOMS SYSTEMS LIMITED=====,RSLSI15006656,1,892.75,RADIO,09/11/2015,"1,398.75",Information and Communication Technology,ICT
041115H,RADIOCOMS SYSTEMS LIMITED=====,RSLSI15006656,2,496,RADIO,09/11/2015,,Information and Communication Technology,ICT
041115H,RADIOCOMS SYSTEMS LIMITED=====,RSLSI15006656,3,10,RADIO,09/11/2015,,Information and Communication Technology,ICT
041115H,COLLINS (CONTRACTORS) LTD=====,SPAP797/15LFEP04,1,"22,870.00",DEVELOPMENT  EXPENSES-CONTRACT,09/11/2015,"22,870.00",Technical and Service Support,"Works - Construction, R&M"
031115H,DNV CERTIFICATION LTD=========,ZNEGB2271191950,1,"11,919.00",CONSULTANTS,09/11/2015,"11,919.00",National Operational Guidance Project,Consultancy
051115G,HEALTH MANAGEMENT LIMITED=====,138216,1,740,THIRD PARTY REPORTS,12/11/2015,"1,333.00",HR Management,Healthcare
051115G,HEALTH MANAGEMENT LIMITED=====,138216,2,593,THIRD PARTY REPORTS,12/11/2015,,HR Management,Healthcare
051115G,SYNERGY HEALTH LAB SERVICE LTD,147528,1,130,DRUG & ALCOHOL TESTS,12/11/2015,265,HR Management,Healthcare
051115G,SYNERGY HEALTH LAB SERVICE LTD,147528,2,135,DRUG & ALCOHOL TESTS,12/11/2015,,HR Management,Healthcare
061115H,LE MAITRE LTD=================,4539,1,250,PROTECTIVE EQUIPT - PARTS,12/11/2015,263,Technical and Service Support,Facilities & Management S
061115H,LE MAITRE LTD=================,4539,2,13,REPAIR & MAINTENANCE,12/11/2015,,Technical And Service Support,Facilities & Management S
091115G,*PREMIER VANGUARD LTD,740100,1,26.6,STATIONERY CONSUMABLES,12/11/2015,273.2,Operations Fire Stations,Stationery
091115G,*PREMIER VANGUARD LTD,740100,2,166.8,STATIONERY CONSUMABLES,12/11/2015,,Operations Fire Stations,Stationery
091115G,*PREMIER VANGUARD LTD,740100,3,26.6,STATIONERY CONSUMABLES,12/11/2015,,Operations Fire Stations,Stationery
091115G,*PREMIER VANGUARD LTD,740100,4,53.2,STATIONERY CONSUMABLES,12/11/2015,,Operations Fire Stations,Stationery
091115H,UBM INFORMATION LIMITED,10180444,1,"8,106.01",BOOKS & JOURNALS,12/11/2015,"8,106.01",Information Management,Education
281015H,MISCO UK LTD,10759135/10761192,1,530.53,ACQUISITIONS,12/11/2015,530.53,Operational Policy,ICT
061115H,*SPRUE SAFETY PRODUCTS LTD====,1083561,1,"3,090.00",FIRE DETECTORS,12/11/2015,"3,090.00",Operations Non Fire Stations,Health & Safety
061115H,ROYAL COLLEGE OF MUSIC========,11047038,1,370,PUBLIC RELATIONS,12/11/2015,370,Communications,Facilities & Management S
051115G,OPERATIONAL RESEARCH IN HEALTH,118A/LFB1/62,1,"6,491.67",CONSULTANTS,12/11/2015,"6,491.67",Information Management,Consultancy
061115H,VISTA LANDSCAPE MANAGEMENT LTD,121305,1,95.83,GROUNDS MAINTENANCE,12/11/2015,"2,232.46",Technical And Service Support,"Works - Construction, R&M"
061115H,VISTA LANDSCAPE MANAGEMENT LTD,121305,2,23,GROUNDS MAINTENANCE,12/11/2015,,Technical And Service Support,"Works - Construction, R&M"
061115H,VISTA LANDSCAPE MANAGEMENT LTD,121305,3,22.12,GROUNDS MAINTENANCE,12/11/2015,,Technical And Service Support,"Works - Construction, R&M"
061115H,VISTA LANDSCAPE MANAGEMENT LTD,121305,4,24.94,GROUNDS MAINTENANCE,12/11/2015,,Technical And Service Support,"Works - Construction, R&M"
061115H,VISTA LANDSCAPE MANAGEMENT LTD,121305,5,75,GROUNDS MAINTENANCE,12/11/2015,,Technical And Service Support,"Works - Construction, R&M"
061115H,VISTA LANDSCAPE MANAGEMENT LTD,121305,6,17.25,GROUNDS MAINTENANCE,12/11/2015,,Technical And Service Support,"Works - Construction, R&M"
061115H,VISTA LANDSCAPE MANAGEMENT LTD,121305,7,25.77,GROUNDS MAINTENANCE,12/11/2015,,Technical And Service Support,"Works - Construction, R&M"
061115H,VISTA LANDSCAPE MANAGEMENT LTD,121305,8,17.25,GROUNDS MAINTENANCE,12/11/2015,,Technical And Service Support,"Works - Construction, R&M"
061115H,VISTA LANDSCAPE MANAGEMENT LTD,121305,9,46,GROUNDS MAINTENANCE,12/11/2015,,Technical And Service Support,"Works - Construction, R&M"
061115H,VISTA LANDSCAPE MANAGEMENT LTD,121305,10,11.5,GROUNDS MAINTENANCE,12/11/2015,,Technical And Service Support,"Works - Construction, R&M"
061115H,VISTA LANDSCAPE MANAGEMENT LTD,121305,11,109.25,GROUNDS MAINTENANCE,12/11/2015,,Technical And Service Support,"Works - Construction, R&M"
061115H,VISTA LANDSCAPE MANAGEMENT LTD,121305,12,11.5,GROUNDS MAINTENANCE,12/11/2015,,Technical And Service Support,"Works - Construction, R&M"
061115H,VISTA LANDSCAPE MANAGEMENT LTD,121305,13,82.52,GROUNDS MAINTENANCE,12/11/2015,,Technical And Service Support,"Works - Construction, R&M"
061115H,VISTA LANDSCAPE MANAGEMENT LTD,121305,14,22.05,GROUNDS MAINTENANCE,12/11/2015,,Technical And Service Support,"Works - Construction, R&M"
061115H,VISTA LANDSCAPE MANAGEMENT LTD,121305,15,17.25,GROUNDS MAINTENANCE,12/11/2015,,Technical And Service Support,"Works - Construction, R&M"
061115H,VISTA LANDSCAPE MANAGEMENT LTD,121305,16,127.05,GROUNDS MAINTENANCE,12/11/2015,,Technical And Service Support,"Works - Construction, R&M"
061115H,VISTA LANDSCAPE MANAGEMENT LTD,121305,17,11.5,GROUNDS MAINTENANCE,12/11/2015,,Technical And Service Support,"Works - Construction, R&M"
061115H,VISTA LANDSCAPE MANAGEMENT LTD,121305,18,17.25,GROUNDS MAINTENANCE,12/11/2015,,Technical And Service Support,"Works - Construction, R&M"
061115H,VISTA LANDSCAPE MANAGEMENT LTD,121305,19,11.5,GROUNDS MAINTENANCE,12/11/2015,,Technical And Service Support,"Works - Construction, R&M"
061115H,VISTA LANDSCAPE MANAGEMENT LTD,121305,20,17.25,GROUNDS MAINTENANCE,12/11/2015,,Technical And Service Support,"Works - Construction, R&M"
061115H,VISTA LANDSCAPE MANAGEMENT LTD,121305,21,22.36,GROUNDS MAINTENANCE,12/11/2015,,Technical And Service Support,"Works - Construction, R&M"
061115H,VISTA LANDSCAPE MANAGEMENT LTD,121305,22,11.5,GROUNDS MAINTENANCE,12/11/2015,,Technical And Service Support,"Works - Construction, R&M"
061115H,VISTA LANDSCAPE MANAGEMENT LTD,121305,23,11.5,GROUNDS MAINTENANCE,12/11/2015,,Technical And Service Support,"Works - Construction, R&M"
061115H,VISTA LANDSCAPE MANAGEMENT LTD,121305,24,79.85,GROUNDS MAINTENANCE,12/11/2015,,Technical And Service Support,"Works - Construction, R&M"
061115H,VISTA LANDSCAPE MANAGEMENT LTD,121305,25,83.96,GROUNDS MAINTENANCE,12/11/2015,,Technical And Service Support,"Works - Construction, R&M"
061115H,VISTA LANDSCAPE MANAGEMENT LTD,121305,26,17.25,GROUNDS MAINTENANCE,12/11/2015,,Technical And Service Support,"Works - Construction, R&M"
061115H,VISTA LANDSCAPE MANAGEMENT LTD,121305,27,256.21,GROUNDS MAINTENANCE,12/11/2015,,Technical And Service Support,"Works - Construction, R&M"
061115H,VISTA LANDSCAPE MANAGEMENT LTD,121305,28,17.26,GROUNDS MAINTENANCE,12/11/2015,,Technical And Service Support,"Works - Construction, R&M"
061115H,VISTA LANDSCAPE MANAGEMENT LTD,121305,29,63.14,GROUNDS MAINTENANCE,12/11/2015,,Technical And Service Support,"Works - Construction, R&M"
061115H,VISTA LANDSCAPE MANAGEMENT LTD,121305,30,11.5,GROUNDS MAINTENANCE,12/11/2015,,Technical And Service Support,"Works - Construction, R&M"
061115H,VISTA LANDSCAPE MANAGEMENT LTD,121305,31,11.5,GROUNDS MAINTENANCE,12/11/2015,,Technical And Service Support,"Works - Construction, R&M"
061115H,VISTA LANDSCAPE MANAGEMENT LTD,121305,32,16.63,GROUNDS MAINTENANCE,12/11/2015,,Technical And Service Support,"Works - Construction, R&M"
061115H,VISTA LANDSCAPE MANAGEMENT LTD,121305,33,73.18,GROUNDS MAINTENANCE,12/11/2015,,Technical And Service Support,"Works - Construction, R&M"
061115H,VISTA LANDSCAPE MANAGEMENT LTD,121305,34,118.23,GROUNDS MAINTENANCE,12/11/2015,,Technical And Service Support,"Works - Construction, R&M"
061115H,VISTA LANDSCAPE MANAGEMENT LTD,121305,35,555,GROUNDS MAINTENANCE,12/11/2015,,Technical And Service Support,"Works - Construction, R&M"
061115H,VISTA LANDSCAPE MANAGEMENT LTD,121305,36,20.83,GROUNDS MAINTENANCE,12/11/2015,,Technical And Service Support,"Works - Construction, R&M"
061115H,VISTA LANDSCAPE MANAGEMENT LTD,121305,37,64.28,GROUNDS MAINTENANCE,12/11/2015,,Technical And Service Support,"Works - Construction, R&M"
061115H,VISTA LANDSCAPE MANAGEMENT LTD,121305,38,12.5,GROUNDS MAINTENANCE,12/11/2015,,Technical And Service Support,"Works - Construction, R&M"
051115G,CHANGING YOUNG MINDS,13102015,1,150,GENERAL,12/11/2015,450,LIFE - LFB Funded,Human Resources
051115G,CHANGING YOUNG MINDS,13102015,2,150,GENERAL,12/11/2015,,LIFE - LFB Funded,Human Resources
051115G,CHANGING YOUNG MINDS,13102015,3,150,GENERAL,12/11/2015,,LIFE - LFB Funded,Human Resources
091115G,*NPS (SHOES) LTD,15315,1,30.05,CLOTHING,12/11/2015,"1,045.30",Operations Fire Stations,Clothing
091115G,*NPS (SHOES) LTD,15315,2,30.05,CLOTHING,12/11/2015,,Operations Fire Stations,Clothing
091115G,*NPS (SHOES) LTD,15315,3,30.05,CLOTHING,12/11/2015,,Operations Fire Stations,Clothing
091115G,*NPS (SHOES) LTD,15315,4,30.05,CLOTHING,12/11/2015,,Operations Fire Stations,Clothing
091115G,*NPS (SHOES) LTD,15315,5,30.05,CLOTHING,12/11/2015,,Operations Fire Stations,Clothing
091115G,*NPS (SHOES) LTD,15315,6,30.05,CLOTHING,12/11/2015,,Operations Fire Stations,Clothing
091115G,*NPS (SHOES) LTD,15315,7,30.05,CLOTHING,12/11/2015,,Operations Fire Stations,Clothing
091115G,*NPS (SHOES) LTD,15315,8,30.05,CLOTHING,12/11/2015,,Operations Fire Stations,Clothing
091115G,*NPS (SHOES) LTD,15315,9,30.05,CLOTHING,12/11/2015,,Operations Fire Stations,Clothing
091115G,*NPS (SHOES) LTD,15315,10,30.05,CLOTHING,12/11/2015,,Operations Fire Stations,Clothing
091115G,*NPS (SHOES) LTD,15315,11,30.05,CLOTHING,12/11/2015,,Operations Fire Stations,Clothing
091115G,*NPS (SHOES) LTD,15315,12,30.05,CLOTHING,12/11/2015,,Operations Fire Stations,Clothing
091115G,*NPS (SHOES) LTD,15315,13,30.05,CLOTHING,12/11/2015,,Operations Fire Stations,Clothing
091115G,*NPS (SHOES) LTD,15315,14,30.05,CLOTHING,12/11/2015,,Operations Fire Stations,Clothing
091115G,*NPS (SHOES) LTD,15315,15,30.05,CLOTHING,12/11/2015,,Operations Fire Stations,Clothing
091115G,*NPS (SHOES) LTD,15315,16,35,CLOTHING,12/11/2015,,Operations Fire Stations,Clothing
091115G,*NPS (SHOES) LTD,15315,17,29.45,CLOTHING,12/11/2015,,Firefighter Trainees,Clothing
091115G,*NPS (SHOES) LTD,15315,18,29.45,CLOTHING,12/11/2015,,Firefighter Trainees,Clothing
091115G,*NPS (SHOES) LTD,15315,19,29.45,CLOTHING,12/11/2015,,Firefighter Trainees,Clothing
091115G,*NPS (SHOES) LTD,15315,20,29.45,CLOTHING,12/11/2015,,Firefighter Trainees,Clothing
091115G,*NPS (SHOES) LTD,15315,21,29.45,CLOTHING,12/11/2015,,Operations Fire Stations,Clothing
091115G,*NPS (SHOES) LTD,15315,22,29.45,CLOTHING,12/11/2015,,Firefighter Trainees,Clothing
091115G,*NPS (SHOES) LTD,15315,23,29.45,CLOTHING,12/11/2015,,Operations Fire Stations,Clothing
091115G,*NPS (SHOES) LTD,15315,24,29.45,CLOTHING,12/11/2015,,Operations Fire Stations,Clothing
091115G,*NPS (SHOES) LTD,15315,25,29.45,CLOTHING,12/11/2015,,Operations Fire Stations,Clothing
091115G,*NPS (SHOES) LTD,15315,26,29.45,CLOTHING,12/11/2015,,Firefighter Trainees,Clothing
091115G,*NPS (SHOES) LTD,15315,27,29.45,CLOTHING,12/11/2015,,Operations Fire Stations,Clothing
091115G,*NPS (SHOES) LTD,15315,28,29.45,CLOTHING,12/11/2015,,Operations Fire Stations,Clothing
091115G,*NPS (SHOES) LTD,15315,29,29.45,CLOTHING,12/11/2015,,Operations Fire Stations,Clothing
091115G,*NPS (SHOES) LTD,15315,30,29.45,CLOTHING,12/11/2015,,Firefighter Trainees,Clothing
091115G,*NPS (SHOES) LTD,15315,31,29.45,CLOTHING,12/11/2015,,Operations Fire Stations,Clothing
091115G,*NPS (SHOES) LTD,15315,32,29.45,CLOTHING,12/11/2015,,Operations Fire Stations,Clothing
091115G,*NPS (SHOES) LTD,15315,33,29.45,CLOTHING,12/11/2015,,Operations Fire Stations,Clothing
091115G,*NPS (SHOES) LTD,15315,34,29.45,CLOTHING,12/11/2015,,Firefighter Trainees,Clothing
091115G,*NPS (SHOES) LTD,15315,35,29.45,CLOTHING,12/11/2015,,Operations Fire Stations,Clothing
091115G,*NPS (SHOES) LTD,15430,1,41.1,CLOTHING,12/11/2015,"3,085.30",Fire Safety Regulation,Clothing
091115G,*NPS (SHOES) LTD,15430,2,29.45,CLOTHING,12/11/2015,,Operations Fire Stations,Clothing
091115G,*NPS (SHOES) LTD,15430,3,29.45,CLOTHING,12/11/2015,,Operations Fire Stations,Clothing
091115G,*NPS (SHOES) LTD,15430,4,29.45,CLOTHING,12/11/2015,,Operations Fire Stations,Clothing
091115G,*NPS (SHOES) LTD,15430,5,29.45,CLOTHING,12/11/2015,,Operations Fire Stations,Clothing
091115G,*NPS (SHOES) LTD,15430,6,29.45,CLOTHING,12/11/2015,,Operations Fire Stations,Clothing
091115G,*NPS (SHOES) LTD,15430,7,29.45,CLOTHING,12/11/2015,,Operations Fire Stations,Clothing
091115G,*NPS (SHOES) LTD,15430,8,29.45,CLOTHING,12/11/2015,,Operations Fire Stations,Clothing
091115G,*NPS (SHOES) LTD,15430,9,29.45,CLOTHING,12/11/2015,,Operations Fire Stations,Clothing
091115G,*NPS (SHOES) LTD,15430,10,35,CLOTHING,12/11/2015,,Operations Fire Stations,Clothing
091115G,*NPS (SHOES) LTD,15430,11,35,CLOTHING,12/11/2015,,Operations Fire Stations,Clothing
091115G,*NPS (SHOES) LTD,15430,12,35,CLOTHING,12/11/2015,,Operations Fire Stations,Clothing
091115G,*NPS (SHOES) LTD,15430,13,30.05,CLOTHING,12/11/2015,,Operations Fire Stations,Clothing
091115G,*NPS (SHOES) LTD,15430,14,30.05,CLOTHING,12/11/2015,,Operations Fire Stations,Clothing
091115G,*NPS (SHOES) LTD,15430,15,30.05,CLOTHING,12/11/2015,,Operations Fire Stations,Clothing
091115G,*NPS (SHOES) LTD,15430,16,30.05,CLOTHING,12/11/2015,,Operations Fire Stations,Clothing
091115G,*NPS (SHOES) LTD,15430,17,30.05,CLOTHING,12/11/2015,,Community Safety Delivery,Clothing
091115G,*NPS (SHOES) LTD,15430,18,30.05,CLOTHING,12/11/2015,,Operations Fire Stations,Clothing
091115G,*NPS (SHOES) LTD,15430,19,30.05,CLOTHING,12/11/2015,,Operations Fire Stations,Clothing
091115G,*NPS (SHOES) LTD,15430,20,30.05,CLOTHING,12/11/2015,,Operations Fire Stations,Clothing
091115G,*NPS (SHOES) LTD,15430,21,30.05,CLOTHING,12/11/2015,,Operations Fire Stations,Clothing
091115G,*NPS (SHOES) LTD,15430,22,30.05,CLOTHING,12/11/2015,,Operations Fire Stations,Clothing
091115G,*NPS (SHOES) LTD,15430,23,30.05,CLOTHING,12/11/2015,,Operations Fire Stations,Clothing
091115G,*NPS (SHOES) LTD,15430,24,30.05,CLOTHING,12/11/2015,,Operations Fire Stations,Clothing
091115G,*NPS (SHOES) LTD,15430,25,70,CLOTHING,12/11/2015,,Fire Safety Regulation,Clothing
091115G,*NPS (SHOES) LTD,15430,26,35,CLOTHING,12/11/2015,,CBRN RRT,Clothing
091115G,*NPS (SHOES) LTD,15430,27,30.05,CLOTHING,12/11/2015,,Operations Fire Stations,Clothing
091115G,*NPS (SHOES) LTD,15430,28,30.05,CLOTHING,12/11/2015,,Operations Fire Stations,Clothing
091115G,*NPS (SHOES) LTD,15430,29,30.05,CLOTHING,12/11/2015,,Operations Fire Stations,Clothing
091115G,*NPS (SHOES) LTD,15430,30,58.9,CLOTHING,12/11/2015,,Firefighter Trainees,Clothing
091115G,*NPS (SHOES) LTD,15430,31,58.9,CLOTHING,12/11/2015,,Firefighter Trainees,Clothing
091115G,*NPS (SHOES) LTD,15430,32,41.1,CLOTHING,12/11/2015,,Fire Safety Regulation,Clothing
091115G,*NPS (SHOES) LTD,15430,33,41.1,CLOTHING,12/11/2015,,Fire Safety Regulation,Clothing
091115G,*NPS (SHOES) LTD,15430,34,41.1,CLOTHING,12/11/2015,,Fire Safety Regulation,Clothing
091115G,*NPS (SHOES) LTD,15430,35,41.1,CLOTHING,12/11/2015,,Operations Fire Stations,Clothing
091115G,*NPS (SHOES) LTD,15430,36,30.05,CLOTHING,12/11/2015,,Operations Fire Stations,Clothing
091115G,*NPS (SHOES) LTD,15430,37,30.05,CLOTHING,12/11/2015,,Operations Fire Stations,Clothing
091115G,*NPS (SHOES) LTD,15430,38,30.05,CLOTHING,12/11/2015,,Operations Fire Stations,Clothing
091115G,*NPS (SHOES) LTD,15430,39,30.05,CLOTHING,12/11/2015,,Operations Fire Stations,Clothing
091115G,*NPS (SHOES) LTD,15430,40,30.05,CLOTHING,12/11/2015,,Operations Fire Stations,Clothing
091115G,*NPS (SHOES) LTD,15430,41,30.05,CLOTHING,12/11/2015,,Operations Fire Stations,Clothing
091115G,*NPS (SHOES) LTD,15430,42,29.45,CLOTHING,12/11/2015,,Operations Fire Stations,Clothing
091115G,*NPS (SHOES) LTD,15430,43,29.45,CLOTHING,12/11/2015,,Operations Fire Stations,Clothing
091115G,*NPS (SHOES) LTD,15430,44,29.45,CLOTHING,12/11/2015,,Operations Fire Stations,Clothing
091115G,*NPS (SHOES) LTD,15430,45,29.45,CLOTHING,12/11/2015,,Operations Fire Stations,Clothing
091115G,*NPS (SHOES) LTD,15430,46,29.45,CLOTHING,12/11/2015,,Operations Fire Stations,Clothing
091115G,*NPS (SHOES) LTD,15430,47,29.45,CLOTHING,12/11/2015,,Operations Fire Stations,Clothing
091115G,*NPS (SHOES) LTD,15430,48,29.45,CLOTHING,12/11/2015,,Operations Fire Stations,Clothing
091115G,*NPS (SHOES) LTD,15430,49,29.45,CLOTHING,12/11/2015,,Operations Fire Stations,Clothing
091115G,*NPS (SHOES) LTD,15430,50,29.45,CLOTHING,12/11/2015,,Operations Fire Stations,Clothing
091115G,*NPS (SHOES) LTD,15430,51,29.45,CLOTHING,12/11/2015,,Operations Fire Stations,Clothing
091115G,*NPS (SHOES) LTD,15430,52,29.45,CLOTHING,12/11/2015,,Operations Fire Stations,Clothing
091115G,*NPS (SHOES) LTD,15430,53,29.45,CLOTHING,12/11/2015,,Operations Fire Stations,Clothing
091115G,*NPS (SHOES) LTD,15430,54,29.45,CLOTHING,12/11/2015,,Operations Fire Stations,Clothing
091115G,*NPS (SHOES) LTD,15430,55,29.45,CLOTHING,12/11/2015,,Fire Safety Regulation,Clothing
091115G,*NPS (SHOES) LTD,15430,56,41.1,CLOTHING,12/11/2015,,Fire Safety Regulation,Clothing
091115G,*NPS (SHOES) LTD,15430,57,41.1,CLOTHING,12/11/2015,,Command Units,Clothing
091115G,*NPS (SHOES) LTD,15430,58,30.05,CLOTHING,12/11/2015,,Technical And Service Support,Clothing
091115G,*NPS (SHOES) LTD,15430,59,30.05,CLOTHING,12/11/2015,,Operations Fire Stations,Clothing
091115G,*NPS (SHOES) LTD,15430,60,30.05,CLOTHING,12/11/2015,,Operations Fire Stations,Clothing
091115G,*NPS (SHOES) LTD,15430,61,30.05,CLOTHING,12/11/2015,,Operations Fire Stations,Clothing
091115G,*NPS (SHOES) LTD,15430,62,30.05,CLOTHING,12/11/2015,,Operations Fire Stations,Clothing
091115G,*NPS (SHOES) LTD,15430,63,35,CLOTHING,12/11/2015,,Fire Safety Regulation,Clothing
091115G,*NPS (SHOES) LTD,15430,64,58.9,CLOTHING,12/11/2015,,Firefighter Trainees,Clothing
091115G,*NPS (SHOES) LTD,15430,65,58.9,CLOTHING,12/11/2015,,Firefighter Trainees,Clothing
091115G,*NPS (SHOES) LTD,15430,66,58.9,CLOTHING,12/11/2015,,Firefighter Trainees,Clothing
091115G,*NPS (SHOES) LTD,15430,67,58.9,CLOTHING,12/11/2015,,Firefighter Trainees,Clothing
091115G,*NPS (SHOES) LTD,15430,68,29.45,CLOTHING,12/11/2015,,Operations Fire Stations,Clothing
091115G,*NPS (SHOES) LTD,15430,69,29.45,CLOTHING,12/11/2015,,Operations Fire Stations,Clothing
091115G,*NPS (SHOES) LTD,15430,70,29.45,CLOTHING,12/11/2015,,Operations Fire Stations,Clothing
091115G,*NPS (SHOES) LTD,15430,71,58.9,CLOTHING,12/11/2015,,Firefighter Trainees,Clothing
091115G,*NPS (SHOES) LTD,15430,72,58.9,CLOTHING,12/11/2015,,Firefighter Trainees,Clothing
091115G,*NPS (SHOES) LTD,15430,73,29.45,CLOTHING,12/11/2015,,Operations Fire Stations,Clothing
091115G,*NPS (SHOES) LTD,15430,74,58.9,CLOTHING,12/11/2015,,Firefighter Trainees,Clothing
091115G,*NPS (SHOES) LTD,15430,75,58.9,CLOTHING,12/11/2015,,Firefighter Trainees,Clothing
091115G,*NPS (SHOES) LTD,15430,76,58.9,CLOTHING,12/11/2015,,Firefighter Trainees,Clothing
091115G,*NPS (SHOES) LTD,15430,77,29.45,CLOTHING,12/11/2015,,Operations Fire Stations,Clothing
091115G,*NPS (SHOES) LTD,15430,78,29.45,CLOTHING,12/11/2015,,Operations Fire Stations,Clothing
091115G,*NPS (SHOES) LTD,15430,79,29.45,CLOTHING,12/11/2015,,Operations Fire Stations,Clothing
091115G,*NPS (SHOES) LTD,15430,80,58.9,CLOTHING,12/11/2015,,Firefighter Trainees,Clothing
091115G,*NPS (SHOES) LTD,15430,81,29.45,CLOTHING,12/11/2015,,Operational Policy,Clothing
091115G,*NPS (SHOES) LTD,15430,82,29.45,CLOTHING,12/11/2015,,Operations Fire Stations,Clothing
091115G,*NPS (SHOES) LTD,15430,83,41.1,CLOTHING,12/11/2015,,Operations Non Fire Stations,Clothing
091115G,*NPS (SHOES) LTD,15430,84,41.1,CLOTHING,12/11/2015,,Operations Fire Stations,Clothing
091115G,*NPS (SHOES) LTD,15430,85,41.1,CLOTHING,12/11/2015,,Operations Fire Stations,Clothing
091115G,*NPS (SHOES) LTD,15430,86,28.25,CLOTHING,12/11/2015,,Operations Fire Stations,Clothing
091115G,*NPS (SHOES) LTD,15541,1,58.9,CLOTHING,12/11/2015,706.8,Firefighter Trainees,Clothing
091115G,*NPS (SHOES) LTD,15541,2,58.9,CLOTHING,12/11/2015,,Firefighter Trainees,Clothing
091115G,*NPS (SHOES) LTD,15541,3,58.9,CLOTHING,12/11/2015,,Firefighter Trainees,Clothing
091115G,*NPS (SHOES) LTD,15541,4,58.9,CLOTHING,12/11/2015,,Firefighter Trainees,Clothing
091115G,*NPS (SHOES) LTD,15541,5,58.9,CLOTHING,12/11/2015,,Firefighter Trainees,Clothing
091115G,*NPS (SHOES) LTD,15541,6,58.9,CLOTHING,12/11/2015,,Firefighter Trainees,Clothing
091115G,*NPS (SHOES) LTD,15541,7,58.9,CLOTHING,12/11/2015,,Firefighter Trainees,Clothing
091115G,*NPS (SHOES) LTD,15541,8,58.9,CLOTHING,12/11/2015,,Firefighter Trainees,Clothing
091115G,*NPS (SHOES) LTD,15541,9,58.9,CLOTHING,12/11/2015,,Firefighter Trainees,Clothing
091115G,*NPS (SHOES) LTD,15541,10,58.9,CLOTHING,12/11/2015,,Firefighter Trainees,Clothing
091115G,*NPS (SHOES) LTD,15541,11,58.9,CLOTHING,12/11/2015,,Firefighter Trainees,Clothing
091115G,*NPS (SHOES) LTD,15541,12,58.9,CLOTHING,12/11/2015,,Firefighter Trainees,Clothing
051115G,DRON & WRIGHT=================,17928,1,"5,073.80",GENERAL,12/11/2015,"5,073.80",Exercise Unified Response,Facilities & Management S
271015H,C. S. TODD & ASSOCIATES LTD,18029,1,"3,840.00",CONSULTANTS,12/11/2015,"3,840.00",Fire Safety Regulation,Human Resources
281015H,ENERGY AUDITING AGENCY LTD====,20152178,1,660,PROFESSIONAL SERVICES,12/11/2015,660,Technical And Service Support,Statutory Bodies
091115G,KENT FIRE & RESCUE SERVICE,201655,1,"4,462.16",FIRE AUTHS-MUTUAL ASSISTANCE,12/11/2015,"4,462.16",National Operational Guidance Project,Statutory Bodies
051115G,CHAIN GANG,21059,1,292.34,POSTAL SERVICES,12/11/2015,292.34,Information Management,Mail Services
091115H,TRADE WINDS===================,23180,1,"14,896.00",PRINTING,12/11/2015,"14,896.00",LFB 150th Anniversary,Facilities & Management S
061115H,CRISPIN HUGHES================,2325,1,359.9,PRESS OFFICE,12/11/2015,359.9,Communications,Facilities & Management S
091115H,GRADIENT CONSULTANTS LLP======,2445,1,290,PROF FEES-MISCELLANEOUS,12/11/2015,"1,755.00",Technical and Service Support,"Works - Construction, R&M"
091115H,GRADIENT CONSULTANTS LLP======,2445,2,290,PROF FEES-MISCELLANEOUS,12/11/2015,,Technical and Service Support,"Works - Construction, R&M"
091115H,GRADIENT CONSULTANTS LLP======,2445,3,290,PROF FEES-MISCELLANEOUS,12/11/2015,,Technical and Service Support,"Works - Construction, R&M"
091115H,GRADIENT CONSULTANTS LLP======,2445,4,187.5,PROF FEES-MISCELLANEOUS,12/11/2015,,Technical and Service Support,"Works - Construction, R&M"
091115H,GRADIENT CONSULTANTS LLP======,2445,5,290,PROF FEES-MISCELLANEOUS,12/11/2015,,Technical and Service Support,"Works - Construction, R&M"
091115H,GRADIENT CONSULTANTS LLP======,2445,6,290,PROF FEES-MISCELLANEOUS,12/11/2015,,Technical and Service Support,"Works - Construction, R&M"
091115H,GRADIENT CONSULTANTS LLP======,2445,7,62.5,PROF FEES-MISCELLANEOUS,12/11/2015,,Technical and Service Support,"Works - Construction, R&M"
091115H,GRADIENT CONSULTANTS LLP======,2445,8,55,PROF FEES-MISCELLANEOUS,12/11/2015,,Technical and Service Support,"Works - Construction, R&M"
091115H,GRADIENT CONSULTANTS LLP======,2446,1,97.5,ASBESTOS,12/11/2015,"7,732.50",Technical and Service Support,"Works - Construction, R&M"
091115H,GRADIENT CONSULTANTS LLP======,2446,2,97.5,ASBESTOS,12/11/2015,,Technical and Service Support,"Works - Construction, R&M"
091115H,GRADIENT CONSULTANTS LLP======,2446,3,130,ASBESTOS,12/11/2015,,Technical and Service Support,"Works - Construction, R&M"
091115H,GRADIENT CONSULTANTS LLP======,2446,4,187.5,ASBESTOS,12/11/2015,,Technical and Service Support,"Works - Construction, R&M"
091115H,GRADIENT CONSULTANTS LLP======,2446,5,387.5,ASBESTOS,12/11/2015,,Technical and Service Support,"Works - Construction, R&M"
091115H,GRADIENT CONSULTANTS LLP======,2446,6,195,ASBESTOS,12/11/2015,,Technical and Service Support,"Works - Construction, R&M"
091115H,GRADIENT CONSULTANTS LLP======,2446,7,97.5,ASBESTOS,12/11/2015,,Technical and Service Support,"Works - Construction, R&M"
091115H,GRADIENT CONSULTANTS LLP======,2446,8,97.5,ASBESTOS,12/11/2015,,Technical and Service Support,"Works - Construction, R&M"
091115H,GRADIENT CONSULTANTS LLP======,2446,9,195,ASBESTOS,12/11/2015,,Technical and Service Support,"Works - Construction, R&M"
091115H,GRADIENT CONSULTANTS LLP======,2446,10,97.5,ASBESTOS,12/11/2015,,Technical and Service Support,"Works - Construction, R&M"
091115H,GRADIENT CONSULTANTS LLP======,2446,11,97.5,ASBESTOS,12/11/2015,,Technical and Service Support,"Works - Construction, R&M"
091115H,GRADIENT CONSULTANTS LLP======,2446,12,612.5,ASBESTOS,12/11/2015,,Technical and Service Support,"Works - Construction, R&M"
091115H,GRADIENT CONSULTANTS LLP======,2446,13,195,ASBESTOS,12/11/2015,,Technical and Service Support,"Works - Construction, R&M"
091115H,GRADIENT CONSULTANTS LLP======,2446,14,97.5,ASBESTOS,12/11/2015,,Technical and Service Support,"Works - Construction, R&M"
091115H,GRADIENT CONSULTANTS LLP======,2446,15,110,ASBESTOS,12/11/2015,,Technical and Service Support,"Works - Construction, R&M"
091115H,GRADIENT CONSULTANTS LLP======,2446,16,97.5,ASBESTOS,12/11/2015,,Technical and Service Support,"Works - Construction, R&M"
091115H,GRADIENT CONSULTANTS LLP======,2446,17,97.5,ASBESTOS,12/11/2015,,Technical and Service Support,"Works - Construction, R&M"
091115H,GRADIENT CONSULTANTS LLP======,2446,18,97.5,ASBESTOS,12/11/2015,,Technical and Service Support,"Works - Construction, R&M"
091115H,GRADIENT CONSULTANTS LLP======,2446,19,397.5,ASBESTOS,12/11/2015,,Technical and Service Support,"Works - Construction, R&M"
091115H,GRADIENT CONSULTANTS LLP======,2446,20,97.5,ASBESTOS,12/11/2015,,Technical and Service Support,"Works - Construction, R&M"
091115H,GRADIENT CONSULTANTS LLP======,2446,21,97.5,ASBESTOS,12/11/2015,,Technical and Service Support,"Works - Construction, R&M"
091115H,GRADIENT CONSULTANTS LLP======,2446,22,97.5,ASBESTOS,12/11/2015,,Technical and Service Support,"Works - Construction, R&M"
091115H,GRADIENT CONSULTANTS LLP======,2446,23,152.5,ASBESTOS,12/11/2015,,Technical and Service Support,"Works - Construction, R&M"
091115H,GRADIENT CONSULTANTS LLP======,2446,24,80,ASBESTOS,12/11/2015,,Technical and Service Support,"Works - Construction, R&M"
091115H,GRADIENT CONSULTANTS LLP======,2446,25,97.5,ASBESTOS,12/11/2015,,Technical and Service Support,"Works - Construction, R&M"
091115H,GRADIENT CONSULTANTS LLP======,2446,26,195,ASBESTOS,12/11/2015,,Technical and Service Support,"Works - Construction, R&M"
091115H,GRADIENT CONSULTANTS LLP======,2446,27,97.5,ASBESTOS,12/11/2015,,Technical and Service Support,"Works - Construction, R&M"
091115H,GRADIENT CONSULTANTS LLP======,2446,28,195,ASBESTOS,12/11/2015,,Technical and Service Support,"Works - Construction, R&M"
091115H,GRADIENT CONSULTANTS LLP======,2446,29,97.5,ASBESTOS,12/11/2015,,Technical and Service Support,"Works - Construction, R&M"
091115H,GRADIENT CONSULTANTS LLP======,2446,30,320,ASBESTOS,12/11/2015,,Technical and Service Support,"Works - Construction, R&M"
091115H,GRADIENT CONSULTANTS LLP======,2446,31,97.5,ASBESTOS,12/11/2015,,Technical and Service Support,"Works - Construction, R&M"
091115H,GRADIENT CONSULTANTS LLP======,2446,32,262.5,ASBESTOS,12/11/2015,,Technical and Service Support,"Works - Construction, R&M"
091115H,GRADIENT CONSULTANTS LLP======,2446,33,97.5,ASBESTOS,12/11/2015,,Technical and Service Support,"Works - Construction, R&M"
091115H,GRADIENT CONSULTANTS LLP======,2446,34,97.5,ASBESTOS,12/11/2015,,Technical and Service Support,"Works - Construction, R&M"
091115H,GRADIENT CONSULTANTS LLP======,2446,35,97.5,ASBESTOS,12/11/2015,,Technical and Service Support,"Works - Construction, R&M"
091115H,GRADIENT CONSULTANTS LLP======,2446,36,152.5,ASBESTOS,12/11/2015,,Technical and Service Support,"Works - Construction, R&M"
091115H,GRADIENT CONSULTANTS LLP======,2446,37,195,ASBESTOS,12/11/2015,,Technical and Service Support,"Works - Construction, R&M"
091115H,GRADIENT CONSULTANTS LLP======,2446,38,97.5,ASBESTOS,12/11/2015,,Technical and Service Support,"Works - Construction, R&M"
091115H,GRADIENT CONSULTANTS LLP======,2446,39,97.5,ASBESTOS,12/11/2015,,Technical and Service Support,"Works - Construction, R&M"
091115H,GRADIENT CONSULTANTS LLP======,2446,40,55,ASBESTOS,12/11/2015,,Technical and Service Support,"Works - Construction, R&M"
091115H,GRADIENT CONSULTANTS LLP======,2446,41,347.5,ASBESTOS,12/11/2015,,Technical and Service Support,"Works - Construction, R&M"
091115H,GRADIENT CONSULTANTS LLP======,2446,42,290,ASBESTOS,12/11/2015,,Technical and Service Support,"Works - Construction, R&M"
091115H,GRADIENT CONSULTANTS LLP======,2446,43,97.5,ASBESTOS,12/11/2015,,Technical and Service Support,"Works - Construction, R&M"
091115H,GRADIENT CONSULTANTS LLP======,2446,44,97.5,ASBESTOS,12/11/2015,,Technical and Service Support,"Works - Construction, R&M"
091115H,GRADIENT CONSULTANTS LLP======,2446,45,97.5,ASBESTOS,12/11/2015,,Technical and Service Support,"Works - Construction, R&M"
091115H,GRADIENT CONSULTANTS LLP======,2446,46,125,ASBESTOS,12/11/2015,,Technical and Service Support,"Works - Construction, R&M"
091115H,GRADIENT CONSULTANTS LLP======,2446,47,97.5,ASBESTOS,12/11/2015,,Technical and Service Support,"Works - Construction, R&M"
091115H,GRADIENT CONSULTANTS LLP======,2446,48,97.5,ASBESTOS,12/11/2015,,Technical and Service Support,"Works - Construction, R&M"
091115H,GRADIENT CONSULTANTS LLP======,2446,49,320,ASBESTOS,12/11/2015,,Technical And Service Support,"Works - Construction, R&M"
091115H,GRADIENT CONSULTANTS LLP======,2447,1,97.5,ASBESTOS,12/11/2015,"2,462.50",Technical and Service Support,"Works - Construction, R&M"
091115H,GRADIENT CONSULTANTS LLP======,2447,2,97.5,ASBESTOS,12/11/2015,,Technical and Service Support,"Works - Construction, R&M"
091115H,GRADIENT CONSULTANTS LLP======,2447,3,97.5,ASBESTOS,12/11/2015,,Technical and Service Support,"Works - Construction, R&M"
091115H,GRADIENT CONSULTANTS LLP======,2447,4,97.5,ASBESTOS,12/11/2015,,Technical and Service Support,"Works - Construction, R&M"
091115H,GRADIENT CONSULTANTS LLP======,2447,5,97.5,ASBESTOS,12/11/2015,,Technical and Service Support,"Works - Construction, R&M"
091115H,GRADIENT CONSULTANTS LLP======,2447,6,97.5,ASBESTOS,12/11/2015,,Technical and Service Support,"Works - Construction, R&M"
091115H,GRADIENT CONSULTANTS LLP======,2447,7,97.5,ASBESTOS,12/11/2015,,Technical and Service Support,"Works - Construction, R&M"
091115H,GRADIENT CONSULTANTS LLP======,2447,8,97.5,ASBESTOS,12/11/2015,,Technical and Service Support,"Works - Construction, R&M"
091115H,GRADIENT CONSULTANTS LLP======,2447,9,97.5,ASBESTOS,12/11/2015,,Technical and Service Support,"Works - Construction, R&M"
091115H,GRADIENT CONSULTANTS LLP======,2447,10,97.5,ASBESTOS,12/11/2015,,Technical and Service Support,"Works - Construction, R&M"
091115H,GRADIENT CONSULTANTS LLP======,2447,11,97.5,ASBESTOS,12/11/2015,,Technical and Service Support,"Works - Construction, R&M"
091115H,GRADIENT CONSULTANTS LLP======,2447,12,97.5,ASBESTOS,12/11/2015,,Technical and Service Support,"Works - Construction, R&M"
091115H,GRADIENT CONSULTANTS LLP======,2447,13,387.5,ASBESTOS,12/11/2015,,Technical and Service Support,"Works - Construction, R&M"
091115H,GRADIENT CONSULTANTS LLP======,2447,14,195,ASBESTOS,12/11/2015,,Technical and Service Support,"Works - Construction, R&M"
091115H,GRADIENT CONSULTANTS LLP======,2447,15,125,ASBESTOS,12/11/2015,,Technical and Service Support,"Works - Construction, R&M"
091115H,GRADIENT CONSULTANTS LLP======,2447,16,97.5,ASBESTOS,12/11/2015,,Technical and Service Support,"Works - Construction, R&M"
091115H,GRADIENT CONSULTANTS LLP======,2447,17,97.5,ASBESTOS,12/11/2015,,Technical and Service Support,"Works - Construction, R&M"
091115H,GRADIENT CONSULTANTS LLP======,2447,18,97.5,ASBESTOS,12/11/2015,,Technical and Service Support,"Works - Construction, R&M"
091115H,GRADIENT CONSULTANTS LLP======,2447,19,97.5,ASBESTOS,12/11/2015,,Technical and Service Support,"Works - Construction, R&M"
091115H,GRADIENT CONSULTANTS LLP======,2447,20,97.5,ASBESTOS,12/11/2015,,Technical and Service Support,"Works - Construction, R&M"
091115H,GRADIENT CONSULTANTS LLP======,2447,21,97.5,ASBESTOS,12/11/2015,,Technical and Service Support,"Works - Construction, R&M"
061115H,ARKAS LIMITED=================,27942,1,184.84,STRATEGIC (CYCLICAL),12/11/2015,"1,435.03",Technical And Service Support,"Works - Construction, R&M"
061115H,ARKAS LIMITED=================,27942,2,181,STRATEGIC (CYCLICAL),12/11/2015,,Technical And Service Support,"Works - Construction, R&M"
061115H,ARKAS LIMITED=================,27942,3,324.79,STRATEGIC (CYCLICAL),12/11/2015,,Technical And Service Support,"Works - Construction, R&M"
061115H,ARKAS LIMITED=================,27942,4,744.4,STRATEGIC (CYCLICAL),12/11/2015,,Technical And Service Support,"Works - Construction, R&M"
061115H,ARKAS LIMITED=================,27943,1,148,STRATEGIC (CYCLICAL),12/11/2015,"2,163.06",Technical And Service Support,"Works - Construction, R&M"
061115H,ARKAS LIMITED=================,27943,2,217.5,STRATEGIC (CYCLICAL),12/11/2015,,Technical And Service Support,"Works - Construction, R&M"
061115H,ARKAS LIMITED=================,27943,3,458.79,STRATEGIC (CYCLICAL),12/11/2015,,Technical And Service Support,"Works - Construction, R&M"
061115H,ARKAS LIMITED=================,27943,4,"1,338.77",STRATEGIC (CYCLICAL),12/11/2015,,Technical And Service Support,"Works - Construction, R&M"
301015H,DRAEGER SAFETY UK LIMITED=====,2910032951,1,408.6,PROTECTIVE EQUIPT - PARTS,12/11/2015,"1,525.20",Technical and Service Support,Fire & Rescue
301015H,DRAEGER SAFETY UK LIMITED=====,2910032951,2,851.1,PROTECTIVE EQUIPT - PARTS,12/11/2015,,Technical and Service Support,Fire & Rescue
301015H,DRAEGER SAFETY UK LIMITED=====,2910032951,3,265.5,PROTECTIVE EQUIPT - PARTS,12/11/2015,,Technical and Service Support,Fire & Rescue
051115G,B NOKES CONTRACTS LTD,2980,1,"1,593.00",STRATEGIC (NON CYCLICAL),12/11/2015,"1,593.00",Technical and Service Support,"Works - Construction, R&M"
051115G,B NOKES CONTRACTS LTD,2981,1,"1,006.05",STRATEGIC (NON CYCLICAL),12/11/2015,"1,006.05",Technical and Service Support,"Works - Construction, R&M"
051115G,B NOKES CONTRACTS LTD,2982,1,592.5,STRATEGIC (NON CYCLICAL),12/11/2015,592.5,Technical and Service Support,"Works - Construction, R&M"
051115G,B NOKES CONTRACTS LTD,2983,1,"9,988.00",STRATEGIC (NON CYCLICAL),12/11/2015,"9,988.00",Technical and Service Support,"Works - Construction, R&M"
051115G,B NOKES CONTRACTS LTD,2985,1,815.5,REFUSE COLLECTION,12/11/2015,815.5,Technical And Service Support,"Works - Construction, R&M"
091115H,B NOKES CONTRACTS LTD,2988,1,"1,737.00",STRATEGIC (NON CYCLICAL),12/11/2015,"1,737.00",Technical and Service Support,"Works - Construction, R&M"
051115G,B NOKES CONTRACTS LTD,2994,1,592.5,TACTICAL DAY TO DAY,12/11/2015,592.5,Technical And Service Support,"Works - Construction, R&M"
091115H,B NOKES CONTRACTS LTD,2996,1,"3,315.50",STRATEGIC (NON CYCLICAL),12/11/2015,"3,315.50",Technical and Service Support,"Works - Construction, R&M"
091115H,B NOKES CONTRACTS LTD,2997,1,"2,857.50",STRATEGIC (NON CYCLICAL),12/11/2015,"2,857.50",Technical and Service Support,"Works - Construction, R&M"
091115H,B NOKES CONTRACTS LTD,2998,1,"2,857.00",STRATEGIC (NON CYCLICAL),12/11/2015,"2,857.00",Technical and Service Support,"Works - Construction, R&M"
091115H,B NOKES CONTRACTS LTD,2999,1,"3,444.00",STRATEGIC (NON CYCLICAL),12/11/2015,"3,444.00",Technical and Service Support,"Works - Construction, R&M"
051115G,B NOKES CONTRACTS LTD,3003,1,270,TACTICAL DAY TO DAY,12/11/2015,270,Technical And Service Support,"Works - Construction, R&M"
051115G,B NOKES CONTRACTS LTD,3010,1,390,TACTICAL DAY TO DAY,12/11/2015,390,Technical And Service Support,"Works - Construction, R&M"
051115G,B NOKES CONTRACTS LTD,3011,1,470,TACTICAL DAY TO DAY,12/11/2015,470,Technical And Service Support,"Works - Construction, R&M"
051115G,B NOKES CONTRACTS LTD,3015,1,320,REFUSE COLLECTION,12/11/2015,320,Technical And Service Support,"Works - Construction, R&M"
051115G,B NOKES CONTRACTS LTD,3016,1,822.5,TACTICAL DAY TO DAY,12/11/2015,822.5,Technical And Service Support,"Works - Construction, R&M"
091115H,B NOKES CONTRACTS LTD,3017,1,"1,305.30",STRATEGIC (NON CYCLICAL),12/11/2015,"1,305.30",Technical and Service Support,"Works - Construction, R&M"
091115H,B NOKES CONTRACTS LTD,3019,1,"29,786.25",DEVELOPMENT  EXPENSES-CONTRACT,12/11/2015,"29,786.25",Technical and Service Support,"Works - Construction, R&M"
091115H,B NOKES CONTRACTS LTD,3020,1,694.24,DEVELOPMENT  EXPENSES-CONTRACT,12/11/2015,694.24,Technical and Service Support,"Works - Construction, R&M"
061115H,BRISTOL UNIFORMS LTD==========,309206,1,"1,516.73",CLOTHING,12/11/2015,"1,516.73",Central Operations,Clothing
051115G,BRISTOL UNIFORMS LTD==========,320239,1,766.38,CLOTHING,12/11/2015,766.38,Procurement,Clothing
051115G,BRISTOL UNIFORMS LTD==========,320240,1,"4,027.79",CLOTHING,12/11/2015,"4,027.79",Procurement,Clothing
051115G,BRISTOL UNIFORMS LTD==========,320241,1,"197,575.56",CLOTHING,12/11/2015,"197,575.56",Procurement,Clothing
091115G,RELIANCE HIGH-TECH,32217-20/SLCRD0001620,1,"2,033.08",STRATEGIC (CYCLICAL),12/11/2015,"2,033.08",Technical And Service Support,Facilities & Management S
301015H,SAFEQUIP LTD==================,36462,1,397.95,OPERATIONAL EQUIP-PURCHASE,12/11/2015,397.95,Operational Policy,Fire & Rescue
091115G,DEALERSHIP SERVICES LTD,3730,1,43.7,CLOTHING,12/11/2015,"1,247.40",Cadets,Clothing
091115G,DEALERSHIP SERVICES LTD,3730,2,109.25,CLOTHING,12/11/2015,,Cadets,Clothing
091115G,DEALERSHIP SERVICES LTD,3730,3,187.95,CLOTHING,12/11/2015,,Cadets,Clothing
091115G,DEALERSHIP SERVICES LTD,3730,4,80.55,CLOTHING,12/11/2015,,Cadets,Clothing
091115G,DEALERSHIP SERVICES LTD,3730,5,33.9,CLOTHING,12/11/2015,,Cadets,Clothing
091115G,DEALERSHIP SERVICES LTD,3730,6,84.75,CLOTHING,12/11/2015,,Cadets,Clothing
091115G,DEALERSHIP SERVICES LTD,3730,7,132.65,CLOTHING,12/11/2015,,Cadets,Clothing
091115G,DEALERSHIP SERVICES LTD,3730,8,56.85,CLOTHING,12/11/2015,,Cadets,Clothing
091115G,DEALERSHIP SERVICES LTD,3730,9,17.95,CLOTHING,12/11/2015,,Cadets,Clothing
091115G,DEALERSHIP SERVICES LTD,3730,10,17.95,CLOTHING,12/11/2015,,Cadets,Clothing
091115G,DEALERSHIP SERVICES LTD,3730,11,6.9,CLOTHING,12/11/2015,,Cadets,Clothing
091115G,DEALERSHIP SERVICES LTD,3730,12,20.7,CLOTHING,12/11/2015,,Cadets,Clothing
091115G,DEALERSHIP SERVICES LTD,3730,13,24.15,CLOTHING,12/11/2015,,Cadets,Clothing
091115G,DEALERSHIP SERVICES LTD,3730,14,24.15,CLOTHING,12/11/2015,,Cadets,Clothing
091115G,DEALERSHIP SERVICES LTD,3730,15,58,CLOTHING,12/11/2015,,Cadets,Clothing
091115G,DEALERSHIP SERVICES LTD,3730,16,58,CLOTHING,12/11/2015,,Cadets,Clothing
091115G,DEALERSHIP SERVICES LTD,3730,17,101.5,CLOTHING,12/11/2015,,Cadets,Clothing
091115G,DEALERSHIP SERVICES LTD,3730,18,72.5,CLOTHING,12/11/2015,,Cadets,Clothing
091115G,DEALERSHIP SERVICES LTD,3730,19,14.5,CLOTHING,12/11/2015,,Cadets,Clothing
091115G,DEALERSHIP SERVICES LTD,3730,20,58,CLOTHING,12/11/2015,,Cadets,Clothing
091115G,DEALERSHIP SERVICES LTD,3730,21,43.5,CLOTHING,12/11/2015,,Cadets,Clothing
061115H,OPEN UNIVERSITY===============,397712,1,940,PROFESSIONAL DEVELOPMENT,12/11/2015,"1,880.00",Community Safety Delivery,Human Resources
061115H,OPEN UNIVERSITY===============,397712,2,940,PROFESSIONAL DEVELOPMENT,12/11/2015,,Community Safety Delivery,Human Resources
061115H,EUROLOOS LTD,40353,1,850,OPERATIONAL EQUIP-PURCHASE,12/11/2015,850,Central Operations,Facilities & Management S
091115H,CARPETS & FLOOR COVERS DIRECT=,4141,1,"3,649.40",STRATEGIC (NON CYCLICAL),12/11/2015,"3,649.40",Technical and Service Support,Building Constr Materials
091115H,CARPETS & FLOOR COVERS DIRECT=,4170,1,"9,612.68",STRATEGIC (NON CYCLICAL),12/11/2015,"9,612.68",Technical and Service Support,Building Constr Materials
051115G,MITIE SECURITY (LONDON) LTD===,45/599440,1,"17,245.92",PREMISES SECURITY,12/11/2015,"17,245.92",Technical And Service Support,Facilities & Management S
061115H,SAFEGUARD PEST CON. & ENV.LTD,45034,1,540,PEST CONTROL,12/11/2015,540,Technical And Service Support,Environmental Services
051115G,FOCUS & VISION TECHNOLOGY LTD,48768,1,574.38,MEDICAL EXPENSES CONTRACT,12/11/2015,574.38,HR Management,Healthcare
091115H,FAHEY BUILDERS LTD============,5297,1,"3,700.00",STRATEGIC (NON CYCLICAL),12/11/2015,"3,700.00",Technical and Service Support,"Works - Construction, R&M"
091115H,FAHEY BUILDERS LTD============,5298,1,675,STRATEGIC (NON CYCLICAL),12/11/2015,675,Technical and Service Support,"Works - Construction, R&M"
051115G,MITIE SECURITY (LONDON) LTD===,54/599438,1,"8,646.14",PREMISES SECURITY,12/11/2015,"8,646.14",Technical And Service Support,Facilities & Management S
051115G,AECOM INFRASTRUCTURE &,6294510,1,"3,911.12",PROF FEES-MISCELLANEOUS,12/11/2015,"3,911.12",Technical and Service Support,Consultancy
291015G,VODAFONE LIMITED==============,77923146,1,"8,550.00",CELLULAR TELEPHONES,12/11/2015,"8,550.00",Information and Communication Technology,ICT
141258,NPOWER YORKSHIRE LIMITED,8874238,1,315,ELECTRICITY,12/11/2015,315,Technical And Service Support,Utilities
091115H,NORTHUMBRIAN WATER LTD========,913556939,1,424,CURRENT HYDRANT COSTS,12/11/2015,424,Operational Resilience,Utilities
051115G,NORTHUMBRIAN WATER LTD========,913597686,1,441.55,CURRENT HYDRANT COSTS,12/11/2015,441.55,Operational Resilience,Utilities
091115H,ASTEC SURVEYS LIMITED=========,ASL-15-301,1,195,ASBESTOS,12/11/2015,740,Technical and Service Support,Environmental Services
091115H,ASTEC SURVEYS LIMITED=========,ASL-15-301,2,195,ASBESTOS,12/11/2015,,Technical and Service Support,Environmental Services
091115H,ASTEC SURVEYS LIMITED=========,ASL-15-301,3,175,ASBESTOS,12/11/2015,,Technical and Service Support,Environmental Services
091115H,ASTEC SURVEYS LIMITED=========,ASL-15-301,4,175,ASBESTOS,12/11/2015,,Technical and Service Support,Environmental Services
061115H,THAMES WATER UTILITIES LTD====,CBA1509214,1,"1,185.00",CURRENT HYDRANT COSTS,12/11/2015,"1,185.00",Operational Resilience,Utilities
061115H,THAMES WATER UTILITIES LTD====,CBA1509381,1,"1,185.00",CURRENT HYDRANT COSTS,12/11/2015,"1,185.00",Operational Resilience,Utilities
061115H,THAMES WATER UTILITIES LTD====,CBA1509386,1,"1,185.00",CURRENT HYDRANT COSTS,12/11/2015,"1,185.00",Operational Resilience,Utilities
091115H,THAMES WATER UTILITIES LTD====,CBA1509556,1,"1,185.00",CURRENT HYDRANT COSTS,12/11/2015,"1,185.00",Operational Resilience,Utilities
091115H,THAMES WATER UTILITIES LTD====,CBA1509557,1,"1,185.00",CURRENT HYDRANT COSTS,12/11/2015,"1,185.00",Operational Resilience,Utilities
061115H,THAMES WATER UTILITIES LTD====,CBA1509560,1,"1,185.00",CURRENT HYDRANT COSTS,12/11/2015,"1,185.00",Operational Resilience,Utilities
061115H,THAMES WATER UTILITIES LTD====,CBA1509561,1,"1,185.00",CURRENT HYDRANT COSTS,12/11/2015,"1,185.00",Operational Resilience,Utilities
061115H,THAMES WATER UTILITIES LTD====,CBA1509566,1,"1,185.00",CURRENT HYDRANT COSTS,12/11/2015,"1,185.00",Operational Resilience,Utilities
061115H,THAMES WATER UTILITIES LTD====,CBA1509567,1,"1,185.00",CURRENT HYDRANT COSTS,12/11/2015,"1,185.00",Operational Resilience,Utilities
061115H,THAMES WATER UTILITIES LTD====,CBA1509568,1,477,CURRENT HYDRANT COSTS,12/11/2015,477,Operational Resilience,Utilities
061115H,THAMES WATER UTILITIES LTD====,CBA1509570,1,"1,185.00",CURRENT HYDRANT COSTS,12/11/2015,"1,185.00",Operational Resilience,Utilities
091115H,THAMES WATER UTILITIES LTD====,CBA1509624,1,"1,185.00",CURRENT HYDRANT COSTS,12/11/2015,"1,185.00",Operational Resilience,Utilities
091115H,THAMES WATER UTILITIES LTD====,CBA1509628,1,"1,185.00",CURRENT HYDRANT COSTS,12/11/2015,"1,185.00",Operational Resilience,Utilities
091115H,THAMES WATER UTILITIES LTD====,CBA1509632,1,"1,185.00",CURRENT HYDRANT COSTS,12/11/2015,"1,185.00",Operational Resilience,Utilities
091115H,THAMES WATER UTILITIES LTD====,CBA1509635,1,"1,185.00",CURRENT HYDRANT COSTS,12/11/2015,"1,185.00",Operational Resilience,Utilities
091115H,THAMES WATER UTILITIES LTD====,CBA1509643,1,"1,111.00",CURRENT HYDRANT COSTS,12/11/2015,"1,111.00",Operational Resilience,Utilities
091115H,THAMES WATER UTILITIES LTD====,CBA1509786,1,"1,185.00",CURRENT HYDRANT COSTS,12/11/2015,"1,185.00",Operational Resilience,Utilities
091115H,THAMES WATER UTILITIES LTD====,CBA1509791,1,"1,185.00",CURRENT HYDRANT COSTS,12/11/2015,"1,185.00",Operational Resilience,Utilities
091115H,THAMES WATER UTILITIES LTD====,CBA1509806,1,459,CURRENT HYDRANT COSTS,12/11/2015,459,Operational Resilience,Utilities
091115H,THAMES WATER UTILITIES LTD====,CBA1509816,1,459,CURRENT HYDRANT COSTS,12/11/2015,459,Operational Resilience,Utilities
091115H,INFOR (UNITED KINGDOM) LIMITED,CLINV5666309,1,"1,280.00",CONSULTANTS,12/11/2015,"1,280.00",Information and Communication Technology,ICT
051115G,E&S B DAVIS LTD,DAV/58619,1,885,OPERATIONAL EQUIP-PURCHASE,12/11/2015,885,Challenge Team,Environmental Services
051115G,E&S B DAVIS LTD,DAV/58620,1,"1,180.00",OPERATIONAL EQUIP-PURCHASE,12/11/2015,"1,180.00",Challenge Team,Environmental Services
091115G,ENVIRONMENT AGENCY============,HWAPPLFEPA12,1,90,TACTICAL DAY TO DAY,12/11/2015,"2,052.00",Technical And Service Support,Environmental Services
091115G,ENVIRONMENT AGENCY============,HWAPPLFEPA12,2,756,TACTICAL DAY TO DAY,12/11/2015,,Technical And Service Support,Environmental Services
091115G,ENVIRONMENT AGENCY============,HWAPPLFEPA12,3,612,TACTICAL DAY TO DAY,12/11/2015,,Technical And Service Support,Environmental Services
091115G,ENVIRONMENT AGENCY============,HWAPPLFEPA12,4,594,TACTICAL DAY TO DAY,12/11/2015,,Technical And Service Support,Environmental Services
031115H,HALL FUELS,I07957660,1,"3,889.80",FUEL,12/11/2015,"3,889.80",Operations Fire Stations,Vehicle Management
271015H,POSTURITE (UK) LTD============,INV0275020,1,276,OFFICE FURNITURE,12/11/2015,276,Fire Safety Regulation,Furniture
141258,DR IOANNIS P CHRISTODOULOU,LECTURE,1,300,CONSULTANTS,12/11/2015,300,Development and Training,Human Resources
091115H,RADIOCOMS SYSTEMS LIMITED=====,RSLSI15006687,1,"3,933.60",RADIO,12/11/2015,"4,873.75",Information and Communication Technology,ICT
091115H,RADIOCOMS SYSTEMS LIMITED=====,RSLSI15006687,2,262.75,RADIO,12/11/2015,,Information and Communication Technology,ICT
091115H,RADIOCOMS SYSTEMS LIMITED=====,RSLSI15006687,3,677.4,RADIO,12/11/2015,,Information and Communication Technology,ICT
031115H,HUNTER LODGE==================,SI-06034,1,665,ADVERTISING,12/11/2015,665,HR Management,Facilities & Management S
061115H,GROUND CONTROL LIMITED,SIN062824,1,"1,035.00",GROUNDS MAINTENANCE,12/11/2015,"1,035.00",Technical And Service Support,"Works - Construction, R&M"
061115H,GROUND CONTROL LIMITED,SIN062825,1,450,GROUNDS MAINTENANCE,12/11/2015,450,Technical And Service Support,"Works - Construction, R&M"
061115H,GROUND CONTROL LIMITED,SIN062826,1,420,GROUNDS MAINTENANCE,12/11/2015,420,Technical And Service Support,"Works - Construction, R&M"
061115H,GROUND CONTROL LIMITED,SIN062827,1,420,GROUNDS MAINTENANCE,12/11/2015,420,Technical And Service Support,"Works - Construction, R&M"
061115H,GROUND CONTROL LIMITED,SIN062828,1,400,GROUNDS MAINTENANCE,12/11/2015,520,Technical And Service Support,"Works - Construction, R&M"
061115H,GROUND CONTROL LIMITED,SIN062828,2,120,GROUNDS MAINTENANCE,12/11/2015,,Technical And Service Support,"Works - Construction, R&M"
061115H,GROUND CONTROL LIMITED,SIN062829,1,320,GROUNDS MAINTENANCE,12/11/2015,630,Technical And Service Support,"Works - Construction, R&M"
061115H,GROUND CONTROL LIMITED,SIN062829,2,310,GROUNDS MAINTENANCE,12/11/2015,,Technical And Service Support,"Works - Construction, R&M"
902572,BABCOCK TRAINING LTD,PTSI013555,1,"1,334,635.78",TRAINING CONTRACT,13/11/2015,"1,547,172.52",Development and Training,Human Resources
902572,BABCOCK TRAINING LTD,PTSI013555,2,"212,536.74",TRAINING CONTRACT,13/11/2015,,Development and Training,Human Resources
111115H,GOVNET COMMUNICATIONS=========,92255,1,385,PROFESSIONAL DEVELOPMENT,16/11/2015,385,Finance Services,Human Resources
111115H,*HUNTER APPAREL SOLUTIONS LTD,66649,1,314.7,UNIFORMS - POMS,16/11/2015,786.75,Procurement,Clothing
111115H,*HUNTER APPAREL SOLUTIONS LTD,66649,2,262.25,UNIFORMS - POMS,16/11/2015,,Procurement,Clothing
111115H,*HUNTER APPAREL SOLUTIONS LTD,66649,3,209.8,UNIFORMS - POMS,16/11/2015,,Procurement,Clothing
111115H,VISTA LANDSCAPE MANAGEMENT LTD,121270,1,555,GROUNDS MAINTENANCE,16/11/2015,555,Technical And Service Support,"Works - Construction, R&M"
111115H,ATKINS LIMITED================,15028922,1,"64,163.18",CONSULTANTS,16/11/2015,"64,163.18",Information and Communication Technology,ICT
041115H,APPLUS LLT,15098,1,"3,750.00",GENERAL,16/11/2015,"3,750.00",Procurement,Vehicle Management
111115H,GP CONTRACTS==================,15380,1,495,OFFICE FURNITURE,16/11/2015,495,Operations Fire Stations,Furniture
101115H,ENTEL UK LTD==================,172105,1,9,RADIO,16/11/2015,636,Information and Communication Technology,ICT
101115H,ENTEL UK LTD==================,172105,2,525,RADIO,16/11/2015,,Information and Communication Technology,ICT
101115H,ENTEL UK LTD==================,172105,3,30.3,RADIO,16/11/2015,,Information and Communication Technology,ICT
101115H,ENTEL UK LTD==================,172105,4,71.7,RADIO,16/11/2015,,Information and Communication Technology,ICT
101115H,DRON & WRIGHT=================,17941,1,"2,459.50",PROFESSIONAL SERVICES,16/11/2015,"2,459.50",Technical And Service Support,Facilities & Management S
281015H,GREATER LONDON AUTHORITY======,1800005205,1,"24,432.81",GLA GROUP SHARED SERVICES,16/11/2015,"24,432.81",Legal & Democratic Services,Statutory Bodies
281015H,GREATER LONDON AUTHORITY======,1800005206,1,"48,819.84",GLA GROUP SHARED SERVICES,16/11/2015,"48,819.84",Legal & Democratic Services,Statutory Bodies
091115H,COMMUNITIES & LOCAL GOVERNMENT,1800021916,1,"1,104.45",GENERAL,16/11/2015,"1,104.45",Procurement,ICT
101115H,THE DOCUMENT WAREHOUSE UK LTD,1860,1,"2,934.36",GENERAL,16/11/2015,"2,934.36",Strategy & Inclusion,Facilities & Management S
